Workbook

Sheet AER only (hidden)
B1: Data in these columns used for data validation and database purposes.
B2: Date last modified: | C2: 2017-01-16 | D2: added (Albury and Victora) for AGN
C3: 2016-10-17 | D3: updated TransGrid's correct legal name, corrected TasNetworks (T) to June financial year
C4: 2017-02-01 | D4: inserted Power and Water, added NRs (dms_FeederCat_1 and dms_FeederCat_2)
C5: 2017-03-03 | D5: inserted AEMO as a business | AB5: FOR ELECTRICITY BUSINESSES ONLY
AB6: Feeder Types | AF6: TasNetworks (D) | AG6: MAIFI flag | AH6: Feeder Names
AB7: CBD | AC7: Urban | AD7: Short rural | AE7: long rural | AF7: EXTRA
B8: dms_TradingName_List | C8: dms_TradingNameFull_List | D8: dms_ABN_List | E8: dms_JurisdictionList | F8: dms_Sector_List | G8: dms_Segment_List | H8: dms_FormControl_List | I8: dms_RPT_List | J8: dms_RPTMonth_List | K8: dms_CRCPlength_List | L8: dms_FRCPlength_List | M8: dms_663_List | N8: dms_DeterminationRef_List | O8: dms_Addr1_List | P8: dms_Addr2_List | Q8: dms_Suburb_List | R8: dms_State_List | S8: dms_PostCode_List | T8: dms_PAddr1_List | U8: dms_PAddr2_List | V8: dms_PSuburb_List | W8: dms_PState_List | X8: dms_PPostCode_List | Y8: dms_ContactName1_List | Z8: dms_ContactPh1_List | AA8: dms_ContactEmail_List | AB8: dms_CBD_flag | AC8: dms_Urban_flag | AD8: dms_ShortRural_flag | AE8: dms_LongRural_flag | AF8: dms_FeederType_5_flag | AG8: dms_MAIFI_flag_List | AH8: dms_FeederName_1 | AI8: dms_FeederName_2 | AJ8: dms_FeederName_3 | AK8: dms_FeederName_4 | AL8: dms_FeederName_5 | AM8: Column1
B9: ActewAGL Distribution | C9: ActewAGL Distribution | D9: 76670568688 | E9: ACT | F9: Electricity | G9: Distribution | H9: Revenue cap | I9: Financial | J9: June | K9: 5 | L9: 5 | M9: 5 | N9: 2014-19 Distribution Determination | O9: 40 Bunda Street | Q9: CANBERRA | R9: ACT | S9: 2600 | T9: GPO BOX 366 | V9: CANBERRA | W9: ACT | X9: 2601 | Y9: Robert Walker | Z9: 02 6248 3847 | AA9: robert.walker@actewagle.com.au | AB9: NO | AC9: YES | AD9: YES | AE9: NO | AF9: NO | AH9: CBD | AI9: Urban | AJ9: Short rural | AK9: Long rural | AM9: ActewAGL Distribution
B10: ActewAGL Distribution (Tx Assets) | C10: ActewAGL Distribution (Tx Assets) | D10: 76670568688 | E10: ACT | F10: Electricity | G10: Distribution | H10: Revenue cap | I10: Financial | J10: June | K10: 5 | L10: 5 | M10: 5 | N10: distribution determination | O10: 40 Bunda Street | Q10: CANBERRA | R10: ACT | S10: 2600 | T10: GPO BOX 366 | V10: CANBERRA | W10: ACT | X10: 2601 | Y10: Robert Walker | Z10: 02 6248 3847 | AA10: robert.walker@actewagle.com.au | AH10: CBD | AI10: Urban | AJ10: Short rural | AK10: Long rural | AM10: ActewAGL Distribution (Tx Assets)
B11: ActewAGL Gas | C11: ActewAGL Gas | D11: 76670568688 | E11: ACT | F11: Gas | G11: Distribution | H11: Weighted average price cap | I11: Financial | J11: June | K11: 5 | L11: 5 | M11: x | O11: 40 Bunda Street | Q11: CANBERRA | R11: ACT | S11: 2600 | T11: GPO BOX 366 | V11: CANBERRA | W11: ACT | X11: 2601 | Y11: Philip Deamer | Z11: 02 6248 3438 | AA11: GasAAReview@actewagl.com.au | AM11: ActewAGL Gas
B12: AEMO | C12: Australian Energy Market Operator Ltd | D12: 94072010327 | E12: Vic | F12: Electricity | G12: Transmission | H12: - | I12: Financial | J12: March | K12: 5 | L12: 5 | M12: x | N12: - | O12: Level 22 | P12: 530 Collins Street | Q12: MELBOURNE | R12: VIC | S12: 3000 | T12: GPO Box 2008 | V12: MELBOURNE | W12: VIC | X12: 3001 | AM12: AEMO
B13: AGN (Albury and Victoria) | C13: Australian Gas Networks Limited (reporting data for Albury and Victoria) | D13: 19078551685 | E13: Vic | F13: Gas | G13: Distribution | H13: Weighted average price cap | I13: Calendar | J13: December | K13: 5 | L13: 5 | M13: x | O13: Level 6 | P13: 400 King William Street | Q13: ADELAIDE | R13: SA | S13: 5000 | T13: PO Box 6468 | U13: Halifax Street | V13: ADELAIDE | W13: SA | X13: 5000 | Y13: Craig de Laine | Z13: 08 8418 1129 | AA13: craig.delaine@agn.com.au | AH13: CBD | AI13: Urban | AJ13: Short rural | AK13: Long rural | AM13: AGN (Albury)
B14: AGN (Albury) | C14: Australian Gas Networks Limited (reporting data for Albury) | D14: 19078551685 | E14: Vic | F14: Gas | G14: Distribution | H14: Weighted average price cap | I14: Calendar | J14: December | K14: 5 | L14: 5 | M14: x | O14: Level 6 | P14: 400 King William Street | Q14: ADELAIDE | R14: SA | S14: 5000 | T14: PO Box 6468 | U14: Halifax Street | V14: ADELAIDE | W14: SA | X14: 5000 | Y14: Craig de Laine | Z14: 08 8418 1129 | AA14: craig.delaine@agn.com.au | AH14: CBD | AI14: Urban | AJ14: Short rural | AK14: Long rural
B15: AGN (SA) | C15: Australian Gas Networks Limited (reporting data for SA) | D15: 19078551685 | E15: SA | F15: Gas | G15: Distribution | H15: Weighted average price cap | I15: Financial | J15: June | K15: 5 | L15: 5 | M15: 5 | N15: distribution determination | O15: Level 6 | P15: 400 King William Street | Q15: ADELAIDE | R15: SA | S15: 5000 | T15: PO Box 6468 | U15: Halifax Street | V15: ADELAIDE | W15: SA | X15: 5000 | Y15: Craig de Laine | Z15: 08 8418 1129 | AA15: craig.delaine@agn.com.au | AM15: AGN (SA)
B16: AGN (Victoria) | C16: Australian Gas Networks Limited (reporting data for Victoria) | D16: 19078551685 | E16: Vic | F16: Gas | G16: Distribution | H16: Weighted average price cap | I16: Calendar | J16: December | K16: 5 | L16: 5 | M16: x | O16: Level 6 | P16: 400 King William Street | Q16: ADELAIDE | R16: SA | S16: 5000 | T16: PO Box 6468 | U16: Halifax Street | V16: ADELAIDE | W16: SA | X16: 5000 | Y16: Craig de Laine | Z16: 08 8418 1129 | AA16: craig.delaine@agn.com.au | AM16: AGN (Victoria)
B17: Amadeus | C17: APT Pipelines (NT) Pty Ltd | D17: 39009737393 | E17: NT | F17: Gas | G17: Transmission | H17: Weighted average price cap | I17: Financial | J17: June | K17: 5 | L17: 5 | M17: x | N17: n/a | O17: Level 19, HSBC Building | P17: 580 George Street | Q17: SYDNEY | R17: NSW | S17: 2000 | T17: Level 19, HSBC Building | U17: 580 George Street | V17: SYDNEY | W17: NSW | X17: 2000 | Y17: Alexandra Curran | Z17: 02 9275 0020 | AA17: alexandra.curran@apa.com.au | AM17: Amadeus
B18: APA GasNet | C18: APA GasNet Australia (Operations) Pty Ltd | D18: 065083009 | E18: Vic | F18: Gas | G18: Transmission | H18: Weighted average price cap | I18: Calendar | J18: December | K18: 5 | L18: 5 | M18: x | O18: Level 19, HSBC Building | P18: 580 George Street | Q18: SYDNEY | R18: NSW | S18: 2000 | T18: PO Box R41 | V18: ROYAL EXCHANGE | W18: NSW | X18: 1225 | Y18: Alexandra Curran | Z18: 02 9275 0020 | AA18: alexandra.curran@apa.com.au | AM18: APA GasNet
B19: Ausgrid | C19: Ausgrid | D19: 78508211731 | E19: NSW | F19: Electricity | G19: Distribution | H19: Revenue cap | I19: Financial | J19: June | K19: 5 | L19: 5 | M19: 5 | N19: 2014-19 Distribution Determination | O19: 570 George St | Q19: SYDNEY | R19: NSW | S19: 2000 | T19: GPO Box 4009 | V19: SYDNEY | W19: NSW | X19: 2001 | Y19: John Thomson | Z19: (02) 9269 2312 | AA19: john.thomson@ausgrid.com.au | AB19: YES | AC19: YES | AD19: YES | AE19: YES | AF19: NO | AH19: CBD | AI19: Urban | AJ19: Short rural | AK19: Long rural | AM19: Ausgrid
B20: Ausgrid (Tx Assets) | C20: Ausgrid (Tx Assets) | D20: 67505337385 | E20: NSW | F20: Electricity | G20: Distribution | H20: Revenue cap | I20: Financial | J20: June | K20: 5 | L20: 5 | M20: 5 | N20: distribution determination | O20: 570 George St | Q20: SYDNEY | R20: NSW | S20: 2000 | T20: GPO Box 4009 | V20: SYDNEY | W20: NSW | X20: 2001 | Y20: John Thomson | Z20: (02) 9269 2312 | AA20: john.thomson@ausgrid.com.au | AH20: CBD | AI20: Urban | AJ20: Short rural | AK20: Long rural | AM20: Ausgrid (Tx Assets)
B21: AusNet (D) | C21: AusNet Electricity Services Pty Ltd | D21: 91064651118 | E21: Vic | F21: Electricity | G21: Distribution | H21: Revenue cap | I21: Calendar | J21: December | K21: 5 | L21: 5 | M21: 2 | N21: 2016-20 Distribution Determination | O21: Level 32 | P21: 2 Southbank Boulevard | Q21: SOUTHBANK | R21: Vic | S21: 3006 | T21: Locked Bag 14051 | V21: MELBOURNE CITY MAIL CENTRE | W21: VIC | X21: 8001 | AC21: YES | AD21: YES | AE21: YES | AF21: NO | AH21: CBD | AI21: Urban | AJ21: Short rural | AK21: Long rural | AM21: AusNet (D)
B22: AusNet (Gas) | C22: AusNet Gas Services | D22: 086015036 | E22: Vic | F22: Gas | G22: Distribution | H22: Weighted average price cap | I22: Calendar | J22: December | K22: 5 | L22: 5 | M22: X | O22: Level 19, HSBC Building | P22: 580 George Street | Q22: SYDNEY | R22: NSW | S22: 2000 | T22: PO Box R41 | V22: ROYAL EXCHANGE | W22: NSW | X22: 1225 | Y22: Alexandra Curran | Z22: 02 9275 0020 | AA22: alexandra.curran@apa.com.au | AM22: AusNet (Gas)
B23: AusNet (T) | C23: Ausnet Services (Transmission) Ltd | D23: 48116124362 | E23: Vic | F23: Electricity | G23: Transmission | H23: Revenue cap | I23: Financial | J23: March | K23: 5 | L23: 5 | M23: 2 | N23: transmission determination | O23: Level 32 | P23: 2 Southbank Boulevard | Q23: SOUTHBANK | R23: Vic | S23: 3006 | T23: Locked Bag 14051 | V23: MELBOURNE CITY MAIL CENTRE | W23: Vic | X23: 8001 | Y23: Clare Thompson | Z23: 03 9695 6670 | AA23: clare.e.thompson@ausnetservices.com.au | AH23: CBD | AI23: Urban | AJ23: Short rural | AK23: Long rural | AM23: AusNet (T)
B24: Australian Distribution Co. | C24: Australian Distribution Co. | D24: 11222333444 | E24: - | F24: Electricity | G24: Distribution | H24: Revenue cap | I24: Financial | J24: June | K24: 5 | L24: 5 | M24: 2 | N24: distribution determination | O24: 123 Straight Street | Q24: SYDNEY | R24: NSW | S24: 2000 | T24: PO Box 123 | V24: SYDNEY | W24: NSW | X24: 2000 | Y24: Bob Smith | Z24: 02 1234 5678 | AA24: bob@auselec.net.au | AH24: CBD | AI24: Urban | AJ24: Short rural | AK24: Long rural | AM24: Australian Distribution Co.
B25: Australian Distribution Co. (Vic) | C25: Australian Distribution Co. (Victoria) | D25: 11222333444 | E25: Vic | F25: Electricity | G25: Distribution | H25: Revenue cap | I25: Calendar | J25: December | K25: 5 | L25: 5 | M25: 2 | N25: distribution determination | O25: 123 Straight Street | Q25: MELBOURNE | R25: Vic | S25: 3000 | T25: PO Box 123 | V25: MELBOURNE | W25: VIC | X25: 3000 | Y25: Bob Smith | Z25: 02 1234 5678 | AA25: bob@auselec.net.au | AH25: CBD | AI25: Urban | AJ25: Short rural | AK25: Long rural | AM25: Australian Distribution Co. (Vic)
B26: Australian Transmission Co. | C26: Australian Transmission Co. | D26: 11222333444 | E26: - | F26: Electricity | G26: Transmission | H26: Revenue cap | I26: Financial | J26: June | K26: 5 | L26: 5 | M26: 5 | N26: transmission determination | O26: 123 Straight Street | Q26: SYDNEY | R26: NSW | S26: 2000 | T26: PO Box 123 | V26: SYDNEY | W26: NSW | X26: 2000 | Y26: Bob Smith | Z26: 02 1234 5678 | AA26: bob@auselec.net.au | AH26: CBD | AI26: Urban | AJ26: Short rural | AK26: Long rural | AM26: Australian Transmission Co.
B27: CitiPower | C27: CitiPower | D27: 76064651056 | E27: Vic | F27: Electricity | G27: Distribution | H27: Revenue cap | I27: Calendar | J27: December | K27: 5 | L27: 5 | M27: 2 | N27: 2016-20 Distribution Determination | O27: 40 Market Street | Q27: MELBOURNE | R27: Vic | S27: 3000 | T27: Locked Bag 14090 | V27: MELBOURNE | W27: VIC | X27: 8001 | Y27: Hannah Williams | Z27: 03 9683 4088 | AA27: hwilliams@powercor.com.au | AB27: YES | AC27: YES | AD27: NO | AE27: NO | AF27: NO | AH27: CBD | AI27: Urban | AJ27: Short rural | AK27: Long rural | AM27: CitiPower
B28: Directlink | C28: Directlink | D28: 16779340889 | E28: Qld | F28: Electricity | G28: Transmission | H28: Revenue cap | I28: Financial | J28: June | K28: 9 | L28: 5 | M28: 5 | N28: transmission determination | O28: Level 19, HSBC Building | P28: 580 George Street | Q28: SYDNEY | R28: NSW | S28: 2000 | T28: PO Box R41 | V28: ROYAL EXCHANGE | W28: NSW | X28: 1225 | Y28: Scott Young | Z28: 02 9275 0031 | AA28: scott.young@apa.com.au | AH28: CBD | AI28: Urban | AJ28: Short rural | AK28: Long rural | AM28: Directlink
B29: ElectraNet | C29: ElectraNet | D29: 41094482416 | E29: SA | F29: Electricity | G29: Transmission | H29: Revenue cap | I29: Financial | J29: June | K29: 5 | L29: 5 | M29: 5 | N29: transmission determination | O29: 52-55 East Terrace | P29: Rymill Park | Q29: ADELAIDE | R29: SA | S29: 5000 | T29: PO Box 7096 | U29: Hutt Street Post Office | V29: ADELAIDE | W29: SA | X29: 5000 | Y29: Bill Jackson | Z29: 08 8404 7969 | AA29: jackson.bill@electranet.com.au | AH29: CBD | AI29: Urban | AJ29: Short rural | AK29: Long rural | AM29: ElectraNet
B30: Endeavour Energy | C30: Endeavour Energy | D30: 11247365823 | E30: NSW | F30: Electricity | G30: Distribution | H30: Revenue cap | I30: Financial | J30: June | K30: 5 | L30: 5 | M30: 5 | N30: 2014-19 Distribution Determination | O30: 51 Huntingwood Drive | Q30: HUNTINGWOOD | R30: NSW | S30: 2148 | T30: PO Box 811 | V30: SEVEN HILLS | W30: NSW | X30: 1730 | Y30: Jon Hocking | Z30: 02 9853 4386 / 0407 348 156 | AA30: Jon.Hocking@Endeavourenergy.com.au | AB30: NO | AC30: YES | AD30: YES | AE30: YES | AF30: NO | AH30: CBD | AI30: Urban | AJ30: Short rural | AK30: Long rural | AM30: Endeavour Energy
B31: Energex | C31: Energex | D31: 40078849055 | E31: Qld | F31: Electricity | G31: Distribution | H31: Revenue cap | I31: Financial | J31: June | K31: 5 | L31: 5 | M31: 5 | N31: 2015-20 Distribution Determination | O31: 26 Reddacliff Street | Q31: NEWSTEAD | R31: Qld | S31: 4006 | T31: 26 Reddacliff Street | V31: NEWSTEAD | W31: QLD | X31: 4006 | Y31: Nicola Roscoe | Z31: 07 3664 5891 | AA31: nicolaroscoe@energex.com.au | AB31: YES | AC31: YES | AD31: YES | AE31: NO | AF31: NO | AH31: CBD | AI31: Urban | AJ31: Short rural | AK31: Long rural | AM31: Energex
B32: Ergon Energy | C32: Ergon Energy | D32: 50087646062 | E32: Qld | F32: Electricity | G32: Distribution | H32: Revenue cap | I32: Financial | J32: June | K32: 5 | L32: 5 | M32: 5 | N32: 2015-20 Distribution Determination | O32: 22 Walker Street | Q32: TOWNSVILLE | R32: Qld | S32: 4810 | T32: Po Box 264 | V32: FORTITUDE VALLEY | W32: QLD | X32: 4006 | Y32: Jenny Doyle, Group Manager Regulatory Affairs | Z32: (07) 3851 6416 | AA32: jenny.doyle@ergon.com.au | AB32: NO | AC32: YES | AD32: YES | AE32: YES | AF32: NO | AH32: CBD | AI32: Urban | AJ32: Short rural | AK32: Long rural | AM32: Ergon Energy
B33: Essential Energy | C33: Essential Energy | D33: 37428185226 | E33: NSW | F33: Electricity | G33: Distribution | H33: Revenue cap | I33: Financial | J33: June | K33: 5 | L33: 5 | M33: 5 | N33: 2014-19 Distribution Determination | O33: 8 Buller Street | Q33: PORT MACQUARIE | R33: NSW | S33: 2444 | T33: PO Box 5730 | V33: PORT MACQUARIE | W33: NSW | X33: 2444 | Y33: Catherine Waddell | Z33: 02 6338 3553 | AA33: catherine.waddell@essentialenergy.com.au | AD33: YES | AE33: YES | AF33: NO | AH33: CBD | AI33: Urban | AJ33: Short rural | AK33: Long rural | AM33: Essential Energy
B34: Jemena Electricity | C34: Jemena Electricity | D34: 82064651083 | E34: Vic | F34: Electricity | G34: Distribution | H34: Revenue cap | I34: Calendar | J34: December | K34: 5 | L34: 5 | M34: 2 | N34: 2016-20 Distribution Determination | O34: Level 16 | P34: 567 Collins Street | Q34: MELBOURNE | R34: VIC | S34: 3000 | T34: PO Box 16182 | V34: MELBOURNE | W34: VIC | X34: 8001 | Y34: Matthew Serpell | Z34: 03 9173 8231 | AA34: matthew.serpell@jemena.com.au | AD34: YES | AE34: NO | AF34: NO | AH34: CBD | AI34: Urban | AJ34: Short rural | AK34: Long rural | AM34: Jemena Electricity
B35: JGN | C35: Jemena Gas Networks (NSW) Ltd | D35: 003 004 322 | E35: NSW | F35: Gas | G35: Distribution | H35: Weighted average price cap | I35: Financial | J35: June | K35: 5 | L35: 5 | AM35: JGN
B36: Multinet Gas | C36: Multinet Gas (DB No.1) Pty Ltd (ACN 086 026 986), Multinet Gas (DB No.2) Pty Ltd (ACN 086 230 122) | D36: 086026986 | E36: Vic | F36: Gas | G36: Distribution | H36: Weighted average price cap | I36: Calendar | J36: December | K36: 5 | L36: 5 | M36: x | O36: 43-45 Centreway | Q36: MT WAVERLEY | R36: Vic | S36: 3149 | Y36: Andrew Schille | Z36: 03 8846 9860 | AA36: andrew.schille@ue.com.au | AM36: Multinet Gas
B37: Murraylink | C37: Murraylink | D37: 79181207909 | E37: SA | F37: Electricity | G37: Transmission | H37: Revenue cap | I37: Financial | J37: June | K37: 5 | L37: 5 | M37: 5 | N37: transmission determination | O37: Level 19 | P37: 580 George Street | Q37: SYDNEY | R37: NSW | S37: 2000 | Y37: Scott Young | Z37: 02 9275 0031 | AA37: scott.young@apa.com.au | AH37: CBD | AI37: Urban | AJ37: Short rural | AK37: Long rural | AM37: Murraylink
B38: Power and Water | C38: Power and Water Corporation | D38: 15947352360 | E38: NT | F38: Electricity | G38: Distribution | H38: Revenue cap | I38: Financial | J38: June | K38: 5 | L38: 5 | M38: x | N38: distribution determination | O38: GPO Box 1921 | Q38: DARWIN | R38: NT | S38: 0801 | T38: GPO Box 1921 | V38: DARWIN | W38: NT | X38: 0801 | Y38: Lucy Moon | Z38: 08 8924 5822 | AA38: Lucy.Moon@powerwater.com.au | AB38: YES | AC38: YES | AD38: YES | AE38: YES | AF38: NO
B39: Powercor Australia | C39: Powercor Australia | D39: 89064651109 | E39: Vic | F39: Electricity | G39: Distribution | H39: Revenue cap | I39: Calendar | J39: December | K39: 5 | L39: 5 | M39: 2 | N39: 2016-20 Distribution Determination | O39: 40 Market Street | Q39: MELBOURNE | R39: Vic | S39: 3000 | T39: Locked bag 14090 | V39: MELBOURNE | W39: VIC | X39: 8001 | Y39: Hannah Williams | Z39: 03 9683 4088 | AA39: hwilliams@powercor.com.au | AD39: YES | AE39: YES | AF39: NO | AH39: CBD | AI39: Urban | AJ39: Short rural | AK39: Long rural | AM39: Powercor Australia
B40: Powerlink | C40: Queensland Electricity Transmission Corporation Limited trading as Powerlink Queensland | D40: 82078849233 | E40: Qld | F40: Electricity | G40: Transmission | H40: Revenue cap | I40: Financial | J40: June | K40: 5 | L40: 5 | M40: 5 | N40: transmission determination | O40: 33 Harold St | Q40: VIRGINIA | R40: Qld | S40: 4014 | T40: PO Box 1193 | V40: VIRGINIA | W40: QLD | X40: 4014 | Y40: Jennifer Harris | Z40: 07 3860 2667 | AA40: jharris@powerlink.com.au | AH40: CBD | AI40: Urban | AJ40: Short rural | AK40: Long rural | AM40: Powerlink
B41: Roma to Brisbane Pipeline | C41: APT Petroleum Pipelines Limited t/a Roma to Brisbane Pipeline | D41: 009 737 393 | E41: Qld | F41: Gas | G41: Transmission | H41: Weighted average price cap | I41: Financial | J41: June | K41: 5 | L41: 5 | M41: x | N41: n/a | O41: 580 George Street | Q41: SYDNEY | R41: NSW | S41: 2000 | T41: PO Box R41 | V41: ROYAL EXCHANGE | W41: NSW | X41: 1225 | Y41: Mark Allen | Z41: 02 9275 0010 | AA41: mark.allen@apa.com.au | AH41: CBD | AI41: Urban | AJ41: Short rural | AK41: Long rural | AM41: Roma to Brisbane Pipeline
B42: SA Power Networks | C42: SA Power Networks | D42: 13332330749 | E42: SA | F42: Electricity | G42: Distribution | H42: Revenue cap | I42: Financial | J42: June | K42: 5 | L42: 5 | M42: 5 | N42: 2015-20 Distribution Determination | O42: 1 Anzac Highway | Q42: KESWICK | R42: SA | S42: 5035 | T42: GPO Box 77 | V42: ADELAIDE | W42: SA | X42: 5000 | Y42: Richard Sibly | Z42: 08 8404 5613 | AA42: richard.sibly@sapowernetworks.com.au | AD42: YES | AE42: YES | AF42: NO | AH42: CBD | AI42: Urban | AJ42: Short rural | AK42: Long rural | AM42: SA Power Networks
B43: TasNetworks (D) | C43: TasNetworks (D) | D43: 24167357299 | E43: Tas | F43: Electricity | G43: Distribution | H43: Revenue cap | I43: Financial | J43: June | K43: 5 | L43: 5 | M43: 5 | N43: distribution determination | O43: 1-7 Maria Street | Q43: LENAH VALLEY | R43: Tas | S43: 7008 | T43: PO Box 606 | V43: MOONAH | W43: Tas | X43: 7009 | Y43: John Sayers | Z43: 03 6271 6469 | AA43: john.sayers@tasnetworks.com.au | AD43: YES | AE43: YES | AF43: YES | AH43: Critical Infrastructure | AI43: High density commercial | AJ43: Urban | AK43: High density rural | AL43: Low density rural | AM43: TasNetworks (D)
B44: TasNetworks (T) | C44: TasNetworks (T) | D44: 24167357299 | E44: Tas | F44: Electricity | G44: Transmission | H44: Revenue cap | I44: Financial | J44: June | K44: 5 | L44: 5 | M44: 5 | N44: transmission determination | O44: 1-7 Maria Street | Q44: LENAH VALLEY | R44: Tas | S44: 7008 | T44: PO Box 606 | V44: MOONAH | W44: Tas | X44: 7009 | Y44: John Sayers | Z44: 03 6271 6469 | AA44: john.sayers@tasnetworks.com.au | AH44: CBD | AI44: Urban | AJ44: Short rural | AK44: Long rural | AM44: TasNetworks (T)
B45: TransGrid | C45: NSW Electricity Networks Operations Pty Ltd trading as TransGrid | D45: 609169959 | E45: NSW | F45: Electricity | G45: Transmission | H45: Revenue cap | I45: Financial | J45: June | K45: 5 | L45: 4 | M45: 5 | N45: transmission determination | O45: 180 Thomas Street | Q45: SYDNEY | R45: NSW | S45: 2000 | T45: PO Box A1000 | V45: SYDNEY SOUTH | W45: NSW | X45: 1235 | Y45: Garrie Chubb | Z45: 0408 210 221 | AA45: garrie.chubb@transgrid.com.au | AH45: CBD | AI45: Urban | AJ45: Short rural | AK45: Long rural | AM45: TransGrid
B46: United Energy | C46: United Energy | D46: 70064651029 | E46: Vic | F46: Electricity | G46: Distribution | H46: Revenue cap | I46: Calendar | J46: December | K46: 5 | L46: 5 | M46: 2 | N46: 2016-20 Distribution Determination | O46: Level 3 | P46: 6 Nexus Court | Q46: MULGRAVE | R46: Vic | S46: 3149 | T46: PO Box 449 | V46: MOUNT WAVERLEY | W46: VIC | X46: 3170 | Y46: Mathew Abraham | Z46: 03 8846 9758 | AA46: mathew.abraham@ue.com.au | AD46: YES | AE46: NO | AF46: NO | AH46: CBD | AI46: Urban | AJ46: Short rural | AK46: Long rural | AM46: United Energy
B47: Western Power (D) | C47: Western Power (D) | D47: 18540492861 | E47: WA | F47: Electricity | G47: Distribution | H47: Revenue cap | I47: Financial | J47: June | K47: 12 | L47: 4 | M47: x | N47: distribution determination | O47: 363 Wellington Street | Q47: PERTH | R47: WA | S47: 6000 | T47: GPO Box L921 | V47: PERTH | W47: WA | X47: 6842 | Y47: Judy Hunter | Z47: 08 9326 6239 | AA47: judy.hunter@westernpower.com.au | AD47: YES | AE47: YES | AF47: NO | AG47: NO | AH47: CBD | AI47: Urban | AJ47: Short rural | AK47: Long rural | AM47: Western Power (D)
B48: Western Power (T) | C48: Western Power (T) | D48: 18540492861 | E48: WA | F48: Electricity | G48: Transmission | H48: Revenue cap | I48: Financial | J48: June | K48: 12 | L48: 4 | M48: x | N48: transmission determination | O48: 363 Wellington Street | Q48: PERTH | R48: WA | S48: 6000 | T48: GPO Box L921 | V48: PERTH | W48: WA | X48: 6842 | Y48: Judy Hunter | Z48: 08 9326 6239 | AA48: judy.hunter@westernpower.com.au | AD48: YES | AE48: YES | AF48: NO | AH48: CBD | AI48: Urban | AJ48: Short rural | AK48: Long rural | AM48: Western Power (T)
Y51: For EB & Reset RINs only | AD51: For AARs only
B52: The Reg Year Ending (dms_RYE) must be set to the last year of the regulatory period. For forecast data is is usually (FRCP_y5) for actual it is a single year (CRY). For historical actual data the RYE will need to be set manually in the business details sheet by setting the dms_Multiyear_flag to 1 and putting the correct value in 'dms_Specified_FinalYear. See cells C67:C68 | G52: =IF(dms_RPT="financial",VALUE(LEFT(CRCP_y1,4)-1)&"-"&TEXT(VALUE(RIGHT(CRCP_y1,2)-1),"00"),VALUE(LEFT(CRCP_y1,4)-1)) -> 2012-13 | N52: Drop down selector box for CA & Reset RINs. | O52: For CA & Reset RINs only | Y52: for DNSP only | AD52: For DNSPs only | AJ52: Reason for interruption | AK52: dms_Reason_Interruption_Detailed | AL52: dms_Reason_Interruption | AM52: dms_STPIS_Exclusion_List
B53: dms_Model_List | C53: DELETE NR 'CRY' IF NOT AN ANNUAL RIN (EB, CA , ARR) | E53: dms_RYE_Formula_Result | N53: dms_0203_ProjectType | O53: dms_020303_01_UOM | P53: dms_020501_01_UOM | Q53: dms_020501_02_UOM | R53: dms_020501_03_UOM | S53: dms_020501_04_UOM | T53: dms_020603_01_UOM | U53: dms_020701_01_UOM | V53: dms_020701_02_UOM | W53: dms_040102_01_UOM | X53: dms_040102_04_UOM | Y53: dms_030601_01_UOM | Z53: dms_030601_02_UOM | AA53: dms_030701_01_UOM | AB53: dms_030702_01_UOM | AC53: dms_030703_01_UOM | AD53: dms_030605_UOM | AE53: dms_03060703_UOM | AJ53: Animal | AK53: Animal impact | AL53: Animal | AM53: Weather
B54: ARR | C54: ANNUAL REPORTING STATEMENT | E54: =LEFT(dms_SingleYear_FinalYear_Result,2)&RIGHT(dms_SingleYear_FinalYear_Result,2) -> 2006 | F54: =LEFT(dms_SingleYear_FinalYear_Result,2)&RIGHT(dms_SingleYear_FinalYear_Result,2) | H54: Formula errors are OK | N54: New line on new route - single circuit | O54: Circuit line length in km | P54: 0's | Q54: 0's | R54: 0's | S54: 0's | T54: 0's | U54: km | V54: km | W54: 0's | X54: days | Y54: minutes/customer | Z54: minutes/customer | AA54: Customer / km | AB54: % | AC54: km | AD54: number | AE54: number | AK54: Animal nesting/burrowing, etc and other | AL54: Asset failure | AM54: Equipment failure
B55: CA | C55: CATEGORY ANALYSIS | E55: =LEFT(dms_SingleYear_FinalYear_Result,2)&RIGHT(dms_SingleYear_FinalYear_Result,2) -> 2006 | F55: =LEFT(dms_SingleYear_FinalYear_Result,2)&RIGHT(dms_SingleYear_FinalYear_Result,2) | H55: Formula errors are OK | N55: New line on new route - dual circuit | O55: Circuit line length in km | P55: 0's | Q55: 0's | R55: 0's | S55: 0's | T55: 0's | U55: 0's | V55: 0's | W55: 0's | X55: 0's | Y55: minutes/customer | Z55: minutes/customer | AA55: MWh/customer | AB55: Number of spans | AD55: number | AE55: number | AK55: Other | AL55: Other | AM55: Operational error
B56: CPI | C56: CPI | N56: New line on new route - other | O56: Circuit line length in km | P56: MVA added | Q56: MVA added | R56: MVA added | S56: MVA added | T56: 0's | U56: km | V56: km | W56: 0's | X56: $0s | Y56: interruptions/customer | Z56: interruptions/customer | AA56: kVA / customer | AB56: Number of spans | AD56: number | AE56: number | AJ56: Asset failure | AK56: LV | AL56: Overloads | AM56: Vegetation
B57: EB | C57: ECONOMIC BENCHMARKING | E57: =LEFT(dms_SingleYear_FinalYear_Result,2)&RIGHT(dms_SingleYear_FinalYear_Result,2) -> 2006 | F57: =LEFT(dms_SingleYear_FinalYear_Result,2)&RIGHT(dms_SingleYear_FinalYear_Result,2) | H57: Formula errors are OK | N57: Line rebuild over existing route - single circuit | O57: Circuit line length in km | P57: 0's | Q57: 0's | R57: 0's | S57: 0's | T57: 0's | U57: km | V57: km | W57: $0s | X57: 0's | Y57: interruptions/customer | Z57: interruptions/customer | AB57: Number of spans | AD57: number | AE57: number | AK57: Distribution substation | AL57: Planned | AM57: Animals
B58: PTRM | C58: POST TAX REVENUE MODEL | E58: =LEFT(dms_MultiYear_FinalYear_Result,2)&RIGHT(dms_MultiYear_FinalYear_Result,2) -> 2017 | F58: =LEFT(dms_MultiYear_FinalYear_Result,2)&RIGHT(dms_MultiYear_FinalYear_Result,2) | N58: Line rebuild over existing route - dual circuit | O58: Number | P58: total spend $0s | Q58: total spend $0s | R58: total spend $0s | S58: total spend $0s | T58: (per cent) | U58: 0's | V58: 0's | AB58: Number of spans | AD58: number | AE58: (per cent) | AK58: HV | AL58: Network business | AM58: Third party impacts
B59: Reset | C59: REGULATORY REPORTING STATEMENT | E59: =LEFT(dms_MultiYear_FinalYear_Result,2)&RIGHT(dms_MultiYear_FinalYear_Result,2) -> 2017 | F59: =LEFT(dms_MultiYear_FinalYear_Result,2)&RIGHT(dms_MultiYear_FinalYear_Result,2) | H59: Formula errors are OK | N59: Reconductor - Single circuit | O59: Number | P59: net circuit km added | Q59: net circuit km added | R59: net circuit km added | S59: net circuit km added | U59: years | V59: years | AB59: Years | AD59: number | AK59: Zone substation | AL59: Third party | AM59: Transmission failure
B60: RFM | C60: ROLL FORWARD MODEL | E60: =LEFT(dms_CRCP_FinalYear_Result,2)&RIGHT(dms_CRCP_FinalYear_Result,2) -> 2017 | F60: =LEFT(dms_CRCP_FinalYear_Result,2)&RIGHT(dms_CRCP_FinalYear_Result,2) | N60: Reconductor - Dual circuit | O60: Number | P60: total spend $0s | Q60: total spend $0s | R60: total spend $0s | S60: total spend $0s | AB60: Years | AD60: number | AK60: Subtransmission | AL60: Unknown | AM60: Load shedding
B61: WACC | C61: WEIGHTED AVERAGE COST OF CAPITAL | E61: =LEFT(dms_MultiYear_FinalYear_Result,2)&RIGHT(dms_MultiYear_FinalYear_Result,2) -> 2017 | F61: =LEFT(dms_MultiYear_FinalYear_Result,2)&RIGHT(dms_MultiYear_FinalYear_Result,2) | N61: Other | P61: net circuit km added | Q61: net circuit km added | R61: net circuit km added | S61: net circuit km added | AB61: Trees | AD61: number | AJ61: Other | AK61: insert description of 'other' | AL61: Vegetation | AM61: Inter-distributor connection failure
P62: total spend $0s | Q62: total spend $0s | R62: total spend $0s | S62: total spend $0s | AB62: Trees | AD62: number | AJ62: Overloads | AK62: - | AL62: Weather | AM62: Other
B63: dms_DataQuality_List | P63: 0's | R63: $0s | AB63: Defects | AD63: number | AJ63: Planned | AK63: - | AL63: 2 - STPIS Exclusion (3.3)(a)
B64: Actual | P64: 0's | AB64: Defects | AD64: number | AJ64: Network business | AK64: Network error | AL64: 3 - STPIS Exclusion (3.3)(a)
B65: Estimate | P65: 0's | AB65: Spans | AD65: number | AK65: Switching and protection error | AL65: 4 - STPIS Exclusion (3.3)(a)
B66: Consolidated | P66: $0s | AB66: km | AD66: (per cent) | AJ66: Third party | AK66: Fire | AL66: 5 - STPIS Exclusion (3.3)(a)
B67: Recast | AB67: Spans | AD67: (per cent) | AK67: Other | AL67: 6 - STPIS Exclusion (3.3)(a)
B68: Public | AK68: Dig-in | AL68: 7 - STPIS Exclusion (3.3)(a)
AK69: Unauthorised access
B70: For all files either AER or business needs to be able to specify the type of submission | C70: For PTRM & RFM templates we must provide a choice in case they change their form of control - otherwise it is drawn from the business specific lookup table above. | O70: For PTRM files - this field set the text for the named range "DMS_Xfactor" which in all cases is simply the text "x factors" - this saves putting in each old gas PTRM file | Y70: for TNSP only | AK70: Vehicle impact
B71: dms_SourceList | C71: dms_FormControl_Choices | O71: DMS_Xfactor | Y71: dms_030601_01_UOM | AA71: dms_030701_01_UOM | AB71: dms_030702_01_UOM | AJ71: Unknown | AK71: Unknown
B72: After appeal | C72: Revenue cap | O72: x factors | Y72: % | AA72: Number of spans | AB72: km | AJ72: Vegetation | AK72: Blow-in/Fall-in - NSP responsibility
B73: Draft decision | C73: Revenue yield | Y73: number | AA73: Years | AB73: % | AK73: Grow-in - NSP responsibility
B74: Final decision | C74: Weighted average price cap | Y74: number | AA74: Trees | AB74: km | AK74: Blow-in/Fall-in - Other responsible party
B75: PTRM update 1 | Y75: % | AA75: Defects | AB75: number | AK75: Grow-in - Other responsible party
B76: PTRM update 2 | Y76: number | AA76: Number of spans | AJ76: Weather
B77: PTRM update 3 | Y77: number | AA77: km | AJ77: 2 - STPIS Exclusion (3.3)(a)
B78: PTRM update 4 | Y78: % | AA78: km | AJ78: 3 - STPIS Exclusion (3.3)(a)
B79: PTRM update 5 | Y79: number | AA79: Number of spans | AJ79: 4 - STPIS Exclusion (3.3)(a)
B80: PTRM update 6 | Y80: number | AJ80: 5 - STPIS Exclusion (3.3)(a)
B81: PTRM update 7 | Y81: % | AJ81: 6 - STPIS Exclusion (3.3)(a)
B82: Regulatory proposal | Y82: number | AJ82: 7 - STPIS Exclusion (3.3)(a)
B83: Reporting | Y83: %
B84: Revised regulatory proposal | Y84: number
Y85: %
Y86: number
B90: These are indeces and lookup values for various dates. All step from the value placed in FRCP_y1 on the business and other details worksheet | L90: These date tables are currently used in the Recast templates to provide column headings and conditional formatting
B91: dms_FRCPlength_Num_List | C91: dms_FinalYear_List | D91: dms_CRCPlength_Num_List | E91: dms_CFinalYear_List | F91: dms_FRCP_years | H91: dms_CRCP_years | J91: dms_CRCP_index | L91: CRY from input cell on business sheet | M91: CRY - financial | N91: dms_FinYears | O91: CRY calendar | P91: dms_CalYears
B92: 1 | C92: dms_FRCP_y1 | D92: 1 | E92: CRCP_y1 | F92: =FRCP_y1 -> 2018-19 | G92: dms_FRCP_y1 | H92: =IF(dms_RPT="financial",VALUE(LEFT(dms_FRCP_y1,4)-1)&"-"&TEXT(VALUE(MID(dms_FRCP_y1,3,2)),"00"),VALUE(LEFT(dms_FRCP_y1,4)-1)) -> 2017-18 | I92: dms_CRCP_yZ | J92: 1 | L92: =CRY -> 2005-06 | M92: =VALUE(LEFT(CRY,4))&"-"&TEXT(MID(CRY,3,2)+1,"00") -> 2005-06 | N92: dms_CRYf_y1 | O92: =VALUE(LEFT(CRY,4)+1) -> 2006 | P92: dms_CRYc_y1
B93: 2 | C93: dms_FRCP_y2 | D93: 2 | E93: CRCP_y2 | F93: =IF(dms_RPT="financial",VALUE(LEFT(dms_FRCP_y1,4)+1)&"-"&TEXT(VALUE(RIGHT(dms_FRCP_y1,2)+1),"00"),VALUE(LEFT(dms_FRCP_y1,4)+1)) -> 2019-20 | G93: dms_FRCP_y2 | H93: =IF(dms_RPT="financial",VALUE(LEFT(dms_CRCP_yZ,4)-1)&"-"&TEXT(VALUE(MID(dms_CRCP_yZ,3,2)),"00"),VALUE(LEFT(dms_CRCP_yZ,4)-1)) -> 2016-17 | I93: dms_CRCP_yY | J93: 2 | M93: =VALUE(LEFT(dms_CRYf_y1,4)+1)&"-"&TEXT(MID(dms_CRYf_y1,3,2)+2,"00") -> 2006-07 | N93: dms_CRYf_y2 | O93: =VALUE(LEFT(dms_CRYc_y1,4)+1) -> 2007 | P93: dms_CRYc_y2
B94: 3 | C94: dms_FRCP_y3 | D94: 3 | E94: CRCP_y3 | F94: =IF(dms_RPT="financial",VALUE(LEFT(dms_FRCP_y2,4)+1)&"-"&TEXT(VALUE(RIGHT(dms_FRCP_y2,2)+1),"00"),VALUE(LEFT(dms_FRCP_y2,4)+1)) -> 2020-21 | G94: dms_FRCP_y3 | H94: =IF(dms_RPT="financial",VALUE(LEFT(dms_CRCP_yY,4)-1)&"-"&TEXT(VALUE(MID(dms_CRCP_yY,3,2)),"00"),VALUE(LEFT(dms_CRCP_yY,4)-1)) -> 2015-16 | I94: dms_CRCP_yX | J94: 3 | M94: =VALUE(LEFT(dms_CRYf_y2,4)+1)&"-"&TEXT(MID(dms_CRYf_y2,3,2)+2,"00") -> 2007-08 | N94: dms_CRYf_y3 | O94: =VALUE(LEFT(dms_CRYc_y2,4)+1) -> 2008 | P94: dms_CRYc_y3
B95: 4 | C95: dms_FRCP_y4 | D95: 4 | E95: CRCP_y4 | F95: =IF(dms_RPT="financial",VALUE(LEFT(dms_FRCP_y3,4)+1)&"-"&TEXT(VALUE(RIGHT(dms_FRCP_y3,2)+1),"00"),VALUE(LEFT(dms_FRCP_y3,4)+1)) -> 2021-22 | G95: dms_FRCP_y4 | H95: =IF(dms_RPT="financial",VALUE(LEFT(dms_CRCP_yX,4)-1)&"-"&TEXT(VALUE(MID(dms_CRCP_yX,3,2)),"00"),VALUE(LEFT(dms_CRCP_yX,4)-1)) -> 2014-15 | I95: dms_CRCP_yW | J95: 4 | M95: =VALUE(LEFT(dms_CRYf_y3,4)+1)&"-"&TEXT(MID(dms_CRYf_y3,3,2)+2,"00") -> 2008-09 | N95: dms_CRYf_y4 | O95: =VALUE(LEFT(dms_CRYc_y3,4)+1) -> 2009 | P95: dms_CRYc_y4
B96: 5 | C96: dms_FRCP_y5 | D96: 5 | E96: CRCP_y5 | F96: =IF(dms_RPT="financial",VALUE(LEFT(dms_FRCP_y4,4)+1)&"-"&TEXT(VALUE(RIGHT(dms_FRCP_y4,2)+1),"00"),VALUE(LEFT(dms_FRCP_y4,4)+1)) -> 2022-23 | G96: dms_FRCP_y5 | H96: =IF(dms_RPT="financial",VALUE(LEFT(dms_CRCP_yW,4)-1)&"-"&TEXT(VALUE(MID(dms_CRCP_yW,3,2)),"00"),VALUE(LEFT(dms_CRCP_yW,4)-1)) -> 2013-14 | I96: dms_CRCP_yV | J96: 5 | M96: =VALUE(LEFT(dms_CRYf_y4,4)+1)&"-"&TEXT(MID(dms_CRYf_y4,3,2)+2,"00") -> 2009-10 | N96: dms_CRYf_y5 | O96: =VALUE(LEFT(dms_CRYc_y4,4)+1) -> 2010 | P96: dms_CRYc_y5
B97: 6 | C97: dms_FRCP_y6 | D97: 6 | E97: CRCP_y6 | F97: =IF(dms_RPT="financial",VALUE(LEFT(dms_FRCP_y5,4)+1)&"-"&TEXT(VALUE(RIGHT(dms_FRCP_y5,2)+1),"00"),VALUE(LEFT(dms_FRCP_y5,4)+1)) -> 2023-24 | G97: dms_FRCP_y6 | H97: =IF(dms_RPT="financial",VALUE(LEFT(dms_CRCP_yV,4)-1)&"-"&TEXT(VALUE(MID(dms_CRCP_yV,3,2)),"00"),VALUE(LEFT(dms_CRCP_yV,4)-1)) -> 2012-13 | I97: dms_CRCP_yU | J97: 6 | M97: =VALUE(LEFT(dms_CRYf_y5,4)+1)&"-"&TEXT(MID(dms_CRYf_y5,3,2)+2,"00") -> 2010-11 | N97: dms_CRYf_y6 | O97: =VALUE(LEFT(dms_CRYc_y5,4)+1) -> 2011 | P97: dms_CRYc_y6
B98: 7 | C98: dms_FRCP_y7 | D98: 7 | E98: CRCP_y7 | F98: =IF(dms_RPT="financial",VALUE(LEFT(dms_FRCP_y6,4)+1)&"-"&TEXT(VALUE(RIGHT(dms_FRCP_y6,2)+1),"00"),VALUE(LEFT(dms_FRCP_y6,4)+1)) -> 2024-25 | G98: dms_FRCP_y7 | H98: =IF(dms_RPT="financial",VALUE(LEFT(dms_CRCP_yU,4)-1)&"-"&TEXT(VALUE(MID(dms_CRCP_yU,3,2)),"00"),VALUE(LEFT(dms_CRCP_yU,4)-1)) -> 2011-12 | I98: dms_CRCP_yT | J98: 7 | M98: =VALUE(LEFT(dms_CRYf_y6,4)+1)&"-"&TEXT(MID(dms_CRYf_y6,3,2)+2,"00") -> 2011-12 | N98: dms_CRYf_y7 | O98: =VALUE(LEFT(dms_CRYc_y6,4)+1) -> 2012 | P98: dms_CRYc_y7
B99: 8 | C99: dms_FRCP_y8 | D99: 8 | E99: CRCP_y8 | F99: =IF(dms_RPT="financial",VALUE(LEFT(dms_FRCP_y7,4)+1)&"-"&TEXT(VALUE(RIGHT(dms_FRCP_y7,2)+1),"00"),VALUE(LEFT(dms_FRCP_y7,4)+1)) -> 2025-26 | G99: dms_FRCP_y8 | H99: =IF(dms_RPT="financial",VALUE(LEFT(dms_CRCP_yT,4)-1)&"-"&TEXT(VALUE(MID(dms_CRCP_yT,3,2)),"00"),VALUE(LEFT(dms_CRCP_yT,4)-1)) -> 2010-11 | I99: dms_CRCP_yS | J99: 8 | M99: =VALUE(LEFT(dms_CRYf_y7,4)+1)&"-"&TEXT(MID(dms_CRYf_y7,3,2)+2,"00") -> 2012-13 | N99: dms_CRYf_y8 | O99: =VALUE(LEFT(dms_CRYc_y7,4)+1) -> 2013 | P99: dms_CRYc_y8
B100: 9 | C100: dms_FRCP_y9 | D100: 9 | E100: CRCP_y9 | F100: =IF(dms_RPT="financial",VALUE(LEFT(dms_FRCP_y8,4)+1)&"-"&TEXT(VALUE(RIGHT(dms_FRCP_y8,2)+1),"00"),VALUE(LEFT(dms_FRCP_y8,4)+1)) -> 2026-27 | G100: dms_FRCP_y9 | H100: =IF(dms_RPT="financial",VALUE(LEFT(dms_CRCP_yS,4)-1)&"-"&TEXT(VALUE(MID(dms_CRCP_yS,3,2)),"00"),VALUE(LEFT(dms_CRCP_yS,4)-1)) -> 2009-10 | I100: dms_CRCP_yR | J100: 9 | M100: =VALUE(LEFT(dms_CRYf_y8,4)+1)&"-"&TEXT(MID(dms_CRYf_y8,3,2)+2,"00") -> 2013-14 | N100: dms_CRYf_y9 | O100: =VALUE(LEFT(dms_CRYc_y8,4)+1) -> 2014 | P100: dms_CRYc_y9
B101: 10 | C101: dms_FRCP_y10 | D101: 10 | E101: CRCP_y10 | F101: =IF(dms_RPT="financial",VALUE(LEFT(dms_FRCP_y9,4)+1)&"-"&TEXT(VALUE(RIGHT(dms_FRCP_y9,2)+1),"00"),VALUE(LEFT(dms_FRCP_y9,4)+1)) -> 2027-28 | G101: dms_FRCP_y10 | H101: =IF(dms_RPT="financial",VALUE(LEFT(dms_CRCP_yR,4)-1)&"-"&TEXT(VALUE(MID(dms_CRCP_yR,3,2)),"00"),VALUE(LEFT(dms_CRCP_yR,4)-1)) -> 2008-09 | I101: dms_CRCP_yQ | J101: 10 | M101: =VALUE(LEFT(dms_CRYf_y9,4)+1)&"-"&TEXT(MID(dms_CRYf_y9,3,2)+2,"00") -> 2014-15 | N101: dms_CRYf_y10 | O101: =VALUE(LEFT(dms_CRYc_y9,4)+1) -> 2015 | P101: dms_CRYc_y10
B102: 11 | C102: dms_FRCP_y11 | D102: 11 | E102: CRCP_y11 | F102: =IF(dms_RPT="financial",VALUE(LEFT(dms_FRCP_y10,4)+1)&"-"&TEXT(VALUE(RIGHT(dms_FRCP_y10,2)+1),"00"),VALUE(LEFT(dms_FRCP_y10,4)+1)) -> 2028-29 | G102: dms_FRCP_y11 | H102: =IF(dms_RPT="financial",VALUE(LEFT(dms_CRCP_yQ,4)-1)&"-"&TEXT(VALUE(MID(dms_CRCP_yQ,3,2)),"00"),VALUE(LEFT(dms_CRCP_yQ,4)-1)) -> 2007-08 | I102: dms_CRCP_yP | J102: 11 | M102: =VALUE(LEFT(dms_CRYf_y10,4)+1)&"-"&TEXT(MID(dms_CRYf_y10,3,2)+2,"00") -> 2015-16 | N102: dms_CRYf_y11 | O102: =VALUE(LEFT(dms_CRYc_y10,4)+1) -> 2016 | P102: dms_CRYc_y11
B103: 12 | C103: dms_FRCP_y12 | D103: 12 | E103: CRCP_y12 | F103: =IF(dms_RPT="financial",VALUE(LEFT(dms_FRCP_y11,4)+1)&"-"&TEXT(VALUE(RIGHT(dms_FRCP_y11,2)+1),"00"),VALUE(LEFT(dms_FRCP_y11,4)+1)) -> 2029-30 | G103: dms_FRCP_y12 | H103: =IF(dms_RPT="financial",VALUE(LEFT(dms_CRCP_yP,4)-1)&"-"&TEXT(VALUE(MID(dms_CRCP_yP,3,2)),"00"),VALUE(LEFT(dms_CRCP_yP,4)-1)) -> 2006-07 | I103: dms_CRCP_yO | J103: 12 | M103: =VALUE(LEFT(dms_CRYf_y11,4)+1)&"-"&TEXT(MID(dms_CRYf_y11,3,2)+2,"00") -> 2016-17 | N103: dms_CRYf_y12 | O103: =VALUE(LEFT(dms_CRYc_y11,4)+1) -> 2017 | P103: dms_CRYc_y12
B104: 13 | C104: dms_FRCP_y13 | D104: 13 | E104: CRCP_y13 | F104: =IF(dms_RPT="financial",VALUE(LEFT(dms_FRCP_y12,4)+1)&"-"&TEXT(VALUE(RIGHT(dms_FRCP_y12,2)+1),"00"),VALUE(LEFT(dms_FRCP_y12,4)+1)) -> 2030-31 | G104: dms_FRCP_y13 | H104: =IF(dms_RPT="financial",VALUE(LEFT(dms_CRCP_yO,4)-1)&"-"&TEXT(VALUE(MID(dms_CRCP_yO,3,2)),"00"),VALUE(LEFT(dms_CRCP_yO,4)-1)) -> 2005-06 | I104: dms_CRCP_yN | J104: 13 | M104: =VALUE(LEFT(dms_CRYf_y12,4)+1)&"-"&TEXT(MID(dms_CRYf_y12,3,2)+2,"00") -> 2017-18 | N104: dms_CRYf_y13 | O104: =VALUE(LEFT(dms_CRYc_y12,4)+1) -> 2018 | P104: dms_CRYc_y13
B105: 14 | C105: dms_FRCP_y14 | D105: 14 | E105: CRCP_y14 | F105: =IF(dms_RPT="financial",VALUE(LEFT(dms_FRCP_y13,4)+1)&"-"&TEXT(VALUE(RIGHT(dms_FRCP_y13,2)+1),"00"),VALUE(LEFT(dms_FRCP_y13,4)+1)) -> 2031-32 | G105: dms_FRCP_y14 | H105: =IF(dms_RPT="financial",VALUE(LEFT(dms_CRCP_yN,4)-1)&"-"&TEXT(VALUE(MID(dms_CRCP_yN,3,2)),"00"),VALUE(LEFT(dms_CRCP_yN,4)-1)) -> 2004-05 | I105: dms_CRCP_yM | J105: 14 | M105: =VALUE(LEFT(dms_CRYf_y13,4)+1)&"-"&TEXT(MID(dms_CRYf_y13,3,2)+2,"00") -> 2018-19 | N105: dms_CRYf_y14 | O105: =VALUE(LEFT(dms_CRYc_y13,4)+1) -> 2019 | P105: dms_CRYc_y14
B106: 15 | C106: dms_FRCP_y15 | D106: 15 | E106: CRCP_y15 | F106: =IF(dms_RPT="financial",VALUE(LEFT(dms_FRCP_y14,4)+1)&"-"&TEXT(VALUE(RIGHT(dms_FRCP_y14,2)+1),"00"),VALUE(LEFT(dms_FRCP_y14,4)+1)) -> 2032-33 | G106: dms_FRCP_y15 | H106: =IF(dms_RPT="financial",VALUE(LEFT(dms_CRCP_yM,4)-1)&"-"&TEXT(VALUE(MID(dms_CRCP_yM,3,2)),"00"),VALUE(LEFT(dms_CRCP_yM,4)-1)) -> 2003-04 | I106: dms_CRCP_yL | J106: 15 | M106: =VALUE(LEFT(dms_CRYf_y14,4)+1)&"-"&TEXT(MID(dms_CRYf_y14,3,2)+2,"00") -> 2019-20 | N106: dms_CRYf_y15 | O106: =VALUE(LEFT(dms_CRYc_y14,4)+1) -> 2020 | P106: dms_CRYc_y15
M107: =VALUE(LEFT(dms_CRYf_y15,4)+1)&"-"&TEXT(MID(dms_CRYf_y15,3,2)+2,"00") -> 2020-21 | N107: dms_CRYf_y16 | O107: =VALUE(LEFT(dms_CRYc_y15,4)+1) -> 2021 | P107: dms_CRYc_y16
B108: These are drop down lists for businesses to select the correct FRCP_y1 on the business and other details worksheet. This also populates the column headings in the worksheets | M108: =VALUE(LEFT(dms_CRYf_y16,4)+1)&"-"&TEXT(MID(dms_CRYf_y16,3,2)+2,"00") -> 2021-22 | N108: dms_CRYf_y17 | O108: =VALUE(LEFT(dms_CRYc_y16,4)+1) -> 2022 | P108: dms_CRYc_y17
B109: dms_RCP_fyear_list | C109: dms_CRY_ListF | D109: dms_CRY_ListC | E109: dms_RCP_cyear_list | F109: dms_FRCP_fyear_list | G109: dms_FRCP_ListF | H109: dms_FRCP_ListC | I109: dms_FRCP_cyear_list | M109: =VALUE(LEFT(dms_CRYf_y17,4)+1)&"-"&TEXT(MID(dms_CRYf_y17,3,2)+2,"00") -> 2022-23 | N109: dms_CRYf_y18 | O109: =VALUE(LEFT(dms_CRYc_y17,4)+1) -> 2023 | P109: dms_CRYc_y18
B110: dms_fy1 | C110: 2005-06 | D110: 2006 | E110: dms_cy1 | F110: dms_frcp_fy1 | G110: 2015-16 | H110: 2016 | I110: dms_crcp_cy1 | M110: =VALUE(LEFT(dms_CRYf_y18,4)+1)&"-"&TEXT(MID(dms_CRYf_y18,3,2)+2,"00") -> 2023-24 | N110: dms_CRYf_y19 | O110: =VALUE(LEFT(dms_CRYc_y18,4)+1) -> 2024 | P110: dms_CRYc_y19
B111: dms_fy2 | C111: 2006-07 | D111: 2007 | E111: dms_cy2 | F111: dms_frcp_fy2 | G111: 2016-17 | H111: 2017 | I111: dms_crcp_cy2 | M111: =VALUE(LEFT(dms_CRYf_y19,4)+1)&"-"&TEXT(MID(dms_CRYf_y19,3,2)+2,"00") -> 2024-25 | N111: dms_CRYf_y20 | O111: =VALUE(LEFT(dms_CRYc_y19,4)+1) -> 2025 | P111: dms_CRYc_y20
B112: dms_fy3 | C112: 2007-08 | D112: 2008 | E112: dms_cy3 | F112: dms_frcp_fy3 | G112: 2017-18 | H112: 2018 | I112: dms_crcp_cy3
B113: dms_fy4 | C113: 2008-09 | D113: 2009 | E113: dms_cy4 | F113: dms_frcp_fy4 | G113: 2018-19 | H113: 2019 | I113: dms_crcp_cy4
B114: dms_fy5 | C114: 2009-10 | D114: 2010 | E114: dms_cy5 | F114: dms_frcp_fy5 | G114: 2019-20 | H114: 2020 | I114: dms_crcp_cy5
B115: dms_fy6 | C115: 2010-11 | D115: 2011 | E115: dms_cy6 | F115: dms_frcp_fy6 | G115: 2020-21 | H115: 2021 | I115: dms_crcp_cy6
B116: dms_fy7 | C116: 2011-12 | D116: 2012 | E116: dms_cy7 | F116: dms_frcp_fy7 | G116: 2021-22 | H116: 2022 | I116: dms_crcp_cy7
B117: dms_fy8 | C117: 2012-13 | D117: 2013 | E117: dms_cy8 | F117: dms_frcp_fy8 | G117: 2022-23 | H117: 2023 | I117: dms_crcp_cy8 | L117: 2005-06 | M117: 2006
B118: dms_fy9 | C118: 2013-14 | D118: 2014 | E118: dms_cy9 | F118: dms_frcp_fy9 | G118: 2023-24 | H118: 2024 | I118: dms_crcp_cy9 | L118: 2006-07 | M118: 2007
B119: dms_fy10 | C119: 2014-15 | D119: 2015 | E119: dms_cy10 | F119: dms_frcp_fy10 | G119: 2024-25 | H119: 2025 | I119: dms_crcp_cy10 | L119: 2007-08 | M119: 2008
B120: dms_fy11 | C120: 2015-16 | D120: 2016 | E120: dms_cy11 | F120: dms_frcp_fy11 | G120: 2025-26 | H120: 2026 | I120: dms_crcp_cy11 | L120: 2008-09 | M120: 2009
B121: dms_fy12 | C121: 2016-17 | D121: 2017 | E121: dms_cy12 | F121: dms_frcp_fy12 | G121: 2026-27 | H121: 2027 | I121: dms_crcp_cy12 | L121: 2009-10 | M121: 2010
B122: dms_fy13 | C122: 2017-18 | D122: 2018 | E122: dms_cy13 | F122: dms_frcp_fy13 | G122: 2027-28 | H122: 2028 | I122: dms_crcp_cy13 | L122: 2010-11 | M122: 2011
B123: dms_fy14 | C123: 2018-19 | D123: 2019 | E123: dms_cy14 | F123: dms_frcp_fy14 | G123: 2028-29 | H123: 2029 | I123: dms_crcp_cy14 | L123: 2011-12 | M123: 2012
B124: dms_fy15 | C124: 2019-20 | D124: 2020 | E124: dms_cy15 | F124: dms_frcp_fy15 | G124: 2029-30 | H124: 2030 | I124: dms_crcp_cy15 | L124: 2012-13 | M124: 2013
B125: dms_fy16 | C125: 2020-21 | D125: 2021 | E125: dms_cy16 | L125: 2013-14 | M125: 2014
B126: dms_fy17 | C126: 2021-22 | D126: 2022 | E126: dms_cy17 | L126: 2014-15 | M126: 2015
B127: dms_fy18 | C127: 2022-23 | D127: 2023 | E127: dms_cy18 | L127: 2015-16 | M127: 2016
B128: dms_fy19 | C128: 2023-24 | D128: 2024 | E128: dms_cy19 | L128: 2016-17 | M128: 2017
B129: dms_fy20 | C129: 2024-25 | D129: 2025 | E129: dms_cy20 | L129: 2017-18 | M129: 2018
L130: 2018-19 | M130: 2019
L131: 2019-20 | M131: 2020
L132: 2020-21 | M132: 2021
L133: 2021-22 | M133: 2022
L134: 2022-23 | M134: 2023
L135: 2023-24 | M135: 2024
L136: 2024-25 | M136: 2025
L137: 2025-26 | M137: 2026
L138: 2026-27 | M138: 2027
L139: 2027-28 | M139: 2028
L140: 2028-29 | M140: 2029
L141: 2029-30 | M141: 2030
L142: 2030-31 | M142: 2031
L143: 2031-32 | M143: 2032
L144: 2032-33 | M144: 2033
L145: 2033-34 | M145: 2034
L146: 2034-35 | M146: 2035
L147: 2035-36 | M147: 2036

Sheet Contents
B1: REGULATORY REPORTING STATEMENT
B2: =dms_TradingName -> Power and Water
B3: ECONOMIC BENCHMARKING - HISTORICAL
B5: CONTENTS
B13: 3. ECONOMIC BENCHMARKING

Sheet Instructions
B2: =CONCATENATE(dms_Segment," Network Service Provider") -> Distribution Network Service Provider
B3: Historical Reporting RIN Template
C4: =CONCATENATE("This template is to be used by ",dms_TradingName," to fulfil its reporting obligations to the AER.") -> This template is to be used by Power and Water to fulfil its reporting obligations to the AER.
C5: INSTRUCTIONS
C6: Complete the Business & other details worksheet before entering data or values in any other worksheets. The Business & other details worksheet is linked to other worksheets within the workbook and automatically generates certain column headings and conditional formatting.
C8: Identifying CONFIDENTIAL INFORMATION: Please use the macro at the top of each worksheet to identify confidential information.
C9: -Do this by selecting the cell or cells that contain confidential information and then run the Mark selection CONFIDENTIAL macro. This will format the cells a specific colour that is identified by the AER's database which in turn marks that information as confidential. -To reverse this, select the cell or cells and run the Return selection to NON-CONFIDENTIAL macro.
C11: UNITS OF MEASURE All amounts are to be unrounded and reported on a one for one basis: that is 1000 is to be entered as '1000'. Applicable units of measure may be identified in the table column headings or row descriptors.
C13: COLOUR CODING OF INPUT / NON-INPUT CELLS:
D14: Yellow = Input cell (mandatory)
D15: Darker yellow = input cell (mandatory)
D16: Orange = input cell (if data available)
D17: Grey = Not applicable/No inputs required
D18: . PLEASE DO NOT ENTER TEXT into cells that are to contain numeric data.
C21: WORKSHEET NAVIGATION Many tables in the worksheets have been "grouped" to allow for easy navigation. To ungroup or group data use the outline symbols in the left margin of excel (for Row groupings) or above the columns (for column groupings).
C23: RETURNING COMPLETED RESPONSES Please return two (2) files to the AER: 1. A confidential version which must contain a complete set of all responses with confidential information marked using the Mark selected cells CONFIDENTIAL macro and which has been completed using the locked template file provided by the AER. 2. A public version with confidential information either removed completely or aggregated in some form together with writtten consent to disclose the public version of the response. Use the drop down box on the Business and other details worksheet to identify the file as either confidential ('consolidated') or public.
C25: SUBMITTING AMENDED DATA TO THE AER If an NSP wishes to correct data previously submitted to the AER it should resubmit that data using the original completed submission as the starting point. Please make any necessary changes to the data. Data that is not being amended should be left unchanged. NSPs must identify the reason for the amendments in the Amendment Reason box on the Business and other details worksheet. NSPs may provide further details regarding any amendments in the Amendments worksheet. .
C26: NSP may use Amended Data macro to highlight cells that contain amended data. NB: if data is also CONFIDENTIAL, re-apply the Confidentiality macro after applying the Amended macro
C27: Please resubmit two (2) files - a confidential version and a public version of the amended submission to the AER

Sheet Business & other details
B1: =IF(dms_DataQuality="backcast",INDEX(dms_Worksheet_List,MATCH(dms_Model,dms_Model_List))&" BACKCAST",INDEX(dms_Worksheet_List,MATCH(dms_Model,dms_Model_List))) -> ECONOMIC BENCHMARKING
B2: =INDEX(dms_TradingNameFull_List,MATCH(dms_TradingName,dms_TradingName_List)) -> Power and Water Corporation
B3: =IF(SUM(dms_SingleYear_Model)>0,CONCATENATE(CRY," to ",FRY),CONCATENATE(FRCP_y1," to ",dms_MultiYear_FinalYear_Result)) -> 2005-06 to 2016-17
B4: BUSINESS & OTHER DETAILS
B7: Instructions
B8: Complete the following business details regulatory template before entering data or values in any other regulatory template. This regulatory template is linked to other cells within the spreadsheet and automatically generates column headings and conditional formatting to distinguish business specific input and non-input cells.
B10: SUBMISSION PARTICULARS INPUT SHEETS
B12: ENTITY DETAILS
B14: Short name | C14: Power and Water | F14: Select business name from drop down list first
B15: ACN / ABN | C15: =INDEX(dms_ABN_List,MATCH(dms_TradingName,dms_TradingName_List)) -> 15947352360
B18: Business address | C18: Address 1 | E18: =INDEX(dms_Addr1_List,MATCH(dms_TradingName,dms_TradingName_List)) -> GPO Box 1921
D19: Address 2 | E19: =IF(ISBLANK(INDEX(dms_Addr2_List,MATCH(dms_TradingName,dms_TradingName_List))),"",INDEX(dms_Addr2_List,MATCH(dms_TradingName,dms_TradingName_List))) -> 
C20: Suburb | E20: =INDEX(dms_Suburb_List,MATCH(dms_TradingName,dms_TradingName_List)) -> DARWIN
D21: State | E21: =INDEX(dms_State_List,MATCH(dms_TradingName,dms_TradingName_List)) -> NT | F21: p/code | G21: =INDEX(dms_PostCode_List,MATCH(dms_TradingName,dms_TradingName_List)) -> 0801
B23: Postal address | C23: Address 1 | E23: =INDEX(dms_PAddr1_List,MATCH(dms_TradingName,dms_TradingName_List)) -> GPO Box 1921
D24: Address 2 | E24: =IF(ISBLANK(INDEX(dms_PAddr2_List,MATCH(dms_TradingName,dms_TradingName_List))),"",INDEX(dms_PAddr2_List,MATCH(dms_TradingName,dms_TradingName_List))) -> 
C25: Suburb | E25: =INDEX(dms_PSuburb_List,MATCH(dms_TradingName,dms_TradingName_List)) -> DARWIN
D26: State | E26: =INDEX(dms_PState_List,MATCH(dms_TradingName,dms_TradingName_List)) -> NT | F26: p/code | G26: =INDEX(dms_PPostCode_List,MATCH(dms_TradingName,dms_TradingName_List)) -> 0801
B29: Contact name/s | C29: =INDEX(dms_ContactName1_List,MATCH(dms_TradingName,dms_TradingName_List)) -> Lucy Moon
B30: Contact phone/s | C30: =INDEX(dms_ContactPh1_List,MATCH(dms_TradingName,dms_TradingName_List)) -> 08 8924 5822
B31: Contact email address/s | C31: =INDEX(dms_ContactEmail_List,MATCH(dms_TradingName,dms_TradingName_List)) -> Lucy.Moon@powerwater.com.au
B33: REGULATORY CONTROL PERIODS
B35: Forthcoming regulatory control period | C35: 2018-19 | D35: =dms_FRCP_y2 -> 2019-20 | E35: =dms_FRCP_y3 -> 2020-21 | F35: =dms_FRCP_y4 -> 2021-22 | G35: =dms_FRCP_y5 -> 2022-23 | H35: =dms_FRCP_y6 -> 2023-24 | I35: =dms_FRCP_y7 -> 2024-25 | J35: =dms_FRCP_y8 -> 2025-26 | K35: =dms_FRCP_y9 -> 2026-27 | L35: =dms_FRCP_y10 -> 2027-28
B38: Current regulatory control period | C38: =dms_CRCP_FirstYear_Result -> 2013-14 | D38: =IF(dms_RPT="financial",VALUE(LEFT(CRCP_y1,4)+1)&"-"&TEXT(MID(CRCP_y1,3,2)+2,"00"),VALUE(LEFT(CRCP_y1,4)+1)) -> 2014-15 | E38: =IF(dms_RPT="financial",VALUE(LEFT(CRCP_y2,4)+1)&"-"&TEXT(VALUE(MID(CRCP_y2,3,2)+2),"00"),VALUE(LEFT(CRCP_y2,4)+1)) -> 2015-16 | F38: =IF(dms_RPT="financial",VALUE(LEFT(CRCP_y3,4)+1)&"-"&TEXT(VALUE(MID(CRCP_y3,3,2)+2),"00"),VALUE(LEFT(CRCP_y3,4)+1)) -> 2016-17 | G38: =IF(dms_RPT="financial",VALUE(LEFT(CRCP_y4,4)+1)&"-"&TEXT(VALUE(MID(CRCP_y4,3,2)+2),"00"),VALUE(LEFT(CRCP_y4,4)+1)) -> 2017-18 | H38: =IF(dms_RPT="financial",VALUE(LEFT(CRCP_y5,4)+1)&"-"&TEXT(VALUE(MID(CRCP_y5,3,2)+2),"00"),VALUE(LEFT(CRCP_y5,4)+1)) -> 2018-19 | I38: =IF(dms_RPT="financial",VALUE(LEFT(CRCP_y6,4)+1)&"-"&TEXT(VALUE(MID(CRCP_y6,3,2)+2),"00"),VALUE(LEFT(CRCP_y6,4)+1)) -> 2019-20 | J38: =IF(dms_RPT="financial",VALUE(LEFT(CRCP_y7,4)+1)&"-"&TEXT(VALUE(MID(CRCP_y7,3,2)+2),"00"),VALUE(LEFT(CRCP_y7,4)+1)) -> 2020-21 | K38: =IF(dms_RPT="financial",VALUE(LEFT(CRCP_y8,4)+1)&"-"&TEXT(VALUE(MID(CRCP_y8,3,2)+2),"00"),VALUE(LEFT(CRCP_y8,4)+1)) -> 2021-22 | L38: =IF(dms_RPT="financial",VALUE(LEFT(CRCP_y9,4)+1)&"-"&TEXT(VALUE(MID(CRCP_y9,3,2)+2),"00"),VALUE(LEFT(CRCP_y9,4)+1)) -> 
B41: Previous regulatory control period | C41: =IF(dms_RPT="financial",VALUE(LEFT(PRCP_y2,4)-1)&"-"&TEXT(VALUE(MID(PRCP_y2,3,2)),"00"),VALUE(LEFT(PRCP_y2,4)-1)) ->  | D41: =IF(dms_RPT="financial",VALUE(LEFT(PRCP_y3,4)-1)&"-"&TEXT(VALUE(MID(PRCP_y3,3,2)),"00"),VALUE(LEFT(PRCP_y3,4)-1)) ->  | E41: =IF(dms_RPT="financial",VALUE(LEFT(PRCP_y4,4)-1)&"-"&TEXT(VALUE(MID(PRCP_y4,3,2)),"00"),VALUE(LEFT(PRCP_y4,4)-1)) ->  | F41: =IF(dms_RPT="financial",VALUE(LEFT(PRCP_y5,4)-1)&"-"&TEXT(VALUE(RIGHT(PRCP_y5,2)-1),"00"),VALUE(LEFT(PRCP_y5,4)-1)) ->  | G41: =IF(dms_RPT="financial",VALUE(LEFT(CRCP_y1,4)-1)&"-"&TEXT(VALUE(RIGHT(CRCP_y1,2)-1),"00"),VALUE(LEFT(CRCP_y1,4)-1)) -> 2012-13
B44: Commencing regulatory year | C44: 2005-06 | D44: CRY
B46: Last completed regulatory year | C46: 2016-17 | D46: dms_FinalYear
C49: DELETE NR 'CRY' IF NOT AN ANNUAL RIN (EB, CA , ARR)
C50: APPLY NR 'CRY' IF AN ANNUAL RIN (EB, CA , ARR) - including multi year annual RINs eg. Recast CA. EB
B52: Source | C52: Reporting | E52: Please select the correct submission type from the dropdown list.
B53: Data quality (actual, estimate, public, consolidated) | C53: Consolidated
B54: Amended RIN submission - amendment reason
B55: Submission Date | C55: dd/mm/yyyy | D55: dms_SubmissionDate | E55: Please enter date this file submitted to AER (dd/mm/yyyy)
B56: EBSS - First application of scheme in forthcoming period? | C56: Yes
B57: Sector | C57: =INDEX(dms_Sector_List,MATCH(dms_TradingName,dms_TradingName_List)) -> Electricity | D57: dms_Sector | E57: =INDEX(dms_Sector_List,MATCH(dms_TradingName,dms_TradingName_List))
B58: Segment | C58: =INDEX(dms_Segment_List,MATCH(dms_TradingName,dms_TradingName_List)) -> Distribution | D58: dms_Segment | E58: =INDEX(dms_Segment_List,MATCH(dms_TradingName,dms_TradingName_List))
B59: Regulatory Year Ending | C59: =IF(dms_MultiYear_Flag=1,LEFT(dms_Specified_FinalYear,2)&RIGHT(dms_Specified_FinalYear,2),INDEX(dms_RYE_Formula_Result,MATCH(dms_Model,dms_Model_List))) -> 2017 | D59: dms_RYE | E59: =IF(dms_MultiYear_Flag=1,LEFT(dms_Specified_FinalYear,2)&RIGHT(dms_Specified_FinalYear,2),INDEX(dms_RYE_Formula_Result,MATCH(dms_Model,dms_Model_List)))
B60: Reporting Period Type | C60: =INDEX(dms_RPT_List,MATCH(dms_TradingName,dms_TradingName_List)) -> Financial | D60: dms_RPT | E60: =INDEX(dms_RPT_List,MATCH(dms_TradingName,dms_TradingName_List))
B61: Model or RIN Type | C61: EB | D61: dms_Model | E61: Drop down selection
B62: Security Classification | C62: Public | D62: dms_Classification | E62: Always Public
B63: Template - version no. | C63: 5 | D63: dms_TemplateNumber
B64: Dollar $ real month | C64: =INDEX(dms_RPTMonth_List,MATCH(dms_TradingName,dms_TradingName_List)) -> June | D64: dms_RPTMonth | E64: =INDEX(dms_RPTMonth_List,MATCH(dms_TradingName,dms_TradingName_List))
B65: Dollar $ real (the last month before the FRCP_y1) | C65: =CONCATENATE(dms_RPTMonth)&" "&VALUE((LEFT(dms_CRCP_FinalYear_Result,2)&RIGHT(dms_CRCP_FinalYear_Result,2))) -> June 2017 | D65: dms_DollarReal | E65: =IF(SUM(dms_SingleYear_Model)>0,CONCATENATE(dms_RPTMonth)&" "&VALUE((LEFT(CRY,2))&RIGHT(CRY,2)),CONCATENATE(dms_RPTMonth)&" "&VALUE((LEFT(dms_CRCP_FinalYear_Result,2)&RIGHT(dms_CRCP_FinalYear_Result,2))))
B66: Dollar $ real previous year (PRCP_y5) | C66: June 2014 | D66: dms_DollarReal_Prev | E66: =IF(SUM(dms_SingleYear_Model)>0,CONCATENATE(dms_RPTMonth)&" "&VALUE(((LEFT(CRY,2))&RIGHT(CRY,2))-1),CONCATENATE(dms_RPTMonth)&" "&VALUE(((LEFT(dms_CRCP_FirstYear_Result,2)&RIGHT(dms_CRCP_FirstYear_Result,2))))-1)
B67: Form of control | C67: =INDEX(dms_FormControl_List,MATCH(dms_TradingName,dms_TradingName_List)) -> Revenue cap | D67: dms_FormControl | E67: =INDEX(dms_FormControl_List,MATCH(dms_TradingName,dms_TradingName_List))
B68: Calendar Year for table 3.6 data | C68: =VALUE(dms_RYE)-1 -> 2016 | D68: dms_0306_Year | E68: =VALUE(dms_RYE)-1
B69: RIN response - version no. | C69: 1 | D69: dms_RINversion
B70: Jurisdiction | C70: =INDEX(dms_JurisdictionList,MATCH(dms_TradingName,dms_TradingName_List)) -> NT | D70: dms_Jurisdiction | E70: =INDEX(dms_JurisdictionList,MATCH(dms_TradingName,dms_TradingName_List))
B71: Backcast Multiyear EB, CA or ARR? | C71: 1 | D71: dms_MultiYear_Flag | E71: 1=y, 0-n
C72: =FRY -> 2016-17 | D72: dms_Specified_FinalYear | E72: The result here is returned to dms_CRCP_FinalYear_Result if dms_MultiYear_Flag is set to 1
B73: Single Year Model T/F | C73: =IF(dms_Model="EB",1,0) -> 1 | D73: dms_EB
C74: =IF(dms_Model="CA",1,0) -> 0 | D74: dms_CA | E74: =dms_SingleYear_Model
C75: =IF(dms_Model="ARR",1,0) -> 0 | D75: dms_ARR
B76: Single Year Final Year Reference | C76: CRY | D76: dms_SingleYear_FinalYear_Ref | E76: This is the reference for EB, CA & ARR RINs
B77: Single Year Final Year Result | C77: =INDIRECT(dms_SingleYear_FinalYear_Ref) -> 2005-06 | D77: dms_SingleYear_FinalYear_Result | E77: =INDIRECT(dms_SingleYear_FinalYear_Ref) | I77: Formula errors OK
B78: FRCP length in years | C78: =INDEX(dms_FRCPlength_List,MATCH(dms_TradingName,dms_TradingName_List)) -> 5 | D78: dms_FRCPlength_Num | E78: =INDEX(dms_FRCPlength_List,MATCH(dms_TradingName,dms_TradingName_List))
B79: Multi Year Final Year Reference | C79: =INDEX(dms_FinalYear_List,MATCH(dms_FRCPlength_Num,dms_FRCPlength_Num_List)) -> dms_FRCP_y5 | D79: dms_MultiYear_FinalYear_Ref | E79: =INDEX(dms_FinalYear_List,MATCH(dms_FRCPlength_Num,dms_FRCPlength_Num_List))
B80: Multi Year Final Year Result | C80: =IF(dms_MultiYear_Flag=0,INDIRECT(dms_MultiYear_FinalYear_Ref),dms_Specified_FinalYear) -> 2016-17 | D80: dms_MultiYear_FinalYear_Result | E80: =IF(dms_MultiYear_Flag=0,INDIRECT(dms_MultiYear_FinalYear_Ref),dms_Specified_FinalYear) | I80: Formula errors OK
B81: CRCP length in years | C81: =INDEX(dms_CRCPlength_List,MATCH(dms_TradingName,dms_TradingName_List)) -> 5 | D81: dms_CRCPlength_Num | E81: =INDEX(dms_CRCPlength_List,MATCH(dms_TradingName,dms_TradingName_List))
B82: CRCP Final Year Reference | C82: =INDEX(dms_CFinalYear_List,MATCH(dms_CRCPlength_Num,dms_CRCPlength_Num_List)) -> CRCP_y5 | D82: dms_CRCP_FinalYear_Ref | E82: =INDEX(dms_CFinalYear_List,MATCH(dms_CRCPlength_Num,dms_CRCPlength_Num_List))
B83: CRCP First Year Result | C83: =INDEX(dms_CRCP_years,MATCH(dms_CRCPlength_Num,dms_CRCP_index)) -> 2013-14 | D83: dms_CRCP_FirstYear_Result | E83: =INDEX(dms_CRCP_years,MATCH(dms_CRCPlength_Num,dms_CRCP_index))
B84: CRCP Final Year Result | C84: =IF(dms_MultiYear_Flag=0,(IF(SUM(dms_SingleYear_Model)>0,CRY,dms_CRCP_yZ)),dms_Specified_FinalYear) -> 2016-17 | D84: dms_CRCP_FinalYear_Result | E84: =IF(dms_MultiYear_Flag=0,(IF(SUM(dms_SingleYear_Model)>0,CRY,dms_CRCP_yZ)),dms_Specified_FinalYear)
B85: Table 6.6.3 - Public lighting repair - no. business days | C85: =INDEX(dms_663_List,MATCH(dms_TradingName,dms_TradingName_List)) -> x | D85: dms_663
B86: Distribution Determination Reference | C86: =INDEX(dms_DeterminationRef_List,MATCH(dms_TradingName,dms_TradingName_List)) -> distribution determination | D86: dms_DeterminationRef
B87: Backcast templates only - unit of measure | C87: $0s | D87: dms_Backcast_UOM | E87: If the cover sheet is for Backcast data ensure to apply dms_Backcast_UOM named range to this field. Otherwise, do not apply this named range.
B88: EB/CA Unit of Measure for Monetary Values | C88: $0s | D88: dms_dollar_nom_UOM | E88: If the cover sheet is attached to an EB files make sure this field is set
B89: Is this Submission File a Subset File | C89: NO | D89: dms_Partial
B90: discard this record? | C90: NO | D90: dms_DISCARD | E90: If record is to be discarded from DB set this flag to YES
B91: CBD Feeder for this business | C91: =INDEX(dms_CBD_flag,MATCH(dms_TradingName,dms_TradingName_List)) -> YES | D91: dms_CBD_flag_NSP
B92: Urban Feeder for this business | C92: =INDEX(dms_Urban_flag,MATCH(dms_TradingName,dms_TradingName_List)) -> YES | D92: dms_Urban_flag_NSP
B93: Short rural Feeder for this business | C93: =INDEX(dms_ShortRural_flag,MATCH(dms_TradingName,dms_TradingName_List)) -> YES | D93: dms_ShortRural_flag_NSP
B94: Long rural Feeder for this business | C94: =INDEX(dms_LongRural_flag,MATCH(dms_TradingName,dms_TradingName_List)) -> YES | D94: dms_LongRural_flag_NSP
B97: USES NAMED RANGES FLAG | C97: yes | D97: dms_Defined_Names_Used

Sheet 3.1 Revenue
B1: REGULATORY REPORTING STATEMENT
B2: =INDEX(dms_TradingNameFull_List,MATCH(dms_TradingName,dms_TradingName_List)) -> Power and Water Corporation
B3: ECONOMIC BENCHMARKING - HISTORICAL
B4: 3.1 REVENUE
B6: There are THREE (x TWO) tables on this worksheet. Both ROWS and COLUMNS have been grouped for ease of navigation. see the Instructions sheet on how to group or ungroup tables.
B8: 3.1.1 - REVENUE GROUPING BY CHARGEABLE QUANTITY
C9: Standard Control Services | P9: Alternative Control Services
C10: REVENUE ($0's) | P10: REVENUE ($0's)
C11: =IF(dms_RPT="financial",dms_fy1,dms_cy1) -> 2005-06 | D11: =IF(dms_RPT="financial",dms_fy2,dms_cy2) -> 2006-07 | E11: =IF(dms_RPT="financial",dms_fy3,dms_cy3) -> 2007-08 | F11: =IF(dms_RPT="financial",dms_fy4,dms_cy4) -> 2008-09 | G11: =IF(dms_RPT="financial",dms_fy5,dms_cy5) -> 2009-10 | H11: =IF(dms_RPT="financial",dms_fy6,dms_cy6) -> 2010-11 | I11: =IF(dms_RPT="financial",dms_fy7,dms_cy7) -> 2011-12 | J11: =IF(dms_RPT="financial",dms_fy8,dms_cy8) -> 2012-13 | K11: =IF(dms_RPT="financial",dms_fy9,dms_cy9) -> 2013-14 | L11: =IF(dms_RPT="financial",dms_fy10,dms_cy10) -> 2014-15 | M11: =IF(dms_RPT="financial",dms_fy11,dms_cy11) -> 2015-16 | N11: =IF(dms_RPT="financial",dms_fy12,dms_cy12) -> 2016-17 | P11: =IF(dms_RPT="financial",dms_fy1,dms_cy1) -> 2005-06 | Q11: =IF(dms_RPT="financial",dms_fy2,dms_cy2) -> 2006-07 | R11: =IF(dms_RPT="financial",dms_fy3,dms_cy3) -> 2007-08 | S11: =IF(dms_RPT="financial",dms_fy4,dms_cy4) -> 2008-09 | T11: =IF(dms_RPT="financial",dms_fy5,dms_cy5) -> 2009-10 | U11: =IF(dms_RPT="financial",dms_fy6,dms_cy6) -> 2010-11 | V11: =IF(dms_RPT="financial",dms_fy7,dms_cy7) -> 2011-12 | W11: =IF(dms_RPT="financial",dms_fy8,dms_cy8) -> 2012-13 | X11: =IF(dms_RPT="financial",dms_fy9,dms_cy9) -> 2013-14 | Y11: =IF(dms_RPT="financial",dms_fy10,dms_cy10) -> 2014-15 | Z11: =IF(dms_RPT="financial",dms_fy11,dms_cy11) -> 2015-16 | AA11: =IF(dms_RPT="financial",dms_fy12,dms_cy12) -> 2016-17
A12: DREV0101 | B12: Revenue from Fixed Customer Charges | C12: 4486854.608 | D12: 4842116.365 | E12: 5004173.393 | F12: 5489361.464 | G12: 6928981.777 | H12: 7270906.6 | I12: 7735546.292 | J12: 7874230.274 | K12: 10091501.45 | L12: 11302762.93 | M12: 13230658.8 | N12: 14820644.39 | P12: 0 | Q12: 0 | R12: 0 | S12: 0 | T12: 0 | U12: 0 | V12: 0 | W12: 0 | X12: 0 | Y12: 0 | Z12: 0 | AA12: 0
A13: DREV0102 | B13: Revenue from Energy Delivery charges where time of use is not a determinant | C13: 55646773.98 | D13: 49905892.01 | E13: 54004156.45 | F13: 58658947.25 | G13: 71776353.61 | H13: 69772188.27 | I13: 73308351.64 | J13: 79002403.2 | K13: 95392963.69 | L13: 100635791.9 | M13: 115259370.5 | N13: 117670959.3 | P13: 0 | Q13: 0 | R13: 0 | S13: 0 | T13: 0 | U13: 0 | V13: 0 | W13: 0 | X13: 0 | Y13: 0 | Z13: 0 | AA13: 0
A14: DREV0103 | B14: Revenue from On–Peak Energy Delivery charges | C14: 7336760.71 | D14: 7152805.443 | E14: 6362676.092 | F14: 7400584.794 | G14: 8516395.659 | H14: 7934310.94 | I14: 8025720.74 | J14: 8499514.486 | K14: 10660663.65 | L14: 11472672.05 | M14: 13643571.81 | N14: 11637791.25 | P14: 0 | Q14: 0 | R14: 0 | S14: 0 | T14: 0 | U14: 0 | V14: 0 | W14: 0 | X14: 0 | Y14: 0 | Z14: 0 | AA14: 0
A15: DREV0104 | B15: Revenue from Shoulder period Energy Delivery Charges | C15: 0 | D15: 0 | E15: 0 | F15: 0 | G15: 0 | H15: 0 | I15: 0 | J15: 0 | K15: 0 | L15: 0 | M15: 0 | N15: 0 | P15: 0 | Q15: 0 | R15: 0 | S15: 0 | T15: 0 | U15: 0 | V15: 0 | W15: 0 | X15: 0 | Y15: 0 | Z15: 0 | AA15: 0
A16: DREV0105 | B16: Revenue from Off–Peak Energy Delivery charges | C16: 4671032.687 | D16: 4881463.682 | E16: 4110371.523 | F16: 4822030.767 | G16: 5505705.971 | H16: 5056913.61 | I16: 5101161.366 | J16: 5458459.71 | K16: 6839468.786 | L16: 7443215.576 | M16: 9272946.921 | N16: 9321760.227 | P16: 0 | Q16: 0 | R16: 0 | S16: 0 | T16: 0 | U16: 0 | V16: 0 | W16: 0 | X16: 0 | Y16: 0 | Z16: 0 | AA16: 0
A17: DREV0106 | B17: Revenue from controlled load customer charges | C17: 0 | D17: 0 | E17: 0 | F17: 0 | G17: 0 | H17: 0 | I17: 0 | J17: 0 | K17: 0 | L17: 0 | M17: 0 | N17: 0 | P17: 0 | Q17: 0 | R17: 0 | S17: 0 | T17: 0 | U17: 0 | V17: 0 | W17: 0 | X17: 0 | Y17: 0 | Z17: 0 | AA17: 0
A18: DREV0107 | B18: Revenue from unmetered supplies | C18: 368647.1002 | D18: 380654.3901 | E18: 394045.5002 | F18: 404957.7425 | G18: 545580.1353 | H18: 587577 | I18: 606234.5361 | J18: 662862.4832 | K18: 839075.8909 | L18: 978303.29 | M18: 938660.19 | N18: 940171.11 | P18: 0 | Q18: 0 | R18: 0 | S18: 0 | T18: 0 | U18: 0 | V18: 0 | W18: 0 | X18: 0 | Y18: 0 | Z18: 0 | AA18: 0
A19: DREV0108 | B19: Revenue from Contracted Maximum Demand charges | C19: 0 | D19: 0 | E19: 0 | F19: 0 | G19: 0 | H19: 0 | I19: 0 | J19: 0 | K19: 0 | L19: 0 | M19: 0 | N19: 0 | P19: 0 | Q19: 0 | R19: 0 | S19: 0 | T19: 0 | U19: 0 | V19: 0 | W19: 0 | X19: 0 | Y19: 0 | Z19: 0 | AA19: 0
A20: DREV0109 | B20: Revenue from Measured Maximum Demand charges | C20: 4390049.981 | D20: 3674454.02 | E20: 4640900.18 | F20: 5211212.669 | G20: 6754632.785 | H20: 6971712.04 | I20: 7248359.544 | J20: 7901776.888 | K20: 10390806.66 | L20: 11668245.29 | M20: 13077884.28 | N20: 13410023.02 | P20: 0 | Q20: 0 | R20: 0 | S20: 0 | T20: 0 | U20: 0 | V20: 0 | W20: 0 | X20: 0 | Y20: 0 | Z20: 0 | AA20: 0
A21: DREV0110 | B21: Revenue from metering charges | C21: 0 | D21: 0 | E21: 0 | F21: 0 | G21: 0 | H21: 0 | I21: 0 | J21: 0 | K21: 0 | L21: 0 | M21: 0 | N21: 0 | P21: 2395611.94 | Q21: 2201896.171 | R21: 2324055.309 | S21: 2576343.764 | T21: 3080731.036 | U21: 3061984.996 | V21: 3221787.171 | W21: 3432586.069 | X21: 4294879.468 | Y21: 4631221.83 | Z21: 5408362.293 | AA21: 5573933.361
A22: DREV0111 | B22: Revenue from connection charges | C22: 0 | D22: 0 | E22: 0 | F22: 0 | G22: 0 | H22: 0 | I22: 0 | J22: 0 | K22: 0 | L22: 0 | M22: 0 | N22: 0 | P22: 487310 | Q22: 443841 | R22: 619085 | S22: 804914.1917 | T22: 46628.57237 | U22: 1064365.214 | V22: 2074529.83 | W22: 1255120.972 | X22: 3644288.416 | Y22: 4324314.422 | Z22: 4294839.279 | AA22: 2592683.84
A23: DREV0112 | B23: Revenue from public lighting charges | C23: 0 | D23: 0 | E23: 0 | F23: 0 | G23: 0 | H23: 0 | I23: 0 | J23: 0 | K23: 0 | L23: 0 | M23: 0 | N23: 0 | P23: 0 | Q23: 0 | R23: 0 | S23: 0 | T23: 0 | U23: 0 | V23: 0 | W23: 0 | X23: 0 | Y23: 0 | Z23: 0 | AA23: 0
A24: DREV0113 | B24: Revenue from other Sources | C24: 116471.1083 | D24: 0 | E24: -7057.315406 | F24: 381450.2764 | G24: 38429.55452 | H24: -776.97 | I24: 2515.897317 | J24: 4638.696126 | K24: -4583.836041 | L24: 4.681167144 | M24: 2.2601 | N24: 24.0754 | P24: 0 | Q24: 0 | R24: 0 | S24: 0 | T24: 0 | U24: -157.1 | V24: 4291.67 | W24: 231.15 | X24: -102 | Y24: -1315866.78 | Z24: 344294.46 | AA24: 0
A25: DREV01 | B25: Total revenue by chargeable quantity | C25: =SUM(C12:C24) -> 77016590.17 | D25: =SUM(D12:D24) -> 70837385.91 | E25: 74509265.82 | F25: 82368544.96 | G25: 100066079.5 | H25: 97592831.49 | I25: 102027890 | J25: 109403885.7 | K25: =SUM(K12:K24) -> 134209896.3 | L25: =SUM(L12:L24) -> 143500995.7 | M25: =SUM(M12:M24) -> 165423094.8 | N25: =SUM(N12:N24) -> 167801373.4 | P25: =SUM(P12:P24) -> 2882921.94 | Q25: 2645737.171 | R25: 2943140.309 | S25: 3381257.956 | T25: 3127359.608 | U25: 4126193.11 | V25: 5300608.671 | W25: 4687938.191 | X25: 7939065.884 | Y25: 7639669.472 | Z25: 10047496.03 | AA25: 8166617.201
B27: 3.1.2 - REVENUE GROUPING BY CUSTOMER TYPE OR CLASS
C28: Standard Control Services | P28: Alternative Control Services
C29: REVENUE ($0's) | P29: REVENUE ($0's)
C30: =IF(dms_RPT="financial",dms_fy1,dms_cy1) -> 2005-06 | D30: =IF(dms_RPT="financial",dms_fy2,dms_cy2) -> 2006-07 | E30: =IF(dms_RPT="financial",dms_fy3,dms_cy3) -> 2007-08 | F30: =IF(dms_RPT="financial",dms_fy4,dms_cy4) -> 2008-09 | G30: =IF(dms_RPT="financial",dms_fy5,dms_cy5) -> 2009-10 | H30: =IF(dms_RPT="financial",dms_fy6,dms_cy6) -> 2010-11 | I30: =IF(dms_RPT="financial",dms_fy7,dms_cy7) -> 2011-12 | J30: =IF(dms_RPT="financial",dms_fy8,dms_cy8) -> 2012-13 | K30: =IF(dms_RPT="financial",dms_fy9,dms_cy9) -> 2013-14 | L30: =IF(dms_RPT="financial",dms_fy10,dms_cy10) -> 2014-15 | M30: =IF(dms_RPT="financial",dms_fy11,dms_cy11) -> 2015-16 | N30: =IF(dms_RPT="financial",dms_fy12,dms_cy12) -> 2016-17 | P30: =IF(dms_RPT="financial",dms_fy1,dms_cy1) -> 2005-06 | Q30: =IF(dms_RPT="financial",dms_fy2,dms_cy2) -> 2006-07 | R30: =IF(dms_RPT="financial",dms_fy3,dms_cy3) -> 2007-08 | S30: =IF(dms_RPT="financial",dms_fy4,dms_cy4) -> 2008-09 | T30: =IF(dms_RPT="financial",dms_fy5,dms_cy5) -> 2009-10 | U30: =IF(dms_RPT="financial",dms_fy6,dms_cy6) -> 2010-11 | V30: =IF(dms_RPT="financial",dms_fy7,dms_cy7) -> 2011-12 | W30: =IF(dms_RPT="financial",dms_fy8,dms_cy8) -> 2012-13 | X30: =IF(dms_RPT="financial",dms_fy9,dms_cy9) -> 2013-14 | Y30: =IF(dms_RPT="financial",dms_fy10,dms_cy10) -> 2014-15 | Z30: =IF(dms_RPT="financial",dms_fy11,dms_cy11) -> 2015-16 | AA30: =IF(dms_RPT="financial",dms_fy12,dms_cy12) -> 2016-17
A31: DREV0201 | B31: Revenue from residential Customers | C31: 34117889.89 | D31: 30968687.12 | E31: 33087048.23 | F31: 36834837.54 | G31: 45027191.45 | H31: 44061033.62 | I31: 46218674.46 | J31: 49391846.13 | K31: 60066144.13 | L31: 64566646.41 | M31: 74924093.67 | N31: 77764138.11 | P31: 1144154.2 | Q31: 1048328.232 | R31: 1229046.695 | S31: 1458990.447 | T31: 999662.4553 | U31: 1848339.069 | V31: 2555802.598 | W31: 2147584.841 | X31: 4542423.018 | Y31: 4922537.769 | Z31: 2305301.622 | AA31: 2548674.413
A32: DREV0202 | B32: Revenue from Non residential customers not on demand tariffs | C32: 28144580.13 | D32: 25515703.17 | E32: 28103593.69 | F32: 29526863.69 | G32: 35560878.03 | H32: 34449483.07 | I32: 35850022.42 | J32: 38703143.56 | K32: 46349490.25 | L32: 47898636.86 | M32: 53938340.18 | N32: 54185971.54 | P32: 1738767.66 | Q32: 1597408.979 | R32: 1714093.644 | S32: 1922267.859 | T32: 2127697.133 | U32: 2277854.441 | V32: 2744805.634 | W32: 2540353.59 | X32: 3396643.716 | Y32: 4032998.553 | Z32: 7397899.84 | AA32: 5617943.328
A33: DREV0203 | B33: Revenue from Non-residential low voltage demand tariff customers | C33: 8814999.344 | D33: 8549235.733 | E33: 7859087.44 | F33: 9642197.518 | G33: 11837596.76 | H33: 11177121.82 | I33: 11515889.47 | J33: 12198221.42 | K33: 15008598.21 | L33: 17439401.08 | M33: 20798920.78 | N33: 19609768.58 | P33: 0 | Q33: 0 | R33: 0 | S33: 0 | T33: 0 | U33: 0 | V33: 0 | W33: 0 | X33: 0 | Y33: 0 | Z33: 0 | AA33: 0
A34: DREV0204 | B34: Revenue from Non-residential high voltage demand tariff customers | C34: 5570473.504 | D34: 5423105.5 | E34: 5065491.32 | F34: 5959688.487 | G34: 7094833.17 | H34: 7317616.95 | I34: 7837071.35 | J34: 8447808.57 | K34: 11946587.62 | L34: 12618008.32 | M34: 14823080.15 | N34: 15301323.09 | P34: 0 | Q34: 0 | R34: 0 | S34: 0 | T34: 0 | U34: 0 | V34: 0 | W34: 0 | X34: 0 | Y34: 0 | Z34: 0 | AA34: 0
A35: DREV0205 | B35: Revenue from unmetered supplies | C35: 368647.1002 | D35: 380654.3901 | E35: 394045.5002 | F35: 404957.7425 | G35: 545580.1353 | H35: 587577 | I35: 606234.5361 | J35: 662862.4832 | K35: 839075.8909 | L35: 978303 | M35: 938660.19 | N35: 940171.11 | P35: 0 | Q35: 0 | R35: 0 | S35: 0 | T35: 0 | U35: 0 | V35: 0 | W35: 0 | X35: 0 | Y35: 0 | Z35: 0 | AA35: 0
A36: DREV0206 | B36: Revenue from Other Customers | C36: 0 | D36: 0 | E36: 0 | F36: 0 | G36: 0 | H36: 0 | I36: 0 | J36: 0 | K36: 0 | L36: 0 | M36: 0 | N36: 0 | P36: 0 | Q36: 0 | R36: 0 | S36: 0 | T36: 0 | U36: 0 | V36: 0 | W36: 0 | X36: 0 | Y36: -1315867 | Z36: 344294 | AA36: 0
A37: DREV02 | B37: Total revenue by customer class | C37: =SUM(C31:C36) -> 77016589.97 | D37: =SUM(D31:D36) -> 70837385.91 | E37: 74509266.18 | F37: 82368544.98 | G37: 100066079.5 | H37: 97592832.46 | I37: 102027892.2 | J37: 109403882.2 | K37: =SUM(K31:K36) -> 134209896.1 | L37: =SUM(L31:L36) -> 143500995.7 | M37: =SUM(M31:M36) -> 165423095 | N37: =SUM(N31:N36) -> 167801372.4 | P37: =SUM(P31:P36) -> 2882921.86 | Q37: 2645737.211 | R37: 2943140.339 | S37: 3381258.306 | T37: 3127359.588 | U37: 4126193.51 | V37: 5300608.231 | W37: 4687938.431 | X37: 7939066.734 | Y37: 7639669.322 | Z37: 10047495.46 | AA37: 8166617.742
B39: 3.1.3 - REVENUE (penalties) ALLOWED (deducted) THROUGH INCENTIVE SCHEMES
C40: Standard Control Services | P40: Alternative Control Services
C41: REVENUE ($0's) | P41: REVENUE ($0's)
C42: =IF(dms_RPT="financial",dms_fy1,dms_cy1) -> 2005-06 | D42: =IF(dms_RPT="financial",dms_fy2,dms_cy2) -> 2006-07 | E42: =IF(dms_RPT="financial",dms_fy3,dms_cy3) -> 2007-08 | F42: =IF(dms_RPT="financial",dms_fy4,dms_cy4) -> 2008-09 | G42: =IF(dms_RPT="financial",dms_fy5,dms_cy5) -> 2009-10 | H42: =IF(dms_RPT="financial",dms_fy6,dms_cy6) -> 2010-11 | I42: =IF(dms_RPT="financial",dms_fy7,dms_cy7) -> 2011-12 | J42: =IF(dms_RPT="financial",dms_fy8,dms_cy8) -> 2012-13 | K42: =IF(dms_RPT="financial",dms_fy9,dms_cy9) -> 2013-14 | L42: =IF(dms_RPT="financial",dms_fy10,dms_cy10) -> 2014-15 | M42: =IF(dms_RPT="financial",dms_fy11,dms_cy11) -> 2015-16 | N42: =IF(dms_RPT="financial",dms_fy12,dms_cy12) -> 2016-17 | P42: =IF(dms_RPT="financial",dms_fy1,dms_cy1) -> 2005-06 | Q42: =IF(dms_RPT="financial",dms_fy2,dms_cy2) -> 2006-07 | R42: =IF(dms_RPT="financial",dms_fy3,dms_cy3) -> 2007-08 | S42: =IF(dms_RPT="financial",dms_fy4,dms_cy4) -> 2008-09 | T42: =IF(dms_RPT="financial",dms_fy5,dms_cy5) -> 2009-10 | U42: =IF(dms_RPT="financial",dms_fy6,dms_cy6) -> 2010-11 | V42: =IF(dms_RPT="financial",dms_fy7,dms_cy7) -> 2011-12 | W42: =IF(dms_RPT="financial",dms_fy8,dms_cy8) -> 2012-13 | X42: =IF(dms_RPT="financial",dms_fy9,dms_cy9) -> 2013-14 | Y42: =IF(dms_RPT="financial",dms_fy10,dms_cy10) -> 2014-15 | Z42: =IF(dms_RPT="financial",dms_fy11,dms_cy11) -> 2015-16 | AA42: =IF(dms_RPT="financial",dms_fy12,dms_cy12) -> 2016-17
A43: DREV0301 | B43: EBSS | C43: 0 | D43: 0 | E43: 0 | F43: 0 | G43: 0 | H43: 0 | I43: 0 | J43: 0 | K43: 0 | L43: 0 | M43: 0 | N43: 0 | P43: 0 | Q43: 0 | R43: 0 | S43: 0 | T43: 0 | U43: 0 | V43: 0 | W43: 0 | X43: 0 | Y43: 0 | Z43: 0 | AA43: 0
A44: DREV0302 | B44: STPIS | C44: 0 | D44: 0 | E44: 0 | F44: 0 | G44: 0 | H44: 0 | I44: 0 | J44: 0 | K44: 0 | L44: 0 | M44: 0 | N44: 0 | P44: 0 | Q44: 0 | R44: 0 | S44: 0 | T44: 0 | U44: 0 | V44: 0 | W44: 0 | X44: 0 | Y44: 0 | Z44: 0 | AA44: 0
A45: DREV0303 | B45: F-Factor | C45: 0 | D45: 0 | E45: 0 | F45: 0 | G45: 0 | H45: 0 | I45: 0 | J45: 0 | K45: 0 | L45: 0 | M45: 0 | N45: 0 | P45: 0 | Q45: 0 | R45: 0 | S45: 0 | T45: 0 | U45: 0 | V45: 0 | W45: 0 | X45: 0 | Y45: 0 | Z45: 0 | AA45: 0
A46: DREV0304 | B46: S-Factor True up | C46: 0 | D46: 0 | E46: 0 | F46: 0 | G46: 0 | H46: 0 | I46: 0 | J46: 0 | K46: 0 | L46: 0 | M46: 0 | N46: 0 | P46: 0 | Q46: 0 | R46: 0 | S46: 0 | T46: 0 | U46: 0 | V46: 0 | W46: 0 | X46: 0 | Y46: 0 | Z46: 0 | AA46: 0
A47: DREV0305 | B47: Other | C47: 0 | D47: 0 | E47: 0 | F47: 0 | G47: 0 | H47: 0 | I47: 0 | J47: 0 | K47: 0 | L47: 0 | M47: 0 | N47: 0 | P47: 0 | Q47: 0 | R47: 0 | S47: 0 | T47: 0 | U47: 0 | V47: 0 | W47: 0 | X47: 0 | Y47: 0 | Z47: 0 | AA47: 0
A48: DREV03 | B48: Total revenue of incentive schemes | C48: =SUM(C43:C47) -> 0 | D48: =SUM(D43:D47) -> 0 | E48: 0 | F48: 0 | G48: 0 | H48: 0 | I48: 0 | J48: 0 | K48: =SUM(K43:K47) -> 0 | L48: =SUM(L43:L47) -> 0 | M48: =SUM(M43:M47) -> 0 | N48: =SUM(N43:N47) -> 0 | P48: =SUM(P43:P47) -> 0 | Q48: 0 | R48: 0 | S48: 0 | T48: 0 | U48: 0 | V48: 0 | W48: 0 | X48: 0 | Y48: 0 | Z48: 0 | AA48: 0

Sheet 3.2 Operating expenditure
B1: REGULATORY REPORTING STATEMENT
B2: =INDEX(dms_TradingNameFull_List,MATCH(dms_TradingName,dms_TradingName_List)) -> Power and Water Corporation
B3: ECONOMIC BENCHMARKING - HISTORICAL
B4: 3.2 OPERATING EXPENDITURE
B6: There are THREE tables on this worksheet. Each has been grouped for ease of navigation. see the Instructions sheet on how to group or ungroup tables.
B9: 3.2.1 - OPEX CATEGORIES
B10: CURRENT OPEX CATEGORIES AND COST ALLOCATIONS
D11: STANDARD CONTROL SERVICES | Q11: ALTERNATIVE CONTROL SERVICES
D12: EXPENDITURE ($0's) | Q12: EXPENDITURE ($0's)
D13: =IF(dms_RPT="financial",dms_fy1,dms_cy1) -> 2005-06 | E13: =IF(dms_RPT="financial",dms_fy2,dms_cy2) -> 2006-07 | F13: =IF(dms_RPT="financial",dms_fy3,dms_cy3) -> 2007-08 | G13: =IF(dms_RPT="financial",dms_fy4,dms_cy4) -> 2008-09 | H13: =IF(dms_RPT="financial",dms_fy5,dms_cy5) -> 2009-10 | I13: =IF(dms_RPT="financial",dms_fy6,dms_cy6) -> 2010-11 | J13: =IF(dms_RPT="financial",dms_fy7,dms_cy7) -> 2011-12 | K13: =IF(dms_RPT="financial",dms_fy8,dms_cy8) -> 2012-13 | L13: =IF(dms_RPT="financial",dms_fy9,dms_cy9) -> 2013-14 | M13: =IF(dms_RPT="financial",dms_fy10,dms_cy10) -> 2014-15 | N13: =IF(dms_RPT="financial",dms_fy11,dms_cy11) -> 2015-16 | O13: =IF(dms_RPT="financial",dms_fy12,dms_cy12) -> 2016-17 | Q13: =IF(dms_RPT="financial",dms_fy1,dms_cy1) -> 2005-06 | R13: =IF(dms_RPT="financial",dms_fy2,dms_cy2) -> 2006-07 | S13: =IF(dms_RPT="financial",dms_fy3,dms_cy3) -> 2007-08 | T13: =IF(dms_RPT="financial",dms_fy4,dms_cy4) -> 2008-09 | U13: =IF(dms_RPT="financial",dms_fy5,dms_cy5) -> 2009-10 | V13: =IF(dms_RPT="financial",dms_fy6,dms_cy6) -> 2010-11 | W13: =IF(dms_RPT="financial",dms_fy7,dms_cy7) -> 2011-12 | X13: =IF(dms_RPT="financial",dms_fy8,dms_cy8) -> 2012-13 | Y13: =IF(dms_RPT="financial",dms_fy9,dms_cy9) -> 2013-14 | Z13: =IF(dms_RPT="financial",dms_fy10,dms_cy10) -> 2014-15 | AA13: =IF(dms_RPT="financial",dms_fy11,dms_cy11) -> 2015-16 | AB13: =IF(dms_RPT="financial",dms_fy12,dms_cy12) -> 2016-17
A14: DOPEX0101 | B14: Employee benefits expense | D14: 14939880.81 | E14: 12677353.35 | F14: 17826072.63 | G14: 15512345.66 | H14: 20529443.78 | I14: 27238525.08 | J14: 19726392.2 | K14: 16339935.53 | L14: 15427165.82 | M14: 12934790.55 | N14: 15997806.93 | O14: 14178278 | Q14: 14203.39871 | R14: 22025.11571 | S14: 18583.60333 | T14: 103.4810302 | U14: 1.364242053e-12 | V14: 77.58846142 | W14: 749.085814 | X14: 588.0518206 | Y14: 974019.9063 | Z14: 994442.6993 | AA14: 1230999.7 | AB14: 1287136.537
A15: DOPEX0102 | B15: Energy and materials | D15: 855340.6627 | E15: 865807.5958 | F15: 685400.058 | G15: 603527.7514 | H15: 409050.48 | I15: 529156.0844 | J15: 713349.2324 | K15: 1012980.702 | L15: 700187.834 | M15: 608241.5938 | N15: 652810.8988 | O15: 723005.3769 | Q15: 177719.3853 | R15: 173682.5624 | S15: 228622.7279 | T15: 166849.238 | U15: 181608.507 | V15: 122213.7775 | W15: 238220.7018 | X15: 1318209.982 | Y15: 1788838.01 | Z15: 3450327.682 | AA15: 2771394.193 | AB15: 2500139.283
A16: DOPEX0103 | B16: External service agreements | D16: 346332.2974 | E16: 367973.8036 | F16: 1040716.321 | G16: 1577948.711 | H16: 1075244.929 | I16: 1259735.529 | J16: 1898806.803 | K16: 1109657.346 | L16: 670267.0605 | M16: 654143.709 | N16: 994880.3906 | O16: 3438428.634 | Q16: 965.6269308 | R16: 1051.482235 | S16: 4335.661175 | T16: 1297382.095 | U16: 1650605.336 | V16: 1763017.115 | W16: 1749000.875 | X16: 888359.7019 | Y16: 1277144.784 | Z16: 1602567.034 | AA16: 1707086.703 | AB16: 1678359.799
A17: DOPEX0104 | B17: Other expenses | D17: 4519629.117 | E17: 4966887.309 | F17: 6510601.135 | G17: 19991630.29 | H17: 11202734.43 | I17: 11485139.56 | J17: 13785741.57 | K17: 13670496.95 | L17: 11025874.76 | M17: 10021925.04 | N17: 9701753.317 | O17: 11513198.07 | Q17: 893.6707882 | R17: 485.5686166 | S17: 7291.75589 | T17: 357485.8942 | U17: 366215.0502 | V17: 379942.7889 | W17: 395900.0035 | X17: 327673.9412 | Y17: 1367071.723 | Z17: 2126260.551 | AA17: 1868077.553 | AB17: 1843248.64
A18: DOPEX0105 | B18: Repairs and maintenance expense | D18: 5374545.06 | E18: 7893881.16 | F18: 10461876 | G18: 18607450.52 | H18: 21292206.61 | I18: 20948342.16 | J18: 34717510.23 | K18: 35554565 | L18: 30898224.57 | M18: 32810995.75 | N18: 28886004.83 | O18: 27802904.7 | Q18: 0.3210025167 | R18: 0 | S18: 0 | T18: 427.23 | U18: 0 | V18: 0 | W18: 0 | X18: 47287.68 | Y18: 31247.85 | Z18: 222252.81 | AA18: 67300.31 | AB18: 102511.09
A19: DOPEX0106 | B19: Inter-group sales | D19: 9029400.842 | E19: 10625626.14 | F19: 10970404 | G19: 16921478.97 | H19: 14045362.01 | I19: 19554894.69 | J19: 22489562.4 | K19: 25084988.52 | L19: 23387230.41 | M19: 17573368.25 | N19: 25246429.93 | O19: 14287695.31 | Q19: 64917.75753 | R19: 78285.38492 | S19: 77742.27903 | T19: 714376.421 | U19: 664919.095 | V19: 932720.0499 | W19: 1113039.241 | X19: 956931.5566 | Y19: 2165932.741 | Z19: 2587114.282 | AA19: 3432228.469 | AB19: 1701490.839
A20: DOPEX0107
A21: DOPEX0108
A22: DOPEX0109 | N22: `
A23: DOPEX0110
A24: DOPEX0111
A25: DOPEX0112
A26: DOPEX0113
A27: DOPEX0114
A28: DOPEX0115
A29: DOPEX0116
A30: DOPEX0117
A31: DOPEX0118
A32: DOPEX0119
A33: DOPEX0120
A34: DOPEX0121
A35: DOPEX0122
A36: DOPEX0123
A37: DOPEX0124
A38: DOPEX0125
A39: DOPEX0126
A40: DOPEX0127
A41: DOPEX0128
A42: DOPEX0129
A43: DOPEX0130
A44: DOPEX0131
A45: DOPEX0132
A46: DOPEX0133
A47: DOPEX0134
A48: DOPEX0135
A49: DOPEX0136
A50: DOPEX0137
A51: DOPEX0138
A52: DOPEX0139
A53: DOPEX0140
A54: DOPEX0141
A55: DOPEX0142
A56: DOPEX01 | B56: Total opex | D56: =SUM(D14:D55) -> 35065128.79 | E56: 37397529.37 | F56: 47495070.15 | G56: 73214381.9 | H56: 68554042.24 | I56: 81015793.1 | J56: 93331362.43 | K56: 92772624.05 | L56: 82108950.44 | M56: =SUM(M14:M55) -> 74603464.89 | N56: =SUM(N14:N55) -> 81479686.3 | O56: 71943510.1 | Q56: =SUM(Q14:Q55) -> 258700.1603 | R56: 275530.1139 | S56: 336576.0273 | T56: 2536624.359 | U56: 2863347.988 | V56: 3197971.32 | W56: 3496909.906 | X56: 3539050.913 | Y56: 7604255.015 | Z56: 10982965.06 | AA56: 11077086.93 | AB56: 9112886.188
B60: 3.2.2 - OPEX CONSISTENCY
B61: OPEX CONSISTENCY - CURRENT COST ALLOCATION APPROACH
D62: STANDARD CONTROL SERVICES | Q62: ALTERNATIVE CONTROL SERVICES
D63: EXPENDITURE ($0's) | Q63: EXPENDITURE ($0's)
D64: =IF(dms_RPT="financial",dms_fy1,dms_cy1) -> 2005-06 | E64: =IF(dms_RPT="financial",dms_fy2,dms_cy2) -> 2006-07 | F64: =IF(dms_RPT="financial",dms_fy3,dms_cy3) -> 2007-08 | G64: =IF(dms_RPT="financial",dms_fy4,dms_cy4) -> 2008-09 | H64: =IF(dms_RPT="financial",dms_fy5,dms_cy5) -> 2009-10 | I64: =IF(dms_RPT="financial",dms_fy6,dms_cy6) -> 2010-11 | J64: =IF(dms_RPT="financial",dms_fy7,dms_cy7) -> 2011-12 | K64: =IF(dms_RPT="financial",dms_fy8,dms_cy8) -> 2012-13 | L64: =IF(dms_RPT="financial",dms_fy9,dms_cy9) -> 2013-14 | M64: =IF(dms_RPT="financial",dms_fy10,dms_cy10) -> 2014-15 | N64: =IF(dms_RPT="financial",dms_fy11,dms_cy11) -> 2015-16 | O64: =IF(dms_RPT="financial",dms_fy12,dms_cy12) -> 2016-17 | Q64: =IF(dms_RPT="financial",dms_fy1,dms_cy1) -> 2005-06 | R64: =IF(dms_RPT="financial",dms_fy2,dms_cy2) -> 2006-07 | S64: =IF(dms_RPT="financial",dms_fy3,dms_cy3) -> 2007-08 | T64: =IF(dms_RPT="financial",dms_fy4,dms_cy4) -> 2008-09 | U64: =IF(dms_RPT="financial",dms_fy5,dms_cy5) -> 2009-10 | V64: =IF(dms_RPT="financial",dms_fy6,dms_cy6) -> 2010-11 | W64: =IF(dms_RPT="financial",dms_fy7,dms_cy7) -> 2011-12 | X64: =IF(dms_RPT="financial",dms_fy8,dms_cy8) -> 2012-13 | Y64: =IF(dms_RPT="financial",dms_fy9,dms_cy9) -> 2013-14 | Z64: =IF(dms_RPT="financial",dms_fy10,dms_cy10) -> 2014-15 | AA64: =IF(dms_RPT="financial",dms_fy11,dms_cy11) -> 2015-16 | AB64: =IF(dms_RPT="financial",dms_fy12,dms_cy12) -> 2016-17
A65: DOPEX0201 | B65: Opex for network services | D65: 35065128.79 | E65: 37397529.37 | F65: 47495070.15 | G65: 73214381.9 | H65: 68554042.24 | I65: 81015793.1 | J65: 93331362.43 | K65: 92772624.05 | L65: 82108950.44 | M65: 74603464.89 | N65: 81479686.3 | O65: 71943510.1 | Q65: 0 | R65: 0 | S65: 0 | T65: 0 | U65: 0 | V65: 0 | W65: 0 | X65: 0 | Y65: 0 | Z65: 0 | AA65: 0 | AB65: 0
A66: DOPEX0202 | B66: Opex for metering | D66: 0 | E66: 0 | F66: 0 | G66: 0 | H66: 0 | I66: 0 | J66: 0 | K66: 0 | L66: 0 | M66: 0 | N66: 0 | O66: 0 | Q66: 76.43077796 | R66: 0 | S66: 14276.52194 | T66: 1672124.518 | U66: 2055990.601 | V66: 2311827.671 | W66: 2308892.863 | X66: 1317516.922 | Y66: 4051143.591 | Z66: 4548381.954 | AA66: 5403704.262 | AB66: 4613606.086
A67: DOPEX0203 | B67: Opex for connection services | D67: 0 | E67: 0 | F67: 0 | G67: 0 | H67: 0 | I67: 0 | J67: 0 | K67: 0 | L67: 0 | M67: 0 | N67: 0 | O67: 0 | Q67: 590561.3093 | R67: 590561.3093 | S67: 590561.3093 | T67: 590561.3093 | U67: 590561.3093 | V67: 590561.3093 | W67: 590561.3093 | X67: 590561.3093 | Y67: 590561.3093 | Z67: 588769.6644 | AA67: 489907.3164 | AB67: 410555.3258
A68: DOPEX0204 | B68: Opex for public lighting | D68: 0 | E68: 0 | F68: 0 | G68: 0 | H68: 0 | I68: 0 | J68: 0 | K68: 0 | L68: 0 | M68: 0 | N68: 0 | O68: 0 | Q68: 0 | R68: 0 | S68: 0 | T68: 0 | U68: 0 | V68: 0 | W68: 0 | X68: 0 | Y68: 0 | Z68: 0 | AA68: 0 | AB68: 0
A69: DOPEX0205 | B69: Opex for amounts payable for easement levy or similar direct charges on DNSP | D69: 0 | E69: 0 | F69: 0 | G69: 0 | H69: 0 | I69: 0 | J69: 0 | K69: 0 | L69: 0 | M69: 0 | N69: 0 | O69: 0 | Q69: 0 | R69: 0 | S69: 0 | T69: 0 | U69: 0 | V69: 0 | W69: 0 | X69: 0 | Y69: 0 | Z69: 0 | AA69: 0 | AB69: 0
A70: DOPEX0206 | B70: Opex for major generation connection point planning | D70: 0 | E70: 0 | F70: 0 | G70: 0 | H70: 0 | I70: 0 | J70: 0 | K70: 0 | L70: 1605 | M70: 17853.5 | N70: 411582.38 | O70: 146783.17 | Q70: 0 | R70: 0 | S70: 0 | T70: 0 | U70: 0 | V70: 0 | W70: 0 | X70: 0 | Y70: 0 | Z70: 0 | AA70: 0 | AB70: 0
B74: 3.2.4 - OPEX FOR HIGH VOLTAGE CUSTOMERS
D75: End user costs (not standard control services)
A76: DOPEX0401 | B76: Opex for high voltage customers | D76: 127547.5006 | E76: 137706.1511 | F76: 146736.0626 | G76: 147864.8016 | H76: 147864.8016 | I76: 147864.8016 | J76: 153508.4963 | K76: 162538.4078 | L76: 216763.6712 | M76: 140092.5105 | N76: 170544.2217 | O76: 167267.9372

Sheet 3.2.3 Provisions
B1: REGULATORY REPORTING STATEMENT
B2: =INDEX(dms_TradingNameFull_List,MATCH(dms_TradingName,dms_TradingName_List)) -> Power and Water Corporation
B3: ECONOMIC BENCHMARKING - HISTORICAL
B4: 3.2 OPERATING EXPENDITURE
B6: There is ONE table on this worksheet. Each Provision has been grouped for ease of navigation. see the Instructions sheet on how to group or ungroup tables.
B8: 3.2.3 - PROVISIONS
B9: For each provision report:
C10: $0's
C11: =IF(dms_RPT="financial",dms_fy1,dms_cy1) -> 2005-06 | D11: =IF(dms_RPT="financial",dms_fy2,dms_cy2) -> 2006-07 | E11: =IF(dms_RPT="financial",dms_fy3,dms_cy3) -> 2007-08 | F11: =IF(dms_RPT="financial",dms_fy4,dms_cy4) -> 2008-09 | G11: =IF(dms_RPT="financial",dms_fy5,dms_cy5) -> 2009-10 | H11: =IF(dms_RPT="financial",dms_fy6,dms_cy6) -> 2010-11 | I11: =IF(dms_RPT="financial",dms_fy7,dms_cy7) -> 2011-12 | J11: =IF(dms_RPT="financial",dms_fy8,dms_cy8) -> 2012-13 | K11: =IF(dms_RPT="financial",dms_fy9,dms_cy9) -> 2013-14 | L11: =IF(dms_RPT="financial",dms_fy10,dms_cy10) -> 2014-15 | M11: =IF(dms_RPT="financial",dms_fy11,dms_cy11) -> 2015-16 | N11: =IF(dms_RPT="financial",dms_fy12,dms_cy12) -> 2016-17
A12: DOPEX03A | B12: Long Service Leave
B13: Brief description of provision
A14: DOPEX0301A | B14: Opening balance (the carrying amount at the beginning of the period) | C14: -1152484.14 | D14: -1243969.52 | E14: -1482394.4 | F14: -2333378.83 | G14: -2776771.69 | H14: -3546561.25 | I14: -4390844.48 | J14: -4756302.14 | K14: -5056964.2 | L14: -5263598.18 | M14: -5679836.58 | N14: -6294405.26
B15: Additional provisions made in the period, including increases to existing provisions
A16: DOPEX0302A | B16: Opex component | C16: -654004.8 | D16: -338268.7 | E16: -923264.36 | F16: -568856.8 | G16: -877111.63 | H16: -1020821.61 | I16: -844886.95 | J16: -693050.54 | K16: -718073.15 | L16: -770930.05 | M16: -837471.64 | N16: -1012945.68
A17: DOPEX0303A | B17: Capex component | C17: -107099.89 | D17: -55394.91 | E17: -151193.86 | F17: -93156.05 | G17: -109052.11 | H17: -118640.86 | I17: -108415.94 | J17: -96818.11 | K17: -173056.49 | L17: -255002.97 | M17: -254962.91 | N17: -326105.88
A18: DOPEX0304A | B18: Other component
B19: Amounts used (that is, incurred and charged against the provision) during the period
A20: DOPEX0305A | B20: Opex component | C20: 575392.91 | D20: 133394.1 | E20: 192027.37 | F20: 187856.58 | G20: 192447.05 | H20: 264445.18 | I20: 520260.46 | J20: 429242.12 | K20: 551567.28 | L20: 458150.67 | M20: 366336.93 | N20: 421710.11
A21: DOPEX0306A | B21: Capex component | C21: 94226.4 | D21: 21844.63 | E21: 31446.42 | F21: 30763.41 | G21: 23927.12 | H21: 30734.07 | I21: 67584.76 | J21: 59964.47 | K21: 132928.38 | L21: 151543.95 | M21: 111528.95 | N21: 135764.58
A22: DOPEX0307A | B22: Other component
B23: Unused amounts reversed during the period
A24: DOPEX0308A | B24: Opex component
A25: DOPEX0309A | B25: Capex component
A26: DOPEX0310A | B26: Other component
B27: The increase during the period in the discounted amount arising from the passage of time and the effect of any change in the discount rate
A28: DOPEX0311A | B28: Opex component
A29: DOPEX0312A | B29: Capex component
A30: DOPEX0313A | B30: Other component
A31: DOPEX0314A | B31: Closing balance (carrying amount at the end of the period) | C31: -1243969.52 | D31: -1482394.4 | E31: -2333378.83 | F31: -2776771.69 | G31: -3546561.25 | H31: -4390844.48 | I31: -4756302.14 | J31: -5056964.2 | K31: -5263598.18 | L31: -5679836.58 | M31: -6294405.26 | N31: -7075982.12
A32: DOPEX03B | B32: Recreation Leave (including Reacreation Leave, Recreation Leave Loading & Recreation Leave Fares)
B33: Brief description of provision
A34: DOPEX0301B | B34: Opening balance (the carrying amount at the beginning of the period) | C34: -1353159.91 | D34: -1395847.73 | E34: -1560007.88 | F34: -2473549.81 | G34: -2932285.45 | H34: -3907172.06 | I34: -4850302.63 | J34: -5862133.35 | K34: -6165495.33 | L34: -5576676.83 | M34: -5807488.72 | N34: -6190475.86
B35: Additional provisions made in the period, including increases to existing provisions
A36: DOPEX0302B | B36: Opex component | C36: -187234.56 | D36: -1027951.97 | E36: -1713136.13 | F36: -1658950.54 | G36: -2419181.11 | H36: -2755526.59 | I36: -3232686.83 | J36: -2931266.14 | K36: -2492488.86 | L36: -2557756.21 | M36: -2996380.52 | N36: -3080828.95
A37: DOPEX0303B | B37: Capex component | C37: -30661.55 | D37: -168337.52 | E37: -280543.34 | F37: -271669.9 | G37: -300779.06 | H37: -320249.92 | I37: -414818.54 | J37: -409493.42 | K37: -600692.82 | L37: -846037.1 | M37: -912228.97 | N37: -991836.43
A38: DOPEX0304B | B38: Other component
B39: Amounts used (that is, incurred and charged against the provision) during the period
A40: DOPEX0305B | B40: Opex component | C40: 150553.62 | D40: 886891.84 | E40: 928144.51 | F40: 1264766.52 | G40: 1552099.56 | H40: 1910594.8 | I40: 2335928.22 | J40: 2665088.74 | K40: 2966959.39 | L40: 2384314.26 | M40: 2702778.62 | N40: 2904206.04
A41: DOPEX0306B | B41: Capex component | C41: 24654.68 | D41: 145237.5 | E41: 151993.04 | F41: 207118.29 | G41: 192974 | H41: 222051.14 | I41: 299746.43 | J41: 372308.84 | K41: 715040.79 | L41: 788667.16 | M41: 822843.74 | N41: 934974.78
A42: DOPEX0307B | B42: Other component | C42: .
B43: Unused amounts reversed during the period
A44: DOPEX0308B | B44: Opex component
A45: DOPEX0309B | B45: Capex component
A46: DOPEX0310B | B46: Other component
B47: The increase during the period in the discounted amount arising from the passage of time and the effect of any change in the discount rate
A48: DOPEX0311B | B48: Opex component
A49: DOPEX0312B | B49: Capex component
A50: DOPEX0313B | B50: Other component
A51: DOPEX0314B | B51: Closing balance (carrying amount at the end of the period) | C51: -1395847.73 | D51: -1560007.88 | E51: -2473549.81 | F51: -2932285.45 | G51: -3907172.06 | H51: -4850302.63 | I51: -5862133.35 | J51: -6165495.33 | K51: -5576676.83 | L51: -5807488.72 | M51: -6190475.86 | N51: -6423960.42
A52: DOPEX03C | B52: Fringe Benefit Tax
B53: Brief description of provision
A54: DOPEX0301C | B54: Opening balance (the carrying amount at the beginning of the period) | C54: -6430.43 | D54: -9534.63 | E54: -13057.82 | F54: -13831.76 | G54: 11920.8 | H54: 7995.34 | I54: 30490.53 | J54: -17067.7 | K54: -203711 | L54: -37107.53 | M54: -53047.95 | N54: -75806.1
B55: Additional provisions made in the period, including increases to existing provisions
A56: DOPEX0302C | B56: Opex component | C56: -40333.18 | D56: -52802.87 | E56: -50440.48 | F56: -139019.23 | G56: -173942.3 | H56: -109255.27 | I56: -107620.85 | J56: -150008.66 | K56: -151124.34 | L56: -119394.26 | M56: -115539.99 | N56: -258517.5
A57: DOPEX0303C | B57: Capex component | C57: -6604.96 | D57: -8647 | E57: -8260.14 | F57: -22765.8 | G57: -21626.41 | H57: -12697.75 | I57: -13809.91 | J57: -20955.98 | K57: -36421.15 | L57: -39492.42 | M57: -35175.41 | N57: -83226.65
A58: DOPEX0304C | B58: Other component
B59: Amounts used (that is, incurred and charged against the provision) during the period
A60: DOPEX0305C | B60: Opex component | C60: 37665.78 | D60: 49775.45 | E60: 49775.45 | F60: 161147.98 | G60: 170450.93 | H60: 129408.27 | I60: 65471.25 | J60: 147109.86 | K60: 137638.4 | L60: 107415.95 | M60: 98093.35 | N60: 282650.76
A61: DOPEX0306C | B61: Capex component | C61: 6168.15 | D61: 8151.23 | E61: 8151.23 | F61: 26389.61 | G61: 21192.32 | H61: 15039.95 | I61: 8401.27 | J61: 20551.02 | K61: 33171.02 | L61: 35530.31 | M61: 29863.9 | N61: 90996.07
A62: DOPEX0307C | B62: Other component
B63: Unused amounts reversed during the period
A64: DOPEX0308C | B64: Opex component
A65: DOPEX0309C | B65: Capex component
A66: DOPEX0310C | B66: Other component
B67: The increase during the period in the discounted amount arising from the passage of time and the effect of any change in the discount rate
A68: DOPEX0311C | B68: Opex component
A69: DOPEX0312C | B69: Capex component
A70: DOPEX0313C | B70: Other component
A71: DOPEX0314C | B71: Closing balance (carrying amount at the end of the period) | C71: -9534.63 | D71: -13057.82 | E71: -13831.76 | F71: 11920.8 | G71: 7995.34 | H71: 30490.53 | I71: -17067.7 | J71: -20371.46 | K71: -37108 | L71: -53047.95 | M71: -75806.1 | N71: -43903.42
A72: DOPEX03D | B72: Payroll Tax
B73: Brief description of provision
A74: DOPEX0301D | B74: Opening balance (the carrying amount at the beginning of the period) | C74: -57494.1 | D74: -62835.72 | E74: -47969.02 | F74: -66992.66 | G74: -108589.76 | H74: -121030.74 | I74: -193573.56 | J74: -133530.71 | K74: -133124.45 | L74: -152834.54 | M74: -183080.65 | N74: -195476.52
B75: Additional provisions made in the period, including increases to existing provisions
A76: DOPEX0302D | B76: Opex component | C76: -597918.51 | D76: -668220.61 | E76: -723238.49 | F76: -1020258.97 | G76: -1319454.48 | H76: -1658485.47 | I76: -1741151.05 | J76: -1817583.54 | K76: -1691643.18 | L76: -1655747.41 | M76: -1782818.14 | N76: -1898446.14
A77: DOPEX0303D | B77: Capex component | C77: -97915.19 | D77: -109427.87 | E77: -118437.61 | F77: -167077.71 | G77: -164049.01 | H77: -192750.76 | I77: -223424.59 | J77: -253913.65 | K77: -407688.04 | L77: -547676.8 | M77: -542767.63 | N77: -611182.27
A78: DOPEX0304D | B78: Other component
B79: Amounts used (that is, incurred and charged against the provision) during the period
A80: DOPEX0305D | B80: Opex component | C80: 593328.54 | D80: 680995.33 | E80: 706891.79 | F80: 984515.26 | G80: 1308389.26 | H80: 1593495.81 | I80: 1794365.43 | J80: 1817940 | K80: 1675760.77 | L80: 1633019.19 | M80: 1773315.34 | N80: 1898855.28
A81: DOPEX0306D | B81: Capex component | C81: 97163.54 | D81: 111519.86 | E81: 115760.67 | F81: 161224.32 | G81: 162673.26 | H81: 185197.6 | I81: 230253.06 | J81: 253963.45 | K81: 403860.36 | L81: 540158.92 | M81: 539874.56 | N81: 611313.99
A82: DOPEX0307D | B82: Other component
B83: Unused amounts reversed during the period
A84: DOPEX0308D | B84: Opex component
A85: DOPEX0309D | B85: Capex component
A86: DOPEX0310D | B86: Other component
B87: The increase during the period in the discounted amount arising from the passage of time and the effect of any change in the discount rate
A88: DOPEX0311D | B88: Opex component
A89: DOPEX0312D | B89: Capex component
A90: DOPEX0313D | B90: Other component
A91: DOPEX0314D | B91: Closing balance (carrying amount at the end of the period) | C91: -62835.72 | D91: -47969.02 | E91: -66992.66 | F91: -108589.76 | G91: -121030.74 | H91: -193573.56 | I91: -133530.71 | J91: -133124.45 | K91: -152834.54 | L91: -183080.65 | M91: -195476.52 | N91: -194935.65
A92: DOPEX03E | B92: Provision name
B93: Brief description of provision
A94: DOPEX0301E | B94: Opening balance (the carrying amount at the beginning of the period)
B95: Additional provisions made in the period, including increases to existing provisions
A96: DOPEX0302E | B96: Opex component
A97: DOPEX0303E | B97: Capex component
A98: DOPEX0304E | B98: Other component
B99: Amounts used (that is, incurred and charged against the provision) during the period
A100: DOPEX0305E | B100: Opex component
A101: DOPEX0306E | B101: Capex component
A102: DOPEX0307E | B102: Other component
B103: Unused amounts reversed during the period
A104: DOPEX0308E | B104: Opex component
A105: DOPEX0309E | B105: Capex component
A106: DOPEX0310E | B106: Other component
B107: The increase during the period in the discounted amount arising from the passage of time and the effect of any change in the discount rate
A108: DOPEX0311E | B108: Opex component
A109: DOPEX0312E | B109: Capex component
A110: DOPEX0313E | B110: Other component
A111: DOPEX0314E | B111: Closing balance (carrying amount at the end of the period)
A112: DOPEX03F | B112: Provision name
B113: Brief description of provision
A114: DOPEX0301F | B114: Opening balance (the carrying amount at the beginning of the period)
B115: Additional provisions made in the period, including increases to existing provisions
A116: DOPEX0302F | B116: Opex component
A117: DOPEX0303F | B117: Capex component
A118: DOPEX0304F | B118: Other component
B119: Amounts used (that is, incurred and charged against the provision) during the period
A120: DOPEX0305F | B120: Opex component
A121: DOPEX0306F | B121: Capex component
A122: DOPEX0307F | B122: Other component
B123: Unused amounts reversed during the period
A124: DOPEX0308F | B124: Opex component
A125: DOPEX0309F | B125: Capex component
A126: DOPEX0310F | B126: Other component
B127: The increase during the period in the discounted amount arising from the passage of time and the effect of any change in the discount rate
A128: DOPEX0311F | B128: Opex component
A129: DOPEX0312F | B129: Capex component
A130: DOPEX0313F | B130: Other component
A131: DOPEX0314F | B131: Closing balance (carrying amount at the end of the period)
A132: DOPEX03G | B132: Provision name
B133: Brief description of provision
A134: DOPEX0301G | B134: Opening balance (the carrying amount at the beginning of the period)
B135: Additional provisions made in the period, including increases to existing provisions
A136: DOPEX0302G | B136: Opex component
A137: DOPEX0303G | B137: Capex component
A138: DOPEX0304G | B138: Other component
B139: Amounts used (that is, incurred and charged against the provision) during the period
A140: DOPEX0305G | B140: Opex component
A141: DOPEX0306G | B141: Capex component
A142: DOPEX0307G | B142: Other component
B143: Unused amounts reversed during the period
A144: DOPEX0308G | B144: Opex component
A145: DOPEX0309G | B145: Capex component
A146: DOPEX0310G | B146: Other component
B147: The increase during the period in the discounted amount arising from the passage of time and the effect of any change in the discount rate
A148: DOPEX0311G | B148: Opex component
A149: DOPEX0312G | B149: Capex component
A150: DOPEX0313G | B150: Other component
A151: DOPEX0314G | B151: Closing balance (carrying amount at the end of the period)
A152: DOPEX03H | B152: Provision name
B153: Brief description of provision
A154: DOPEX0301H | B154: Opening balance (the carrying amount at the beginning of the period)
B155: Additional provisions made in the period, including increases to existing provisions
A156: DOPEX0302H | B156: Opex component
A157: DOPEX0303H | B157: Capex component
A158: DOPEX0304H | B158: Other component
B159: Amounts used (that is, incurred and charged against the provision) during the period
A160: DOPEX0305H | B160: Opex component
A161: DOPEX0306H | B161: Capex component
A162: DOPEX0307H | B162: Other component
B163: Unused amounts reversed during the period
A164: DOPEX0308H | B164: Opex component
A165: DOPEX0309H | B165: Capex component
A166: DOPEX0310H | B166: Other component
B167: The increase during the period in the discounted amount arising from the passage of time and the effect of any change in the discount rate
A168: DOPEX0311H | B168: Opex component
A169: DOPEX0312H | B169: Capex component
A170: DOPEX0313H | B170: Other component
A171: DOPEX0314H | B171: Closing balance (carrying amount at the end of the period)
A172: DOPEX03I | B172: Provision name
B173: Brief description of provision
A174: DOPEX0301I | B174: Opening balance (the carrying amount at the beginning of the period)
B175: Additional provisions made in the period, including increases to existing provisions
A176: DOPEX0302I | B176: Opex component
A177: DOPEX0303I | B177: Capex component
A178: DOPEX0304I | B178: Other component
B179: Amounts used (that is, incurred and charged against the provision) during the period
A180: DOPEX0305I | B180: Opex component
A181: DOPEX0306I | B181: Capex component
A182: DOPEX0307I | B182: Other component
B183: Unused amounts reversed during the period
A184: DOPEX0308I | B184: Opex component
A185: DOPEX0309I | B185: Capex component
A186: DOPEX0310I | B186: Other component
B187: The increase during the period in the discounted amount arising from the passage of time and the effect of any change in the discount rate
A188: DOPEX0311I | B188: Opex component
A189: DOPEX0312I | B189: Capex component
A190: DOPEX0313I | B190: Other component
A191: DOPEX0314I | B191: Closing balance (carrying amount at the end of the period)
A192: DOPEX03J | B192: Provision name
B193: Brief description of provision
A194: DOPEX0301J | B194: Opening balance (the carrying amount at the beginning of the period)
B195: Additional provisions made in the period, including increases to existing provisions
A196: DOPEX0302J | B196: Opex component
A197: DOPEX0303J | B197: Capex component
A198: DOPEX0304J | B198: Other component
B199: Amounts used (that is, incurred and charged against the provision) during the period
A200: DOPEX0305J | B200: Opex component
A201: DOPEX0306J | B201: Capex component
A202: DOPEX0307J | B202: Other component
... 169 more rows

Sheet 3.3 Assets (RAB)
B1: REGULATORY REPORTING STATEMENT
B2: =INDEX(dms_TradingNameFull_List,MATCH(dms_TradingName,dms_TradingName_List)) -> Power and Water Corporation
B3: ECONOMIC BENCHMARKING - HISTORICAL
B4: 3.3 ASSETS
B6: There are FOUR tables on this worksheet. Both ROWS and COLUMNS in each have been grouped (and sub-grouped) for ease of navigation. see the Instructions sheet on how to group or ungroup tables.
B8: 3.3.1 - REGULATORY ASSET BASE VALUES
C9: Network services | P9: Standard control services | AC9: Alternative control services
C10: Actual ($0's) | P10: Actual ($0's) | AC10: Actual ($0's)
C11: =IF(dms_RPT="financial",dms_fy1,dms_cy1) -> 2005-06 | D11: =IF(dms_RPT="financial",dms_fy2,dms_cy2) -> 2006-07 | E11: =IF(dms_RPT="financial",dms_fy3,dms_cy3) -> 2007-08 | F11: =IF(dms_RPT="financial",dms_fy4,dms_cy4) -> 2008-09 | G11: =IF(dms_RPT="financial",dms_fy5,dms_cy5) -> 2009-10 | H11: =IF(dms_RPT="financial",dms_fy6,dms_cy6) -> 2010-11 | I11: =IF(dms_RPT="financial",dms_fy7,dms_cy7) -> 2011-12 | J11: =IF(dms_RPT="financial",dms_fy8,dms_cy8) -> 2012-13 | K11: =IF(dms_RPT="financial",dms_fy9,dms_cy9) -> 2013-14 | L11: =IF(dms_RPT="financial",dms_fy10,dms_cy10) -> 2014-15 | M11: =IF(dms_RPT="financial",dms_fy11,dms_cy11) -> 2015-16 | N11: =IF(dms_RPT="financial",dms_fy12,dms_cy12) -> 2016-17 | P11: =IF(dms_RPT="financial",dms_fy1,dms_cy1) -> 2005-06 | Q11: =IF(dms_RPT="financial",dms_fy2,dms_cy2) -> 2006-07 | R11: =IF(dms_RPT="financial",dms_fy3,dms_cy3) -> 2007-08 | S11: =IF(dms_RPT="financial",dms_fy4,dms_cy4) -> 2008-09 | T11: =IF(dms_RPT="financial",dms_fy5,dms_cy5) -> 2009-10 | U11: =IF(dms_RPT="financial",dms_fy6,dms_cy6) -> 2010-11 | V11: =IF(dms_RPT="financial",dms_fy7,dms_cy7) -> 2011-12 | W11: =IF(dms_RPT="financial",dms_fy8,dms_cy8) -> 2012-13 | X11: =IF(dms_RPT="financial",dms_fy9,dms_cy9) -> 2013-14 | Y11: =IF(dms_RPT="financial",dms_fy10,dms_cy10) -> 2014-15 | Z11: =IF(dms_RPT="financial",dms_fy11,dms_cy11) -> 2015-16 | AA11: =IF(dms_RPT="financial",dms_fy12,dms_cy12) -> 2016-17 | AC11: =IF(dms_RPT="financial",dms_fy1,dms_cy1) -> 2005-06 | AD11: =IF(dms_RPT="financial",dms_fy2,dms_cy2) -> 2006-07 | AE11: =IF(dms_RPT="financial",dms_fy3,dms_cy3) -> 2007-08 | AF11: =IF(dms_RPT="financial",dms_fy4,dms_cy4) -> 2008-09 | AG11: =IF(dms_RPT="financial",dms_fy5,dms_cy5) -> 2009-10 | AH11: =IF(dms_RPT="financial",dms_fy6,dms_cy6) -> 2010-11 | AI11: =IF(dms_RPT="financial",dms_fy7,dms_cy7) -> 2011-12 | AJ11: =IF(dms_RPT="financial",dms_fy8,dms_cy8) -> 2012-13 | AK11: =IF(dms_RPT="financial",dms_fy9,dms_cy9) -> 2013-14 | AL11: =IF(dms_RPT="financial",dms_fy10,dms_cy10) -> 2014-15 | AM11: =IF(dms_RPT="financial",dms_fy11,dms_cy11) -> 2015-16 | AN11: =IF(dms_RPT="financial",dms_fy12,dms_cy12) -> 2016-17
B12: For total asset base:
A13: DRAB0101 | B13: Opening value | C13: 304095970.2 | D13: 317562013.3 | E13: 335353841.5 | F13: 375364746.1 | G13: 421044482 | H13: 483999587.5 | I13: 560140983.1 | J13: 615260029.2 | K13: 703762556.4 | L13: 772018233.1 | M13: 806743811.6 | N13: 828789080.2 | P13: 346097765.7 | Q13: 361299100.1 | R13: 381267176.5 | S13: 426231917.5 | T13: 476546530.1 | U13: 545181087.6 | V13: 627040538.8 | W13: 685448097.6 | X13: 780347310.6 | Y13: 853141392.9 | Z13: 893022695.6 | AA13: 918527462.9 | AC13: 3690148.444 | AD13: 3827894.885 | AE13: 3963382.507 | AF13: 4597050.039 | AG13: 5238859.508 | AH13: 5920632.861 | AI13: 6396442.955 | AJ13: 6862208.173 | AK13: 7610765.219 | AL13: 7505972.081 | AM13: 8454227.014 | AN13: 10425813.64
A14: DRAB0102 | B14: Inflation addition | C14: 8889528.969 | D14: 7892073.703 | E14: 14328050.97 | F14: 9145099.019 | G14: 12289947.04 | H14: 15760490.77 | I14: 9117248.962 | J14: 15396897.63 | K14: 17241398.93 | L14: 10254511.64 | M14: 10575293.41 | N14: 17617512.79 | P14: 10117352.47 | Q14: 8979030.889 | R14: 16289706.16 | S14: 10384387.8 | T14: 13910006.82 | U14: 17752745.5 | V14: 10206153.23 | W14: 17153355.8 | X14: 19117640.13 | Y14: 11332048.86 | Z14: 11706290.02 | AA14: 19525075.46 | AC14: 107872.7925 | AD14: 95131.11548 | AE14: 169336.2041 | AF14: 111999.0043 | AG14: 152918.0613 | AH14: 192793.7171 | AI14: 104113.0084 | AJ14: 171726.9313 | AK14: 186455.2726 | AL14: 99699.81891 | AM14: 110823.2006 | AN14: 221620.8075
A15: DRAB0103 | B15: Straight line depreciation | C15: -15014361.9 | D15: -14807999.12 | E15: -14268306.99 | F15: -13880913.57 | G15: -22246357.42 | H15: -23770264.43 | I15: -24809543.24 | J15: -20532596 | K15: -35985656.07 | L15: -47001470.64 | M15: -49793391.12 | N15: -45347800.52 | P15: -17153578.38 | Q15: -17056671.15 | R15: -15592848.24 | S15: -15329940.35 | T15: -24442307.82 | U15: -26171129.8 | V15: -27373761.02 | W15: -23254974.46 | X15: -38588206.64 | Y15: -50511200.83 | Z15: -53382339.34 | AA15: -49016950.41 | AC15: -14954.40668 | AD15: -16180.04362 | AE15: -21410.45434 | AF15: -30749.88535 | AG15: -37329.64948 | AH15: -38545.21579 | AI15: -39172.60486 | AJ15: -40152.90028 | AK15: -989410.302 | AL15: -1239279.165 | AM15: -1353913.929 | AN15: -1489942.114
A16: DRAB0105 | B16: Actual additions (recognised in RAB) | C16: 19590876.06 | D16: 24707753.65 | E16: 39951160.59 | F16: 50415550.46 | G16: 73094112.82 | H16: 84826977.3 | I16: 71344403.45 | J16: 98233303.29 | K16: 87666403.2 | L16: 71572561.13 | M16: 61366927.41 | N16: 43319728.37 | P16: 22237560.24 | Q16: 28045716.73 | R16: 44267883.03 | S16: 55260165.13 | T16: 79349455.43 | U16: 91116657.06 | V16: 76249952.59 | W16: 105953959.3 | X16: 93106985.59 | Y16: 79178547.15 | Z16: 67300439.48 | AA16: 48311973.48 | AC16: 44828.05523 | AD16: 56536.55008 | AE16: 485741.7825 | AF16: 560560.3504 | AG16: 566184.9407 | AH16: 321561.5924 | AI16: 402784.7498 | AJ16: 616983.0151 | AK16: 698683.8706 | AL16: 2087834.28 | AM16: 3214677.356 | AN16: 3176972.053
A17: DRAB0106 | B17: Disposals | C17: 0 | D17: 0 | E17: 0 | F17: 0 | G17: -182596.9545 | H17: -675807.9935 | I17: -533063.1139 | J17: -4595077.763 | K17: -666469.2699 | L17: -100023.6616 | M17: -103561.1409 | N17: -267016.0798 | P17: 0 | Q17: 0 | R17: 0 | S17: 0 | T17: -182596.9545 | U17: -838821.5356 | V17: -674785.9551 | W17: -4953127.618 | X17: -842336.8341 | Y17: -118092.3948 | Z17: -119622.879 | AA17: -297648.4377 | AC17: 0 | AD17: 0 | AE17: 0 | AF17: 0 | AG17: 0 | AH17: 0 | AI17: -1959.934965 | AJ17: 0 | AK17: -521.9793624 | AL17: 0 | AM17: 0 | AN17: 0
A18: DRAB0107 | B18: Closing value | C18: =SUM(C13:C17) -> 317562013.3 | D18: 335353841.5 | E18: 375364746.1 | F18: 421044482 | G18: 483999587.5 | H18: 560140983.1 | I18: 615260029.2 | J18: =SUM(J13:J17) -> 703762556.4 | K18: =SUM(K13:K17) -> 772018233.1 | L18: 806743811.6 | M18: 828789080.2 | N18: 844111504.7 | P18: =SUM(P13:P17) -> 361299100.1 | Q18: 381267176.5 | R18: 426231917.5 | S18: 476546530.1 | T18: 545181087.6 | U18: 627040538.8 | V18: 685448097.6 | W18: 780347310.6 | X18: 853141392.9 | Y18: 893022695.6 | Z18: 918527462.9 | AA18: 937049913 | AC18: =SUM(AC13:AC17) -> 3827894.885 | AD18: 3963382.507 | AE18: 4597050.039 | AF18: 5238859.508 | AG18: 5920632.861 | AH18: 6396442.955 | AI18: 6862208.173 | AJ18: 7610765.219 | AK18: 7505972.081 | AL18: 8454227.014 | AM18: 10425813.64 | AN18: 12334464.39
B21: 3.3.2 - ASSET VALUE ROLL FORWARD
C22: Network services | P22: Standard control services | AC22: Alternative control services
C23: Actual ($0's) | P23: Actual ($0's) | AC23: Actual ($0's)
C24: =IF(dms_RPT="financial",dms_fy1,dms_cy1) -> 2005-06 | D24: =IF(dms_RPT="financial",dms_fy2,dms_cy2) -> 2006-07 | E24: =IF(dms_RPT="financial",dms_fy3,dms_cy3) -> 2007-08 | F24: =IF(dms_RPT="financial",dms_fy4,dms_cy4) -> 2008-09 | G24: =IF(dms_RPT="financial",dms_fy5,dms_cy5) -> 2009-10 | H24: =IF(dms_RPT="financial",dms_fy6,dms_cy6) -> 2010-11 | I24: =IF(dms_RPT="financial",dms_fy7,dms_cy7) -> 2011-12 | J24: =IF(dms_RPT="financial",dms_fy8,dms_cy8) -> 2012-13 | K24: =IF(dms_RPT="financial",dms_fy9,dms_cy9) -> 2013-14 | L24: =IF(dms_RPT="financial",dms_fy10,dms_cy10) -> 2014-15 | M24: =IF(dms_RPT="financial",dms_fy11,dms_cy11) -> 2015-16 | N24: =IF(dms_RPT="financial",dms_fy12,dms_cy12) -> 2016-17 | P24: =IF(dms_RPT="financial",dms_fy1,dms_cy1) -> 2005-06 | Q24: =IF(dms_RPT="financial",dms_fy2,dms_cy2) -> 2006-07 | R24: =IF(dms_RPT="financial",dms_fy3,dms_cy3) -> 2007-08 | S24: =IF(dms_RPT="financial",dms_fy4,dms_cy4) -> 2008-09 | T24: =IF(dms_RPT="financial",dms_fy5,dms_cy5) -> 2009-10 | U24: =IF(dms_RPT="financial",dms_fy6,dms_cy6) -> 2010-11 | V24: =IF(dms_RPT="financial",dms_fy7,dms_cy7) -> 2011-12 | W24: =IF(dms_RPT="financial",dms_fy8,dms_cy8) -> 2012-13 | X24: =IF(dms_RPT="financial",dms_fy9,dms_cy9) -> 2013-14 | Y24: =IF(dms_RPT="financial",dms_fy10,dms_cy10) -> 2014-15 | Z24: =IF(dms_RPT="financial",dms_fy11,dms_cy11) -> 2015-16 | AA24: =IF(dms_RPT="financial",dms_fy12,dms_cy12) -> 2016-17 | AC24: =IF(dms_RPT="financial",dms_fy1,dms_cy1) -> 2005-06 | AD24: =IF(dms_RPT="financial",dms_fy2,dms_cy2) -> 2006-07 | AE24: =IF(dms_RPT="financial",dms_fy3,dms_cy3) -> 2007-08 | AF24: =IF(dms_RPT="financial",dms_fy4,dms_cy4) -> 2008-09 | AG24: =IF(dms_RPT="financial",dms_fy5,dms_cy5) -> 2009-10 | AH24: =IF(dms_RPT="financial",dms_fy6,dms_cy6) -> 2010-11 | AI24: =IF(dms_RPT="financial",dms_fy7,dms_cy7) -> 2011-12 | AJ24: =IF(dms_RPT="financial",dms_fy8,dms_cy8) -> 2012-13 | AK24: =IF(dms_RPT="financial",dms_fy9,dms_cy9) -> 2013-14 | AL24: =IF(dms_RPT="financial",dms_fy10,dms_cy10) -> 2014-15 | AM24: =IF(dms_RPT="financial",dms_fy11,dms_cy11) -> 2015-16 | AN24: =IF(dms_RPT="financial",dms_fy12,dms_cy12) -> 2016-17
B25: For overhead network assets less than 33kV:
A26: DRAB0201 | B26: Opening value | C26: 27614910.64 | D26: 29653941.39 | E26: 32151227.21 | F26: 35498549.08 | G26: 38010750.49 | H26: 40683326.37 | I26: 43526628.73 | J26: 46160688.98 | K26: 51723392.2 | L26: 55397492.69 | M26: 57862890.85 | N26: 59114841.73 | P26: 36812235.08 | Q26: 39530378.2 | R26: 42859401.2 | S26: 47321570.24 | T26: 50670476.57 | U26: 54233171.12 | V26: 58023453.71 | W26: 61534804.74 | X26: 68950202.22 | Y26: 73847985.61 | Z26: 77134500.57 | AA26: 78803421.77 | AC26: 0 | AD26: 0 | AE26: 0 | AF26: 0 | AG26: 0 | AH26: 0 | AI26: 0 | AJ26: 0 | AK26: 0 | AL26: 0 | AM26: 0 | AN26: 0
A27: DRAB0202 | B27: Inflation addition | C27: 807256.8274 | D27: 736961.857 | E27: 1373666.751 | F27: 864859.446 | G27: 1109502.987 | H27: 1324772.182 | I27: 708470.0506 | J27: 1155172.397 | K27: 1267165.51 | L27: 735830.0737 | M27: 758502.3146 | N27: 1256600.148 | P27: 1076118.93 | Q27: 982411.7658 | R27: 1831175.34 | S27: 1152906.473 | T27: 1479030.127 | U27: 1765996.118 | V27: 944430.5792 | W27: 1539910.029 | X27: 1689203.172 | Y27: 980903.0347 | Z27: 1011126.412 | AA27: 1675118.947 | AC27: 0 | AD27: 0 | AE27: 0 | AF27: 0 | AG27: 0 | AH27: 0 | AI27: 0 | AJ27: 0 | AK27: 0 | AL27: 0 | AM27: 0 | AN27: 0
A28: DRAB0203 | B28: Straight line depreciation | C28: -1068297.969 | D28: -1140496.272 | E28: -1242990.768 | F28: -1327757.69 | G28: -1467058.767 | H28: -1568984.846 | I28: -1648832.17 | J28: -1753509.598 | K28: -1587967.677 | L28: -2385458.854 | M28: -2437455.842 | N28: -2492456.728 | P28: -1424101.512 | Q28: -1520345.925 | R28: -1656976.876 | S28: -1769975.968 | T28: -1955672.169 | U28: -2091545.388 | V28: -2197986.379 | W28: -2337527.301 | X28: -2116850.573 | Y28: -3179951.34 | Z28: -3249266.262 | AA28: -3322585.548 | AC28: 0 | AD28: 0 | AE28: 0 | AF28: 0 | AG28: 0 | AH28: 0 | AI28: 0 | AJ28: 0 | AK28: 0 | AL28: 0 | AM28: 0 | AN28: 0
A29: DRAB0205 | B29: Actual additions (recognised in RAB) | C29: 2300071.893 | D29: 2900820.236 | E29: 3216645.884 | F29: 2975099.653 | G29: 3030131.663 | H29: 3148207.712 | I29: 3579350.154 | J29: 6345776.306 | K29: 4056816.702 | L29: 4130774.848 | M29: 2946605.471 | N29: 2771343.422 | P29: 3066125.7 | Q29: 3866957.161 | R29: 4287970.582 | S29: 3965975.818 | T29: 4039336.594 | U29: 4196738.634 | V29: 4771475.854 | W29: 8459278.112 | X29: 5407965.721 | Y29: 5506556.105 | Z29: 3927991.465 | AA29: 3694357.258 | AC29: 0 | AD29: 0 | AE29: 0 | AF29: 0 | AG29: 0 | AH29: 0 | AI29: 0 | AJ29: 0 | AK29: 0 | AL29: 0 | AM29: 0 | AN29: 0
A30: DRAB0206 | B30: Disposals | C30: 0 | D30: 0 | E30: 0 | F30: 0 | G30: 0 | H30: -60692.68513 | I30: -4927.787962 | J30: -184735.8836 | K30: -61914.04885 | L30: -15747.90198 | M30: -15701.07199 | N30: -29944.50863 | P30: 0 | Q30: 0 | R30: 0 | S30: 0 | T30: 0 | U30: -80906.77612 | V30: -6569.019587 | W30: -246263.3634 | X30: -82534.92292 | Y30: -20992.8425 | Z30: -20930.41548 | AA30: -39917.72073 | AC30: 0 | AD30: 0 | AE30: 0 | AF30: 0 | AG30: 0 | AH30: 0 | AI30: 0 | AJ30: 0 | AK30: 0 | AL30: 0 | AM30: 0 | AN30: 0
A31: DRAB0207 | B31: Closing value | C31: =SUM(C26:C30) -> 29653941.39 | D31: 32151227.21 | E31: 35498549.08 | F31: 38010750.49 | G31: 40683326.37 | H31: 43526628.73 | I31: 46160688.98 | J31: =SUM(J26:J30) -> 51723392.2 | K31: =SUM(K26:K30) -> 55397492.69 | L31: 57862890.85 | M31: 59114841.73 | N31: 60620384.06 | P31: =SUM(P26:P30) -> 39530378.2 | Q31: 42859401.2 | R31: 47321570.24 | S31: 50670476.57 | T31: 54233171.12 | U31: 58023453.71 | V31: 61534804.74 | W31: 68950202.22 | X31: 73847985.61 | Y31: 77134500.57 | Z31: 78803421.77 | AA31: 80810394.71 | AC31: =SUM(AC26:AC30) -> 0 | AD31: 0 | AE31: 0 | AF31: 0 | AG31: 0 | AH31: 0 | AI31: 0 | AJ31: 0 | AK31: 0 | AL31: 0 | AM31: 0 | AN31: 0
B32: For underground network assets less than 33kV:
A33: DRAB0301 | B33: Opening value | C33: 57203273.3 | D33: 61427051 | E33: 66600087.43 | F33: 73533942.41 | G33: 78737875.93 | H33: 84274019.28 | I33: 90163816.27 | J33: 95620176 | K33: 107143112.9 | L33: 114753877.8 | M33: 119860756.8 | N33: 122454020.6 | P33: 76255193.13 | Q33: 81885727.29 | R33: 88781676.93 | S33: 98024897.12 | T33: 104962034.3 | U33: 112342026 | V33: 120193457.9 | W33: 127467093.5 | X33: 142827819 | Y33: 152973398.4 | Z33: 159781156.4 | AA33: 163238123.5 | AC33: 0 | AD33: 0 | AE33: 0 | AF33: 0 | AG33: 0 | AH33: 0 | AI33: 0 | AJ33: 0 | AK33: 0 | AL33: 0 | AM33: 0 | AN33: 0
A34: DRAB0302 | B34: Inflation addition | C34: 1672202.873 | D34: 1526589.433 | E34: 2845500.271 | F34: 1791524.621 | G34: 2298294.757 | H34: 2744217.014 | I34: 1467569.746 | J34: 2392897.297 | K34: 2624886.953 | L34: 1524245.056 | M34: 1571208.423 | N34: 2602996.742 | P34: 2229140.847 | Q34: 2035029.909 | R34: 3793212.525 | S34: 2388203.474 | T34: 3063756.678 | U34: 3658196.225 | V34: 1956353.334 | W34: 3189867.205 | X34: 3499122.516 | Y34: 2031904.722 | Z34: 2094509.541 | AA34: 3469941.628 | AC34: 0 | AD34: 0 | AE34: 0 | AF34: 0 | AG34: 0 | AH34: 0 | AI34: 0 | AJ34: 0 | AK34: 0 | AL34: 0 | AM34: 0 | AN34: 0
A35: DRAB0303 | B35: Straight line depreciation | C35: -2212940.346 | D35: -2362496.501 | E35: -2574810.118 | F35: -2750401.709 | G35: -3038958.819 | H35: -3250094.98 | I35: -3415495.805 | J35: -3632331.285 | K35: -3289416.894 | L35: -4941390.836 | M35: -5049100.697 | N35: -5163033.022 | P35: -2949974.428 | Q35: -3149341.227 | R35: -3432367.266 | S35: -3666440.772 | T35: -4051103.691 | U35: -4332560.115 | V35: -4553048.754 | W35: -4842102.692 | X35: -4384978.447 | Y35: -6587152.986 | Z35: -6730736.312 | AA35: -6882614.534 | AC35: 0 | AD35: 0 | AE35: 0 | AF35: 0 | AG35: 0 | AH35: 0 | AI35: 0 | AJ35: 0 | AK35: 0 | AL35: 0 | AM35: 0 | AN35: 0
A36: DRAB0305 | B36: Actual additions (recognised in RAB) | C36: 4764515.178 | D36: 6008943.497 | E36: 6663164.828 | F36: 6162810.605 | G36: 6276807.409 | H36: 6521397.646 | I36: 7414493.517 | J36: 13145044.56 | K36: 8403547.536 | L36: 8556645.972 | M36: 6103680.306 | N36: 5740640.284 | P36: 6351367.747 | Q36: 8010260.96 | R36: 8882374.933 | S36: 8215374.502 | T36: 8367338.679 | U36: 8693391.274 | V36: 9883938.497 | W36: 17523086.6 | X36: 11202403.35 | Y36: 11406492.21 | Z36: 8136550.474 | AA36: 7652597.627 | AC36: 0 | AD36: 0 | AE36: 0 | AF36: 0 | AG36: 0 | AH36: 0 | AI36: 0 | AJ36: 0 | AK36: 0 | AL36: 0 | AM36: 0 | AN36: 0
A37: DRAB0306 | B37: Disposals | C37: 0 | D37: 0 | E37: 0 | F37: 0 | G37: 0 | H37: -125722.6874 | I37: -10207.73334 | J37: -382673.6565 | K37: -128252.6894 | L37: -32621.20556 | M37: -32524.19894 | N37: -62028.95932 | P37: 0 | Q37: 0 | R37: 0 | S37: 0 | T37: 0 | U37: -167595.4409 | V37: -13607.48489 | W37: -510125.5906 | X37: -170968.0764 | Y37: -43485.90887 | Z37: -43356.59357 | AA37: -82688.10506 | AC37: 0 | AD37: 0 | AE37: 0 | AF37: 0 | AG37: 0 | AH37: 0 | AI37: 0 | AJ37: 0 | AK37: 0 | AL37: 0 | AM37: 0 | AN37: 0
A38: DRAB0307 | B38: Closing value | C38: =SUM(C33:C37) -> 61427051 | D38: 66600087.43 | E38: 73533942.41 | F38: 78737875.93 | G38: 84274019.28 | H38: 90163816.27 | I38: 95620176 | J38: =SUM(J33:J37) -> 107143112.9 | K38: =SUM(K33:K37) -> 114753877.8 | L38: 119860756.8 | M38: 122454020.6 | N38: 125572595.7 | P38: =SUM(P33:P37) -> 81885727.29 | Q38: 88781676.93 | R38: 98024897.12 | S38: 104962034.3 | T38: 112342026 | U38: 120193457.9 | V38: 127467093.5 | W38: 142827819 | X38: 152973398.4 | Y38: 159781156.4 | Z38: 163238123.5 | AA38: 167395360.1 | AC38: =SUM(AC33:AC37) -> 0 | AD38: 0 | AE38: 0 | AF38: 0 | AG38: 0 | AH38: 0 | AI38: 0 | AJ38: 0 | AK38: 0 | AL38: 0 | AM38: 0 | AN38: 0
B39: For distribution substations and transformers:
A40: DRAB0401 | B40: Opening value | C40: 41291951.6 | D40: 40239344.42 | E40: 39103194.23 | F40: 43695880.98 | G40: 49895935.06 | H40: 58739735.87 | I40: 67175063.57 | J40: 68958383.18 | K40: 71078753.33 | L40: 73420422.69 | M40: 81328176.4 | N40: 87870085.55 | P40: 55044502.92 | Q40: 53641318.11 | R40: 52126765.76 | S40: 58249076.51 | T40: 66514098.66 | U40: 78303384.49 | V40: 89548152.58 | W40: 91925418.32 | X40: 94751991.45 | Y40: 97873568.92 | Z40: 108415051.1 | AA40: 117135785.4 | AC40: 0 | AD40: 0 | AE40: 0 | AF40: 0 | AG40: 0 | AH40: 0 | AI40: 0 | AJ40: 0 | AK40: 0 | AL40: 0 | AM40: 0 | AN40: 0
A41: DRAB0402 | B41: Inflation addition | C41: 1207072.885 | D41: 1000031.045 | E41: 1670690.747 | F41: 1064572.959 | G41: 1456421.888 | H41: 1912743.5 | I41: 1093388.624 | J41: 1725685.265 | K41: 1741350.304 | L41: 975223.8308 | M41: 1066099.691 | N41: 1867848.399 | P41: 1609096.31 | Q41: 1333097.846 | R41: 2227125.096 | S41: 1419135.862 | T41: 1941492.61 | U41: 2549795.083 | V41: 1457548.77 | W41: 2300435.894 | X41: 2321318.276 | Y41: 1300028.43 | Z41: 1421171.082 | AA41: 2489947.378 | AC41: 0 | AD41: 0 | AE41: 0 | AF41: 0 | AG41: 0 | AH41: 0 | AI41: 0 | AJ41: 0 | AK41: 0 | AL41: 0 | AM41: 0 | AN41: 0
A42: DRAB0403 | B42: Straight line depreciation | C42: -3141746.165 | D42: -3248631.311 | E42: -159126.1326 | F42: -272534.6812 | G42: -2087310.116 | H42: -2389503.834 | I42: -2634720.309 | J42: -2788083.873 | K42: -2936757.661 | L42: -3211093.865 | M42: -3289238.631 | N42: -3361110.459 | P42: -4188125.027 | Q42: -4330608.962 | R42: -212124.1194 | S42: -363304.118 | T42: -2782502.238 | U42: -3185343.528 | V42: -3512230.934 | W42: -3716673.224 | X42: -3914863.778 | Y42: -4280569.427 | Z42: -4384740.812 | AA42: -4480550.018 | AC42: 0 | AD42: 0 | AE42: 0 | AF42: 0 | AG42: 0 | AH42: 0 | AI42: 0 | AJ42: 0 | AK42: 0 | AL42: 0 | AM42: 0 | AN42: 0
A43: DRAB0405 | B43: Actual additions (recognised in RAB) | C43: 882066.0901 | D43: 1112450.081 | E43: 3081122.135 | F43: 5408015.801 | G43: 9474689.045 | H43: 9215119.823 | I43: 3735037.747 | J43: 3690401.725 | K43: 3874951.268 | L43: 10149505.9 | M43: 8765048.086 | N43: 6477201.85 | P43: 1175843.901 | Q43: 1482958.77 | R43: 4107309.772 | S43: 7209190.411 | T43: 12630295.46 | U43: 12284275.03 | V43: 4979016.205 | W43: 4919513.867 | X43: 5165528.828 | Y43: 13529864.43 | Z43: 11684303.99 | AA43: 8634475.783 | AC43: 0 | AD43: 0 | AE43: 0 | AF43: 0 | AG43: 0 | AH43: 0 | AI43: 0 | AJ43: 0 | AK43: 0 | AL43: 0 | AM43: 0 | AN43: 0
A44: DRAB0406 | B44: Disposals | C44: 0 | D44: 0 | E44: 0 | F44: 0 | G44: 0 | H44: -303031.7952 | I44: -410386.4465 | J44: -507632.9702 | K44: -337874.5524 | L44: -5882.153843 | M44: 0 | N44: 0 | P44: 0 | Q44: 0 | R44: 0 | S44: 0 | T44: 0 | U44: -403958.4929 | V44: -547068.3045 | W44: -676703.4113 | X44: -450405.8555 | Y44: -7841.243191 | Z44: 0 | AA44: 0 | AC44: 0 | AD44: 0 | AE44: 0 | AF44: 0 | AG44: 0 | AH44: 0 | AI44: 0 | AJ44: 0 | AK44: 0 | AL44: 0 | AM44: 0 | AN44: 0
A45: DRAB0407 | B45: Closing value | C45: =SUM(C40:C44) -> 40239344.42 | D45: 39103194.23 | E45: 43695880.98 | F45: 49895935.06 | G45: 58739735.87 | H45: 67175063.57 | I45: 68958383.18 | J45: =SUM(J40:J44) -> 71078753.33 | K45: =SUM(K40:K44) -> 73420422.69 | L45: 81328176.4 | M45: 87870085.55 | N45: 92854025.34 | P45: =SUM(P40:P44) -> 53641318.11 | Q45: 52126765.76 | R45: 58249076.51 | S45: 66514098.66 | T45: 78303384.49 | U45: 89548152.58 | V45: 91925418.32 | W45: 94751991.45 | X45: 97873568.92 | Y45: 108415051.1 | Z45: 117135785.4 | AA45: 123779658.5 | AC45: =SUM(AC40:AC44) -> 0 | AD45: 0 | AE45: 0 | AF45: 0 | AG45: 0 | AH45: 0 | AI45: 0 | AJ45: 0 | AK45: 0 | AL45: 0 | AM45: 0 | AN45: 0
B46: For overhead network assets 33kV and above:
A47: DRAB0501 | B47: Opening value | C47: 66801062.94 | D47: 70740199.66 | E47: 75612645.02 | F47: 76897616.95 | G47: 76242035.31 | H47: 86989103.94 | I47: 97554269.17 | J47: 101949555.6 | K47: 111321956.6 | L47: 112691145.3 | M47: 112643940.3 | N47: 114136067.2 | P47: 66801062.94 | Q47: 70740199.66 | R47: 75612645.02 | S47: 76897616.95 | T47: 76242035.31 | U47: 86989103.94 | V47: 97554269.17 | W47: 101949555.6 | X47: 111321956.6 | Y47: 112691145.3 | Z47: 112643940.3 | AA47: 114136067.2 | AC47: 0 | AD47: 0 | AE47: 0 | AF47: 0 | AG47: 0 | AH47: 0 | AI47: 0 | AJ47: 0 | AK47: 0 | AL47: 0 | AM47: 0 | AN47: 0
A48: DRAB0502 | B48: Inflation addition | C48: 1952771.633 | D48: 1758040.465 | E48: 3230563.355 | F48: 1873474.61 | G48: 2225443.193 | H48: 2832628.385 | I48: 1587861.96 | J48: 2551290.18 | K48: 2727263.971 | L48: 1496846.333 | M48: 1476605.959 | N48: 2426182.574 | P48: 1952771.633 | Q48: 1758040.465 | R48: 3230563.355 | S48: 1873474.61 | T48: 2225443.193 | U48: 2832628.385 | V48: 1587861.96 | W48: 2551290.18 | X48: 2727263.971 | Y48: 1496846.333 | Z48: 1476605.959 | AA48: 2426182.574 | AC48: 0 | AD48: 0 | AE48: 0 | AF48: 0 | AG48: 0 | AH48: 0 | AI48: 0 | AJ48: 0 | AK48: 0 | AL48: 0 | AM48: 0 | AN48: 0
A49: DRAB0503 | B49: Straight line depreciation | C49: -3069692.346 | D49: -3262227.834 | E49: -3484369.796 | F49: -3596410.632 | G49: -2142180.386 | H49: -2427839.232 | I49: -2669822.208 | J49: -2846719.181 | K49: -3525164.509 | L49: -3825560.466 | M49: -4027415.961 | N49: -4152095.544 | P49: -3069692.346 | Q49: -3262227.834 | R49: -3484369.796 | S49: -3596410.632 | T49: -2142180.386 | U49: -2427839.232 | V49: -2669822.208 | W49: -2846719.181 | X49: -3525164.509 | Y49: -3825560.466 | Z49: -4027415.961 | AA49: -4152095.544 | AC49: 0 | AD49: 0 | AE49: 0 | AF49: 0 | AG49: 0 | AH49: 0 | AI49: 0 | AJ49: 0 | AK49: 0 | AL49: 0 | AM49: 0 | AN49: 0
A50: DRAB0505 | B50: Actual additions (recognised in RAB) | C50: 5056057.432 | D50: 6376632.731 | E50: 1538778.369 | F50: 1067354.382 | G50: 10663805.83 | H50: 10160376.08 | I50: 5477246.672 | J50: 9667830.053 | K50: 2169568.122 | L50: 2288671.538 | M50: 4050078.078 | N50: 3998976.772 | P50: 5056057.432 | Q50: 6376632.731 | R50: 1538778.369 | S50: 1067354.382 | T50: 10663805.83 | U50: 10160376.08 | V50: 5477246.672 | W50: 9667830.053 | X50: 2169568.122 | Y50: 2288671.538 | Z50: 4050078.078 | AA50: 3998976.772 | AC50: 0 | AD50: 0 | AE50: 0 | AF50: 0 | AG50: 0 | AH50: 0 | AI50: 0 | AJ50: 0 | AK50: 0 | AL50: 0 | AM50: 0 | AN50: 0
A51: DRAB0506 | B51: Disposals | C51: 0 | D51: 0 | E51: 0 | F51: 0 | G51: 0 | H51: 0 | I51: 0 | J51: 0 | K51: -2478.911807 | L51: -7162.462823 | M51: -7141.1636 | N51: -13619.3653 | P51: 0 | Q51: 0 | R51: 0 | S51: 0 | T51: 0 | U51: 0 | V51: 0 | W51: 0 | X51: -2478.911807 | Y51: -7162.462823 | Z51: -7141.1636 | AA51: -13619.3653 | AC51: 0 | AD51: 0 | AE51: 0 | AF51: 0 | AG51: 0 | AH51: 0 | AI51: 0 | AJ51: 0 | AK51: 0 | AL51: 0 | AM51: 0 | AN51: 0
A52: DRAB0507 | B52: Closing value | C52: =SUM(C47:C51) -> 70740199.66 | D52: 75612645.02 | E52: 76897616.95 | F52: 76242035.31 | G52: 86989103.94 | H52: 97554269.17 | I52: 101949555.6 | J52: =SUM(J47:J51) -> 111321956.6 | K52: =SUM(K47:K51) -> 112691145.3 | L52: 112643940.3 | M52: 114136067.2 | N52: 116395511.6 | P52: =SUM(P47:P51) -> 70740199.66 | Q52: 75612645.02 | R52: 76897616.95 | S52: 76242035.31 | T52: 86989103.94 | U52: 97554269.17 | V52: 101949555.6 | W52: 111321956.6 | X52: 112691145.3 | Y52: 112643940.3 | Z52: 114136067.2 | AA52: 116395511.6 | AC52: =SUM(AC47:AC51) -> 0 | AD52: 0 | AE52: 0 | AF52: 0 | AG52: 0 | AH52: 0 | AI52: 0 | AJ52: 0 | AK52: 0 | AL52: 0 | AM52: 0 | AN52: 0
B53: For underground network assets 33kV and above:
A54: DRAB0601 | B54: Opening value | C54: 33426313.11 | D54: 35397401.76 | E54: 37835504.95 | F54: 38478486.84 | G54: 38150443 | H54: 43528125.12 | I54: 48814785.32 | J54: 51014124.88 | K54: 55703942.65 | L54: 56389065.42 | M54: 56365444.67 | N54: 57112084.01 | P54: 33426313.11 | Q54: 35397401.76 | R54: 37835504.95 | S54: 38478486.84 | T54: 38150443 | U54: 43528125.12 | V54: 48814785.32 | W54: 51014124.88 | X54: 55703942.65 | Y54: 56389065.42 | Z54: 56365444.67 | AA54: 57112084.01 | AC54: 0 | AD54: 0 | AE54: 0 | AF54: 0 | AG54: 0 | AH54: 0 | AI54: 0 | AJ54: 0 | AK54: 0 | AL54: 0 | AM54: 0 | AN54: 0
A55: DRAB0602 | B55: Inflation addition | C55: 977139.4819 | D55: 879698.7421 | E55: 1616528.502 | F55: 937460.3661 | G55: 1113580.499 | H55: 1417407.436 | I55: 794543.8099 | J55: 1276629.752 | K55: 1364684.564 | L55: 749000.869 | M55: 738872.8702 | N55: 1214027.664 | P55: 977139.4819 | Q55: 879698.7421 | R55: 1616528.502 | S55: 937460.3661 | T55: 1113580.499 | U55: 1417407.436 | V55: 794543.8099 | W55: 1276629.752 | X55: 1364684.564 | Y55: 749000.869 | Z55: 738872.8702 | AA55: 1214027.664 | AC55: 0 | AD55: 0 | AE55: 0 | AF55: 0 | AG55: 0 | AH55: 0 | AI55: 0 | AJ55: 0 | AK55: 0 | AL55: 0 | AM55: 0 | AN55: 0
A56: DRAB0603 | B56: Straight line depreciation | C56: -1536030.91 | D56: -1632372.962 | E56: -1743529.679 | F56: -1799593.338 | G56: -1071916.96 | H56: -1214856.632 | I56: -1335941.513 | J56: -1424458.272 | K56: -1763942.78 | L56: -1914256.695 | M56: -2015262.348 | N56: -2077650.259 | P56: -1536030.91 | Q56: -1632372.962 | R56: -1743529.679 | S56: -1799593.338 | T56: -1071916.96 | U56: -1214856.632 | V56: -1335941.513 | W56: -1424458.272 | X56: -1763942.78 | Y56: -1914256.695 | Z56: -2015262.348 | AA56: -2077650.259 | AC56: 0 | AD56: 0 | AE56: 0 | AF56: 0 | AG56: 0 | AH56: 0 | AI56: 0 | AJ56: 0 | AK56: 0 | AL56: 0 | AM56: 0 | AN56: 0
A57: DRAB0605 | B57: Actual additions (recognised in RAB) | C57: 2529980.084 | D57: 3190777.405 | E57: 769983.0706 | F57: 534089.133 | G57: 5336018.574 | H57: 5084109.401 | I57: 2740737.261 | J57: 4837646.292 | K57: 1085621.399 | L57: 1145219.074 | M57: 2026602.153 | N57: 2001031.778 | P57: 2529980.084 | Q57: 3190777.405 | R57: 769983.0706 | S57: 534089.133 | T57: 5336018.574 | U57: 5084109.401 | V57: 2740737.261 | W57: 4837646.292 | X57: 1085621.399 | Y57: 1145219.074 | Z57: 2026602.153 | AA57: 2001031.778 | AC57: 0 | AD57: 0 | AE57: 0 | AF57: 0 | AG57: 0 | AH57: 0 | AI57: 0 | AJ57: 0 | AK57: 0 | AL57: 0 | AM57: 0 | AN57: 0
A58: DRAB0606 | B58: Disposals | C58: 0 | D58: 0 | E58: 0 | F58: 0 | G58: 0 | H58: 0 | I58: 0 | J58: 0 | K58: -1240.412631 | L58: -3583.995739 | M58: -3573.337908 | N58: -6814.938998 | P58: 0 | Q58: 0 | R58: 0 | S58: 0 | T58: 0 | U58: 0 | V58: 0 | W58: 0 | X58: -1240.412631 | Y58: -3583.995739 | Z58: -3573.337908 | AA58: -6814.938998 | AC58: 0 | AD58: 0 | AE58: 0 | AF58: 0 | AG58: 0 | AH58: 0 | AI58: 0 | AJ58: 0 | AK58: 0 | AL58: 0 | AM58: 0 | AN58: 0
A59: DRAB0607 | B59: Closing value | C59: =SUM(C54:C58) -> 35397401.76 | D59: 37835504.95 | E59: 38478486.84 | F59: 38150443 | G59: 43528125.12 | H59: 48814785.32 | I59: 51014124.88 | J59: =SUM(J54:J58) -> 55703942.65 | K59: =SUM(K54:K58) -> 56389065.42 | L59: 56365444.67 | M59: 57112084.01 | N59: 58242678.25 | P59: =SUM(P54:P58) -> 35397401.76 | Q59: 37835504.95 | R59: 38478486.84 | S59: 38150443 | T59: 43528125.12 | U59: 48814785.32 | V59: 51014124.88 | W59: 55703942.65 | X59: 56389065.42 | Y59: 56365444.67 | Z59: 57112084.01 | AA59: 58242678.25 | AC59: =SUM(AC54:AC58) -> 0 | AD59: 0 | AE59: 0 | AF59: 0 | AG59: 0 | AH59: 0 | AI59: 0 | AJ59: 0 | AK59: 0 | AL59: 0 | AM59: 0 | AN59: 0
B60: Zone substations and transformers
A61: DRAB0701 | B61: Opening value | C61: 47071726.11 | D61: 49257548.15 | E61: 51933075.6 | F61: 73566519.24 | G61: 105487232.5 | H61: 134257450.2 | I61: 175947718.1 | J61: 211499791.1 | K61: 264910403.9 | L61: 314987608.5 | M61: 334307816 | N61: 344203340.4 | P61: 47071726.11 | Q61: 49257548.15 | R61: 51933075.6 | S61: 73566519.24 | T61: 105487232.5 | U61: 134257450.2 | V61: 175947718.1 | W61: 211499791.1 | X61: 264910403.9 | Y61: 314987608.5 | Z61: 334307816 | AA61: 344203340.4 | AC61: 0 | AD61: 0 | AE61: 0 | AF61: 0 | AG61: 0 | AH61: 0 | AI61: 0 | AJ61: 0 | AK61: 0 | AL61: 0 | AM61: 0 | AN61: 0
A62: DRAB0702 | B62: Inflation addition | C62: 1376030.97 | D62: 1224152.084 | E62: 2218849.65 | F62: 1792318.298 | G62: 3079086.785 | H62: 4371828.736 | I62: 2863848.921 | J62: 5292787.566 | K62: 6490009.895 | L62: 4183896.127 | M62: 4382312.195 | N62: 7316706.866 | P62: 1376030.97 | Q62: 1224152.084 | R62: 2218849.65 | S62: 1792318.298 | T62: 3079086.785 | U62: 4371828.736 | V62: 2863848.921 | W62: 5292787.566 | X62: 6490009.895 | Y62: 4183896.127 | Z62: 4382312.195 | AA62: 7316706.866 | AC62: 0 | AD62: 0 | AE62: 0 | AF62: 0 | AG62: 0 | AH62: 0 | AI62: 0 | AJ62: 0 | AK62: 0 | AL62: 0 | AM62: 0 | AN62: 0
A63: DRAB0703 | B63: Straight line depreciation | C63: -2207468.247 | D63: -2353952.173 | E63: -3474339.837 | F63: -3774300.026 | G63: -9648598.132 | H63: -10984840.82 | I63: -12442862.59 | J63: -7313445.114 | K63: -21912937.73 | L63: -28995427.91 | M63: -30630083.96 | N63: -25435071.23 | P63: -2207468.247 | Q63: -2353952.173 | R63: -3474339.837 | S63: -3774300.026 | T63: -9648598.132 | U63: -10984840.82 | V63: -12442862.59 | W63: -7313445.114 | X63: -21912937.73 | Y63: -28995427.91 | Z63: -30630083.96 | AA63: -25435071.23 | AC63: 0 | AD63: 0 | AE63: 0 | AF63: 0 | AG63: 0 | AH63: 0 | AI63: 0 | AJ63: 0 | AK63: 0 | AL63: 0 | AM63: 0 | AN63: 0
A64: DRAB0705 | B64: Actual additions (recognised in RAB) | C64: 3017259.32 | D64: 3805327.53 | E64: 22888933.83 | F64: 33902694.95 | G64: 35522326.06 | H64: 48489640.77 | I64: 45238627.85 | J64: 55449775.47 | K64: 65634841.04 | L64: 44163978.73 | M64: 36176617.67 | N64: 18993715.95 | P64: 3017259.32 | Q64: 3805327.53 | R64: 22888933.83 | S64: 33902694.95 | T64: 35522326.06 | U64: 48489640.77 | V64: 45238627.85 | W64: 55449775.47 | X64: 65634841.04 | Y64: 44163978.73 | Z64: 36176617.67 | AA64: 18993715.95 | AC64: 0 | AD64: 0 | AE64: 0 | AF64: 0 | AG64: 0 | AH64: 0 | AI64: 0 | AJ64: 0 | AK64: 0 | AL64: 0 | AM64: 0 | AN64: 0
A65: DRAB0706 | B65: Disposals | C65: 0 | D65: 0 | E65: 0 | F65: 0 | G65: -182596.9545 | H65: -186360.8257 | I65: -107541.1461 | J65: -18505.14111 | K65: -134708.6548 | L65: -32239.37569 | M65: -33321.53167 | N65: -139496.5099 | P65: 0 | Q65: 0 | R65: 0 | S65: 0 | T65: -182596.9545 | U65: -186360.8257 | V65: -107541.1461 | W65: -18505.14111 | X65: -134708.6548 | Y65: -32239.37569 | Z65: -33321.53167 | AA65: -139496.5099 | AC65: 0 | AD65: 0 | AE65: 0 | AF65: 0 | AG65: 0 | AH65: 0 | AI65: 0 | AJ65: 0 | AK65: 0 | AL65: 0 | AM65: 0 | AN65: 0
A66: DRAB0707 | B66: Closing value | C66: =SUM(C61:C65) -> 49257548.15 | D66: 51933075.6 | E66: 73566519.24 | F66: 105487232.5 | G66: 134257450.2 | H66: 175947718.1 | I66: 211499791.1 | J66: =SUM(J61:J65) -> 264910403.9 | K66: =SUM(K61:K65) -> 314987608.5 | L66: 334307816 | M66: 344203340.4 | N66: 344939195.5 | P66: =SUM(P61:P65) -> 49257548.15 | Q66: 51933075.6 | R66: 73566519.24 | S66: 105487232.5 | T66: 134257450.2 | U66: 175947718.1 | V66: 211499791.1 | W66: 264910403.9 | X66: 314987608.5 | Y66: 334307816 | Z66: 344203340.4 | AA66: 344939195.5 | AC66: =SUM(AC61:AC65) -> 0 | AD66: 0 | AE66: 0 | AF66: 0 | AG66: 0 | AH66: 0 | AI66: 0 | AJ66: 0 | AK66: 0 | AN66: 0
B67: For easements:
A68: DRAB0801 | B68: Opening value | C68: 28033947 | D68: 29444843.9 | E68: 30922463.16 | F68: 32243630.75 | G68: 33029189.86 | H68: 33993285.13 | I68: 35100209.33 | J68: 35671525.05 | K68: 33025000 | L68: 34471252.91 | M68: 34929125.34 | N68: 35386997.77 | P68: 28033947 | Q68: 29444843.9 | R68: 30922463.16 | S68: 32243630.75 | T68: 33029189.86 | U68: 33993285.13 | V68: 35100209.33 | W68: 35671525.05 | X68: 33025000 | Y68: 34471252.91 | Z68: 34929125.34 | AA68: 35386997.77 | AC68: 0 | AD68: 0 | AE68: 0 | AF68: 0 | AG68: 0 | AH68: 0 | AI68: 0 | AJ68: 0 | AK68: 0 | AL68: 0 | AM68: 0 | AN68: 0
A69: DRAB0802 | B69: Inflation addition | C69: 819506.3679 | D69: 731765.3513 | E69: 1321167.594 | F69: 785559.1102 | G69: 964095.2716 | H69: 1106924.201 | I69: 571315.7165 | J69: 892680.807 | K69: 809075.7238 | L69: 457872.4295 | M69: 457872.4295 | N69: 752218.9914 | P69: 819506.3679 | Q69: 731765.3513 | R69: 1321167.594 | S69: 785559.1102 | T69: 964095.2716 | U69: 1106924.201 | V69: 571315.7165 | W69: 892680.807 | X69: 809075.7238 | Y69: 457872.4295 | Z69: 457872.4295 | AA69: 752218.9914 | AC69: 0 | AD69: 0 | AE69: 0 | AF69: 0 | AG69: 0 | AH69: 0 | AI69: 0 | AJ69: 0 | AK69: 0 | AL69: 0 | AM69: 0 | AN69: 0
A70: DRAB0805 | B70: Actual additions (recognised in RAB) | C70: 591390.5264 | D70: 745853.9064 | E70: 0 | F70: 0 | G70: 0 | H70: 0 | I70: 0 | J70: -44607.7534 | K70: 637177.1852 | L70: 0 | M70: 0 | N70: -108.1144243 | P70: 591390.5264 | Q70: 745853.9064 | R70: 0 | S70: 0 | T70: 0 | U70: 0 | V70: 0 | W70: -44607.7534 | X70: 637177.1852 | Y70: 0 | Z70: 0 | AA70: -108.1144243 | AC70: 0 | AD70: 0 | AE70: 0 | AF70: 0 | AG70: 0 | AH70: 0 | AI70: 0 | AJ70: 0 | AK70: 0 | AL70: 0 | AM70: 0 | AN70: 0
A71: DRAB0806 | B71: Disposals | C71: 0 | D71: 0 | E71: 0 | F71: 0 | G71: 0 | H71: 0 | I71: 0 | J71: -3494598.102 | K71: 0 | L71: 0 | M71: 0 | N71: -10225.93009 | P71: 0 | Q71: 0 | R71: 0 | S71: 0 | T71: 0 | U71: 0 | V71: 0 | W71: -3494598.102 | X71: 0 | Y71: 0 | Z71: 0 | AA71: -10225.93009 | AC71: 0 | AD71: 0 | AE71: 0 | AF71: 0 | AG71: 0 | AH71: 0 | AI71: 0 | AJ71: 0 | AK71: 0 | AL71: 0 | AM71: 0 | AN71: 0
A72: DRAB0807 | B72: Closing value | C72: =SUM(C68:C71) -> 29444843.9 | D72: 30922463.16 | E72: 32243630.75 | F72: 33029189.86 | G72: 33993285.13 | H72: 35100209.33 | I72: 35671525.05 | J72: =SUM(J68:J71) -> 33025000 | K72: =SUM(K68:K71) -> 34471252.91 | L72: 34929125.34 | M72: 35386997.77 | N72: 36128882.71 | P72: =SUM(P68:P71) -> 29444843.9 | Q72: 30922463.16 | R72: 32243630.75 | S72: 33029189.86 | T72: 33993285.13 | U72: 35100209.33 | V72: 35671525.05 | W72: 33025000 | X72: 34471252.91 | Y72: 34929125.34 | Z72: 35386997.77 | AA72: 36128882.71 | AC72: =SUM(AC68:AC71) -> 0 | AD72: 0 | AE72: 0 | AF72: 0 | AG72: 0 | AH72: 0 | AI72: 0 | AJ72: 0 | AK72: 0 | AL72: 0 | AM72: 0 | AN72: 0
B73: For meters:
A74: DRAB0901 | B74: Opening value | C74: 0 | D74: 0 | E74: 0 | F74: 0 | G74: 0 | H74: 0 | I74: 0 | J74: 0 | K74: 0 | L74: 0 | M74: 0 | N74: 0 | P74: 0 | Q74: 0 | R74: 0 | S74: 0 | T74: 0 | U74: 0 | V74: 0 | W74: 0 | X74: 0 | Y74: 0 | Z74: 0 | AA74: 0 | AC74: 3607129.29 | AD74: 3741776.779 | AE74: 3874216.267 | AF74: 4493627.857 | AG74: 5120998.211 | AH74: 5787433.36 | AI74: 6252538.911 | AJ74: 6707825.571 | AK74: 7439541.947 | AL74: 7337106.394 | AM74: 8264027.952 | AN74: 10191258.79
A75: DRAB0902 | B75: Inflation addition | C75: 0 | D75: 0 | E75: 0 | F75: 0 | G75: 0 | H75: 0 | I75: 0 | J75: 0 | K75: 0 | L75: 0 | M75: 0 | N75: 0 | P75: 0 | Q75: 0 | R75: 0 | S75: 0 | T75: 0 | U75: 0 | V75: 0 | W75: 0 | X75: 0 | Y75: 0 | Z75: 0 | AA75: 0 | AC75: 105445.9232 | AD75: 92990.9022 | AE75: 165526.561 | AF75: 109479.3055 | AG75: 149477.7856 | AH75: 188456.3384 | AI75: 101770.7249 | AJ75: 167863.5028 | AK75: 182260.4931 | AL75: 97456.82117 | AM75: 108329.9544 | AN75: 216634.8911
A76: DRAB0903 | B76: Straight line depreciation | C76: 0 | D76: 0 | E76: 0 | F76: 0 | G76: 0 | H76: 0 | I76: 0 | J76: 0 | K76: 0 | L76: 0 | M76: 0 | N76: 0 | P76: 0 | Q76: 0 | R76: 0 | S76: 0 | T76: 0 | U76: 0 | V76: 0 | W76: 0 | X76: 0 | Y76: 0 | Z76: 0 | AA76: 0 | AC76: -14617.96976 | AD76: -15816.03291 | AE76: -20928.77241 | AF76: -30058.08948 | AG76: -36489.82529 | AH76: -37678.04439 | AI76: -38291.31876 | AJ76: -39249.55997 | AK76: -967151.0331 | AL76: -1211398.469 | AM76: -1323454.236 | AN76: -1456422.125
A77: DRAB0905 | B77: Actual additions (recognised in RAB) | C77: 0 | D77: 0 | E77: 0 | F77: 0 | G77: 0 | H77: 0 | I77: 0 | J77: 0 | K77: 0 | L77: 0 | M77: 0 | N77: 0 | P77: 0 | Q77: 0 | R77: 0 | S77: 0 | T77: 0 | U77: 0 | V77: 0 | W77: 0 | X77: 0 | Y77: 0 | Z77: 0 | AA77: 0 | AC77: 43819.53558 | AD77: 55264.61844 | AE77: 474813.8016 | AF77: 547949.1379 | AG77: 553447.1889 | AH77: 314327.257 | AI77: 393723.0956 | AJ77: 603102.4331 | AK77: 682965.2227 | AL77: 2040863.206 | AM77: 3142355.118 | AN77: 3105498.09
A78: DRAB0906 | B78: Disposals | C78: 0 | D78: 0 | E78: 0 | F78: 0 | G78: 0 | H78: 0 | I78: 0 | J78: 0 | K78: 0 | L78: 0 | M78: 0 | N78: 0 | P78: 0 | Q78: 0 | R78: 0 | S78: 0 | T78: 0 | U78: 0 | V78: 0 | W78: 0 | X78: 0 | Y78: 0 | Z78: 0 | AA78: 0 | AC78: 0 | AD78: 0 | AE78: 0 | AF78: 0 | AG78: 0 | AH78: 0 | AI78: -1915.841307 | AJ78: 0 | AK78: -510.2361261 | AL78: 0 | AM78: 0 | AN78: 0
A79: DRAB0907 | B79: Closing value | C79: =SUM(C74:C78) -> 0 | D79: 0 | E79: 0 | F79: 0 | G79: 0 | H79: 0 | I79: 0 | J79: =SUM(J74:J78) -> 0 | K79: =SUM(K74:K78) -> 0 | L79: 0 | M79: 0 | N79: 0 | P79: =SUM(P74:P78) -> 0 | Q79: 0 | R79: 0 | S79: 0 | T79: 0 | U79: 0 | V79: 0 | W79: 0 | X79: 0 | Y79: 0 | Z79: 0 | AA79: 0 | AC79: =SUM(AC74:AC78) -> 3741776.779 | AD79: 3874216.267 | AE79: 4493627.857 | AF79: 5120998.211 | AG79: 5787433.36 | AH79: 6252538.911 | AI79: 6707825.571 | AJ79: 7439541.947 | AK79: 7337106.394 | AL79: 8264027.952 | AM79: 10191258.79 | AN79: 12056969.64
B80: For “other” asset items with long lives:
A81: DRAB1001 | B81: Opening value | C81: 564270.7897 | D81: 580765.9163 | E81: 595199.1521 | F81: 1157657.998 | G81: 1451549.716 | H81: 1493919.275 | I81: 1542565.806 | J81: 1567673.693 | K81: 1606904.767 | L81: 1736675.383 | M81: 1905066.23 | N81: 2452477.809 | P81: 564270.7897 | Q81: 580765.9163 | R81: 595199.1521 | S81: 1157657.998 | T81: 1451549.716 | U81: 1493919.275 | V81: 1542565.806 | W81: 1567673.693 | X81: 1606904.767 | Y81: 1736675.383 | Z81: 1905066.23 | AA81: 2452477.809 | AC81: 83019.15408 | AD81: 86118.10611 | AE81: 89166.24034 | AF81: 103422.1824 | AG81: 117861.2978 | AH81: 133199.5011 | AI81: 143904.0438 | AJ81: 154382.6018 | AK81: 171223.2719 | AL81: 168865.6872 | AM81: 190199.0627 | AN81: 234554.8539
A82: DRAB1002 | B82: Inflation addition | C82: 16495.12662 | D82: 14433.23579 | E82: 25429.98687 | F82: 28204.29231 | G82: 42369.55928 | H82: 48646.53102 | I82: 25107.88698 | J82: 39231.07341 | K82: 39367.37736 | L82: 23067.79446 | M82: 24972.7783 | N82: 52132.15305 | P82: 16495.12662 | Q82: 14433.23579 | R82: 25429.98687 | S82: 28204.29231 | T82: 42369.55928 | U82: 48646.53102 | V82: 25107.88698 | W82: 39231.07341 | X82: 39367.37736 | Y82: 23067.79446 | Z82: 24972.7783 | AA82: 52132.15305 | AC82: 2426.869303 | AD82: 2140.213288 | AE82: 3809.643063 | AF82: 2519.698796 | AG82: 3440.27572 | AH82: 4337.378713 | AI82: 2342.28352 | AJ82: 3863.428473 | AK82: 4194.77949 | AL82: 2242.997742 | AM82: 2493.24614 | AN82: 4985.916488
A83: DRAB1003 | B83: Straight line depreciation | C83: -91570.49347 | D83: -115487.4947 | E83: -1250311.447 | F83: -83950.8883 | G83: 0 | H83: 0 | I83: 0 | J83: 0 | K83: -169067.9157 | L83: -300930.2347 | M83: -435248.3561 | N83: -497445.6192 | P83: -91570.49347 | Q83: -115487.4947 | R83: -1250311.447 | S83: -83950.8883 | T83: 0 | U83: 0 | V83: 0 | W83: 0 | X83: -169067.9157 | Y83: -300930.2347 | Z83: -435248.3561 | AA83: -497445.6192 | AC83: -336.4369242 | AD83: -364.0107043 | AE83: -481.6819254 | AF83: -691.7958746 | AG83: -839.8241883 | AH83: -867.1714046 | AI83: -881.2860968 | AJ83: -903.3403034 | AK83: -22259.26885 | AL83: -27880.69628 | AM83: -30459.6931 | AN83: -33519.98864
A84: DRAB1005 | B84: Actual additions (recognised in RAB) | C84: 91570.49347 | D84: 115487.4947 | E84: 1787340.307 | F84: 349638.3138 | G84: 0 | H84: 0 | I84: 0 | J84: 0 | K84: 259471.1547 | L84: 446253.2873 | M84: 966755.8796 | N84: 2867943.636 | P84: 91570.49347 | Q84: 115487.4947 | R84: 1787340.307 | S84: 349638.3138 | T84: 0 | U84: 0 | V84: 0 | W84: 0 | X84: 259471.1547 | Y84: 446253.2873 | Z84: 966755.8796 | AA84: 2867943.636 | AC84: 1008.519652 | AD84: 1271.93164 | AE84: 10927.98095 | AF84: 12611.21248 | AG84: 12737.75176 | AH84: 7234.335363 | AI84: 9061.654216 | AJ84: 13880.58198 | AK84: 15718.64785 | AL84: 46971.07404 | AM84: 72322.23821 | AN84: 71473.96274
A85: DRAB1006 | B85: Disposals | C85: 0 | D85: 0 | E85: 0 | F85: 0 | G85: 0 | H85: 0 | I85: 0 | J85: 0 | K85: 0 | L85: 0 | M85: -9068.722936 | N85: 0 | P85: 0 | Q85: 0 | R85: 0 | S85: 0 | T85: 0 | U85: 0 | V85: 0 | W85: 0 | X85: 0 | Y85: 0 | Z85: -9068.722936 | AA85: 0 | AC85: 0 | AD85: 0 | AE85: 0 | AF85: 0 | AG85: 0 | AH85: 0 | AI85: -44.09365784 | AJ85: 0 | AK85: -11.74323629 | AL85: 0 | AM85: 0 | AN85: 0
A86: DRAB1007 | B86: Closing value | C86: =SUM(C81:C85) -> 580765.9163 | D86: 595199.1521 | E86: 1157657.998 | F86: 1451549.716 | G86: 1493919.275 | H86: 1542565.806 | I86: 1567673.693 | J86: =SUM(J81:J85) -> 1606904.767 | K86: =SUM(K81:K85) -> 1736675.383 | L86: 1905066.23 | M86: 2452477.809 | N86: 4875107.979 | P86: =SUM(P81:P85) -> 580765.9163 | Q86: 595199.1521 | R86: 1157657.998 | S86: 1451549.716 | T86: 1493919.275 | U86: 1542565.806 | V86: 1567673.693 | W86: 1606904.767 | X86: 1736675.383 | Y86: 1905066.23 | Z86: 2452477.809 | AA86: 4875107.979 | AC86: =SUM(AC81:AC85) -> 86118.10611 | AD86: 89166.24034 | AE86: 103422.1824 | AF86: 117861.2978 | AG86: 133199.5011 | AH86: 143904.0438 | AI86: 154382.6018 | AJ86: 171223.2719 | AK86: 168865.6872 | AL86: 190199.0627 | AM86: 234554.8539 | AN86: 277494.7445
B87: For “other” asset items with short lives:
A88: DRAB1101 | B88: Opening value | C88: 2088514.668 | D88: 820917.0906 | E88: 600444.778 | F88: 292461.8268 | G88: 39470.16553 | H88: 40622.26766 | I88: 315926.84 | J88: 2818110.696 | K88: 7249089.94 | L88: 8170692.459 | M88: 7540595.011 | N88: 6059165.095 | P88: 2088514.668 | Q88: 820917.0906 | R88: 600444.778 | S88: 292461.8268 | T88: 39470.16553 | U88: 40622.26766 | V88: 315926.84 | W88: 2818110.696 | X88: 7249089.94 | Y88: 8170692.459 | Z88: 7540595.011 | AA88: 6059165.095 | AC88: 0 | AD88: 0 | AE88: 0 | AF88: 0 | AG88: 0 | AH88: 0 | AI88: 0 | AJ88: 0 | AK88: 0 | AL88: 0 | AM88: 0 | AN88: 0
A89: DRAB1102 | B89: Inflation addition | C89: 61052.80393 | D89: 20401.48982 | E89: 25654.10714 | F89: 7125.315826 | G89: 1152.102129 | H89: 1322.783926 | I89: 5142.24765 | J89: 70523.29069 | K89: 177594.631 | L89: 108529.1218 | M89: 98846.75108 | N89: 128799.258 | P89: 61052.80393 | Q89: 20401.48982 | R89: 25654.10714 | S89: 7125.315826 | T89: 1152.102129 | U89: 1322.783926 | V89: 5142.24765 | W89: 70523.29069 | X89: 177594.631 | Y89: 108529.1218 | Z89: 98846.75108 | AA89: 128799.258 | AC89: 0 | AD89: 0 | AE89: 0 | AF89: 0 | AG89: 0 | AH89: 0 | AI89: 0 | AJ89: 0 | AK89: 0 | AL89: 0 | AM89: 0 | AN89: 0
A90: DRAB1103 | B90: Straight line depreciation | C90: -1686615.42 | D90: -692334.5732 | E90: -338829.2174 | F90: -275964.6061 | G90: -2790334.239 | H90: -1934144.081 | I90: -661868.64 | J90: -774048.6768 | K90: -709571.9485 | L90: -1427351.78 | M90: -1909585.325 | N90: -2168937.666 | P90: -1686615.42 | Q90: -692334.5732 | R90: -338829.2174 | S90: -275964.6061 | T90: -2790334.239 | U90: -1934144.081 | V90: -661868.64 | W90: -774048.6768 | X90: -709571.9485 | Y90: -1427351.78 | Z90: -1909585.325 | AA90: -2168937.666 | AC90: 0 | AD90: 0 | AE90: 0 | AF90: 0 | AG90: 0 | AH90: 0 | AI90: 0 | AJ90: 0 | AK90: 0 | AL90: 0 | AM90: 0 | AN90: 0
A91: DRAB1105 | B91: Actual additions (recognised in RAB) | C91: 357965.0392 | D91: 451460.7708 | E91: 5192.159144 | F91: 15847.62895 | G91: 2790334.239 | H91: 2208125.87 | I91: 3158910.248 | J91: 5141436.64 | K91: 1453579.837 | L91: 691511.7758 | M91: 331539.7724 | N91: 468982.7947 | P91: 357965.0392 | Q91: 451460.7708 | R91: 5192.159144 | S91: 15847.62895 | T91: 2790334.239 | U91: 2208125.87 | V91: 3158910.248 | W91: 5141436.64 | X91: 1453579.837 | Y91: 691511.7758 | Z91: 331539.7724 | AA91: 468982.7947 | AC91: 0 | AD91: 0 | AE91: 0 | AF91: 0 | AG91: 0 | AH91: 0 | AI91: 0 | AJ91: 0 | AK91: 0 | AL91: 0 | AM91: 0 | AN91: 0
A92: DRAB1106 | B92: Disposals | C92: 0 | D92: 0 | E92: 0 | F92: 0 | G92: 0 | H92: 0 | I92: 0 | J92: -6932.009945 | K92: 0 | L92: -2786.565949 | M92: -2231.113878 | N92: -4885.867589 | P92: 0 | Q92: 0 | R92: 0 | S92: 0 | T92: 0 | U92: 0 | V92: 0 | W92: -6932.009945 | X92: 0 | Y92: -2786.565949 | Z92: -2231.113878 | AA92: -4885.867589 | AC92: 0 | AD92: 0 | AE92: 0 | AF92: 0 | AG92: 0 | AH92: 0 | AI92: 0 | AJ92: 0 | AK92: 0 | AL92: 0 | AM92: 0 | AN92: 0
A93: DRAB1107 | B93: Closing value | C93: =SUM(C88:C92) -> 820917.0906 | D93: 600444.778 | E93: 292461.8268 | F93: 39470.16553 | G93: 40622.26766 | H93: 315926.84 | I93: 2818110.696 | J93: =SUM(J88:J92) -> 7249089.94 | K93: =SUM(K88:K92) -> 8170692.459 | L93: 7540595.011 | M93: 6059165.095 | N93: 4483123.614 | P93: =SUM(P88:P92) -> 820917.0906 | Q93: 600444.778 | R93: 292461.8268 | S93: 39470.16553 | T93: 40622.26766 | U93: 315926.84 | V93: 2818110.696 | W93: 7249089.94 | X93: 8170692.459 | Y93: 7540595.011 | Z93: 6059165.095 | AA93: 4483123.614 | AC93: =SUM(AC88:AC92) -> 0 | AD93: 0 | AE93: 0 | AF93: 0 | AG93: 0 | AH93: 0 | AI93: 0 | AJ93: 0 | AK93: 0 | AL93: 0 | AM93: 0 | AN93: 0
B98: 3.3.3 - TOTAL DISAGGREGATED RAB ASSET VALUES
C99: Network services | P99: Standard control services | AC99: Alternative control services
C100: Actual ($0's) | P100: Actual ($0's) | AC100: Actual ($0's)
C101: =IF(dms_RPT="financial",dms_fy1,dms_cy1) -> 2005-06 | D101: =IF(dms_RPT="financial",dms_fy2,dms_cy2) -> 2006-07 | E101: =IF(dms_RPT="financial",dms_fy3,dms_cy3) -> 2007-08 | F101: =IF(dms_RPT="financial",dms_fy4,dms_cy4) -> 2008-09 | G101: =IF(dms_RPT="financial",dms_fy5,dms_cy5) -> 2009-10 | H101: =IF(dms_RPT="financial",dms_fy6,dms_cy6) -> 2010-11 | I101: =IF(dms_RPT="financial",dms_fy7,dms_cy7) -> 2011-12 | J101: =IF(dms_RPT="financial",dms_fy8,dms_cy8) -> 2012-13 | K101: =IF(dms_RPT="financial",dms_fy9,dms_cy9) -> 2013-14 | L101: =IF(dms_RPT="financial",dms_fy10,dms_cy10) -> 2014-15 | M101: =IF(dms_RPT="financial",dms_fy11,dms_cy11) -> 2015-16 | N101: =IF(dms_RPT="financial",dms_fy12,dms_cy12) -> 2016-17 | P101: =IF(dms_RPT="financial",dms_fy1,dms_cy1) -> 2005-06 | Q101: =IF(dms_RPT="financial",dms_fy2,dms_cy2) -> 2006-07 | R101: =IF(dms_RPT="financial",dms_fy3,dms_cy3) -> 2007-08 | S101: =IF(dms_RPT="financial",dms_fy4,dms_cy4) -> 2008-09 | T101: =IF(dms_RPT="financial",dms_fy5,dms_cy5) -> 2009-10 | U101: =IF(dms_RPT="financial",dms_fy6,dms_cy6) -> 2010-11 | V101: =IF(dms_RPT="financial",dms_fy7,dms_cy7) -> 2011-12 | W101: =IF(dms_RPT="financial",dms_fy8,dms_cy8) -> 2012-13 | X101: =IF(dms_RPT="financial",dms_fy9,dms_cy9) -> 2013-14 | Y101: =IF(dms_RPT="financial",dms_fy10,dms_cy10) -> 2014-15 | Z101: =IF(dms_RPT="financial",dms_fy11,dms_cy11) -> 2015-16 | AA101: =IF(dms_RPT="financial",dms_fy12,dms_cy12) -> 2016-17 | AC101: =IF(dms_RPT="financial",dms_fy1,dms_cy1) -> 2005-06 | AD101: =IF(dms_RPT="financial",dms_fy2,dms_cy2) -> 2006-07 | AE101: =IF(dms_RPT="financial",dms_fy3,dms_cy3) -> 2007-08 | AF101: =IF(dms_RPT="financial",dms_fy4,dms_cy4) -> 2008-09 | AG101: =IF(dms_RPT="financial",dms_fy5,dms_cy5) -> 2009-10 | AH101: =IF(dms_RPT="financial",dms_fy6,dms_cy6) -> 2010-11 | AI101: =IF(dms_RPT="financial",dms_fy7,dms_cy7) -> 2011-12 | AJ101: =IF(dms_RPT="financial",dms_fy8,dms_cy8) -> 2012-13 | AK101: =IF(dms_RPT="financial",dms_fy9,dms_cy9) -> 2013-14 | AL101: =IF(dms_RPT="financial",dms_fy10,dms_cy10) -> 2014-15 | AM101: =IF(dms_RPT="financial",dms_fy11,dms_cy11) -> 2015-16 | AN101: =IF(dms_RPT="financial",dms_fy12,dms_cy12) -> 2016-17
A102: DRAB1201 | B102: Overhead network assets less than 33kV (wires and poles) | C102: 28634426.01 | D102: 30902584.3 | E102: 33824888.14 | F102: 36754649.78 | G102: 39347038.43 | H102: 42104977.55 | I102: 44843658.86 | J102: 48942040.59 | K102: 53560442.44 | L102: 56630191.77 | M102: 58488866.29 | N102: 59867612.89 | P102: 38171306.64 | Q102: 41194889.7 | R102: 45090485.72 | S102: 48996023.41 | T102: 52451823.84 | U102: 56128312.41 | V102: 59779129.22 | W102: 65242503.48 | X102: 71399093.92 | Y102: 75491243.09 | Z102: 77968961.17 | AA102: 79806908.24 | AC102: 0 | AD102: 0 | AE102: 0 | AF102: 0 | AG102: 0 | AH102: 0 | AI102: 0 | AJ102: 0 | AK102: 0 | AL102: 0 | AM102: 0 | AN102: 0
A103: DRAB1202 | B103: Underground network assets less than 33kV (cables) | C103: 59315162.15 | D103: 64013569.22 | E103: 70067014.92 | F103: 76135909.17 | G103: 81505947.61 | H103: 87218917.78 | I103: 92891996.13 | J103: 101381644.5 | K103: 110948495.4 | L103: 117307317.3 | M103: 121157388.7 | N103: 124013308.2 | P103: 79070460.21 | Q103: 85333702.11 | R103: 93403287.03 | S103: 101493465.7 | T103: 108652030.2 | U103: 116267742 | V103: 123830275.7 | W103: 135147456.3 | X103: 147900608.7 | Y103: 156377277.4 | Z103: 161509640 | AA103: 165316741.8 | AC103: 0 | AD103: 0 | AE103: 0 | AF103: 0 | AG103: 0 | AH103: 0 | AI103: 0 | AJ103: 0 | AK103: 0 | AL103: 0 | AM103: 0 | AN103: 0
A104: DRAB1203 | B104: Distribution substations including transformers | C104: 40765648.01 | D104: 39671269.32 | E104: 41399537.6 | F104: 46795908.02 | G104: 54317835.47 | H104: 62957399.72 | I104: 68066723.38 | J104: 70018568.26 | K104: 72249588.01 | L104: 77374299.54 | M104: 84599130.97 | N104: 90362055.44 | P104: 54342910.51 | Q104: 52884041.93 | R104: 55187921.13 | S104: 62381587.59 | T104: 72408741.58 | U104: 83925768.54 | V104: 90736785.45 | W104: 93338704.88 | X104: 96312780.18 | Y104: 103144310 | Z104: 112775418.2 | AA104: 120457721.9 | AC104: 0 | AD104: 0 | AE104: 0 | AF104: 0 | AG104: 0 | AH104: 0 | AI104: 0 | AJ104: 0 | AK104: 0 | AL104: 0 | AM104: 0 | AN104: 0
A105: DRAB1204 | B105: Overhead network assets 33kV and above (wires and towers / poles etc) | C105: 68770631.3 | D105: 73176422.34 | E105: 76255130.98 | F105: 76569826.13 | G105: 81615569.62 | H105: 92271686.56 | I105: 99751912.39 | J105: 106635756.1 | K105: 112006551 | L105: 112667542.8 | M105: 113390003.7 | N105: 115265789.4 | P105: 68770631.3 | Q105: 73176422.34 | R105: 76255130.98 | S105: 76569826.13 | T105: 81615569.62 | U105: 92271686.56 | V105: 99751912.39 | W105: 106635756.1 | X105: 112006551 | Y105: 112667542.8 | Z105: 113390003.7 | AA105: 115265789.4 | AC105: 0 | AD105: 0 | AE105: 0 | AF105: 0 | AG105: 0 | AH105: 0 | AI105: 0 | AJ105: 0 | AK105: 0 | AL105: 0 | AM105: 0 | AN105: 0
A106: DRAB1205 | B106: Underground network assets 33kV and above(cables, ducts etc) | C106: 34411857.44 | D106: 36616453.36 | E106: 38156995.9 | F106: 38314464.92 | G106: 40839284.06 | H106: 46171455.22 | I106: 49914455.1 | J106: 53359033.76 | K106: 56046504.04 | L106: 56377255.05 | M106: 56738764.34 | N106: 57677381.13 | P106: 34411857.44 | Q106: 36616453.36 | R106: 38156995.9 | S106: 38314464.92 | T106: 40839284.06 | U106: 46171455.22 | V106: 49914455.1 | W106: 53359033.76 | X106: 56046504.04 | Y106: 56377255.05 | Z106: 56738764.34 | AA106: 57677381.13 | AC106: 0 | AD106: 0 | AE106: 0 | AF106: 0 | AG106: 0 | AH106: 0 | AI106: 0 | AJ106: 0 | AK106: 0 | AL106: 0 | AM106: 0 | AN106: 0
A107: DRAB1206 | B107: Zone substations and transformers | C107: 48164637.13 | D107: 50595311.88 | E107: 62749797.42 | F107: 89526875.85 | G107: 119872341.3 | H107: 155102584.2 | I107: 193723754.6 | J107: 238205097.5 | K107: 289949006.2 | L107: 324647712.2 | M107: 339255578.2 | N107: 344571267.9 | P107: 48164637.13 | Q107: 50595311.88 | R107: 62749797.42 | S107: 89526875.85 | T107: 119872341.3 | U107: 155102584.2 | V107: 193723754.6 | W107: 238205097.5 | X107: 289949006.2 | Y107: 324647712.2 | Z107: 339255578.2 | AA107: 344571267.9 | AC107: 0 | AD107: 0 | AE107: 0 | AF107: 0 | AG107: 0 | AH107: 0 | AI107: 0 | AJ107: 0 | AK107: 0 | AL107: 0 | AM107: 0 | AN107: 0
A108: DRAB1207 | B108: Easements | C108: 28739395.45 | D108: 30183653.53 | E108: 31583046.95 | F108: 32636410.3 | G108: 33511237.5 | H108: 34546747.23 | I108: 35385867.19 | J108: 34348262.52 | K108: 33748126.45 | L108: 34700189.12 | M108: 35158061.55 | N108: 35757940.24 | P108: 28739395.45 | Q108: 30183653.53 | R108: 31583046.95 | S108: 32636410.3 | T108: 33511237.5 | U108: 34546747.23 | V108: 35385867.19 | W108: 34348262.52 | X108: 33748126.45 | Y108: 34700189.12 | Z108: 35158061.55 | AA108: 35757940.24 | AC108: 0 | AD108: 0 | AE108: 0 | AF108: 0 | AG108: 0 | AH108: 0 | AI108: 0 | AJ108: 0 | AK108: 0 | AL108: 0 | AM108: 0 | AN108: 0
A109: DRAB1208 | B109: Meters | C109: 0 | D109: 0 | E109: 0 | F109: 0 | G109: 0 | H109: 0 | I109: 0 | J109: 0 | K109: 0 | L109: 0 | M109: 0 | N109: 0 | P109: 0 | Q109: 0 | R109: 0 | S109: 0 | T109: 0 | U109: 0 | V109: 0 | W109: 0 | X109: 0 | Y109: 0 | Z109: 0 | AA109: 0 | AC109: 3674453.034 | AD109: 3807996.523 | AE109: 4183922.062 | AF109: 4807313.034 | AG109: 5454215.785 | AH109: 6019986.135 | AI109: 6480182.241 | AJ109: 7073683.759 | AK109: 7388324.171 | AL109: 7800567.173 | AM109: 9227643.37 | AN109: 11124114.22
A110: DRAB1209 | B110: Other assets with long lives | C110: 572518.353 | D110: 587982.5342 | E110: 876428.5751 | F110: 1304603.857 | G110: 1472734.496 | H110: 1518242.541 | I110: 1555119.75 | J110: 1587289.23 | K110: 1671790.075 | L110: 1820870.807 | M110: 2178772.02 | N110: 3663792.894 | P110: 572518.353 | Q110: 587982.5342 | R110: 876428.5751 | S110: 1304603.857 | T110: 1472734.496 | U110: 1518242.541 | V110: 1555119.75 | W110: 1587289.23 | X110: 1671790.075 | Y110: 1820870.807 | Z110: 2178772.02 | AA110: 3663792.894 | AC110: 84568.6301 | AD110: 87642.17322 | AE110: 96294.21138 | AF110: 110641.7401 | AG110: 125530.3995 | AH110: 138551.7724 | AI110: 149143.3228 | AJ110: 162802.9368 | AK110: 170044.4795 | AL110: 179532.3749 | AM110: 212376.9583 | AN110: 256024.7992
A111: DRAB1210 | B111: Other assets with short lives | C111: 1454715.879 | D111: 710680.9343 | E111: 446453.3024 | F111: 165965.9962 | G111: 40046.21659 | H111: 178274.5538 | I111: 1567018.768 | J111: 5033600.318 | K111: 7709891.2 | L111: 7855643.735 | M111: 6799880.053 | N111: 5271144.355 | P111: 1454715.879 | Q111: 710680.9343 | R111: 446453.3024 | S111: 165965.9962 | T111: 40046.21659 | U111: 178274.5538 | V111: 1567018.768 | W111: 5033600.318 | X111: 7709891.2 | Y111: 7855643.735 | Z111: 6799880.053 | AA111: 5271144.355 | AC111: 0 | AD111: 0 | AE111: 0 | AF111: 0 | AG111: 0 | AH111: 0 | AI111: 0 | AJ111: 0 | AK111: 0 | AL111: 0 | AM111: 0 | AN111: 0
A112: DRAB13 | B112: Value of Capital Contributions or Contributed Assets | C112: 0 | D112: 0 | E112: 0 | F112: 0 | G112: 0 | H112: 0 | I112: 0 | J112: 0 | K112: 0 | L112: 0 | M112: 0 | N112: 0 | P112: 0 | Q112: 0 | R112: 0 | S112: 0 | T112: 0 | U112: 0 | V112: 0 | W112: 0 | X112: 0 | Y112: 0 | Z112: 0 | AA112: 0 | AC112: 0 | AD112: 0 | AE112: 0 | AF112: 0 | AG112: 0 | AH112: 0 | AI112: 0 | AJ112: 0 | AK112: 0 | AL112: 0 | AM112: 0 | AN112: 0
B115: 3.3.4 - ASSET LIVES
C116: Network services | P116: Standard control services | AC116: Alternative control services
C117: Service Life (Years) | P117: Service Life (Years) | AC117: Service Life (Years)
C118: =IF(dms_RPT="financial",dms_fy1,dms_cy1) -> 2005-06 | D118: =IF(dms_RPT="financial",dms_fy2,dms_cy2) -> 2006-07 | E118: =IF(dms_RPT="financial",dms_fy3,dms_cy3) -> 2007-08 | F118: =IF(dms_RPT="financial",dms_fy4,dms_cy4) -> 2008-09 | G118: =IF(dms_RPT="financial",dms_fy5,dms_cy5) -> 2009-10 | H118: =IF(dms_RPT="financial",dms_fy6,dms_cy6) -> 2010-11 | I118: =IF(dms_RPT="financial",dms_fy7,dms_cy7) -> 2011-12 | J118: =IF(dms_RPT="financial",dms_fy8,dms_cy8) -> 2012-13 | K118: =IF(dms_RPT="financial",dms_fy9,dms_cy9) -> 2013-14 | L118: =IF(dms_RPT="financial",dms_fy10,dms_cy10) -> 2014-15 | M118: =IF(dms_RPT="financial",dms_fy11,dms_cy11) -> 2015-16 | N118: =IF(dms_RPT="financial",dms_fy12,dms_cy12) -> 2016-17 | P118: =IF(dms_RPT="financial",dms_fy1,dms_cy1) -> 2005-06 | Q118: =IF(dms_RPT="financial",dms_fy2,dms_cy2) -> 2006-07 | R118: =IF(dms_RPT="financial",dms_fy3,dms_cy3) -> 2007-08 | S118: =IF(dms_RPT="financial",dms_fy4,dms_cy4) -> 2008-09 | T118: =IF(dms_RPT="financial",dms_fy5,dms_cy5) -> 2009-10 | U118: =IF(dms_RPT="financial",dms_fy6,dms_cy6) -> 2010-11 | V118: =IF(dms_RPT="financial",dms_fy7,dms_cy7) -> 2011-12 | W118: =IF(dms_RPT="financial",dms_fy8,dms_cy8) -> 2012-13 | X118: =IF(dms_RPT="financial",dms_fy9,dms_cy9) -> 2013-14 | Y118: =IF(dms_RPT="financial",dms_fy10,dms_cy10) -> 2014-15 | Z118: =IF(dms_RPT="financial",dms_fy11,dms_cy11) -> 2015-16 | AA118: =IF(dms_RPT="financial",dms_fy12,dms_cy12) -> 2016-17 | AC118: =IF(dms_RPT="financial",dms_fy1,dms_cy1) -> 2005-06 | AD118: =IF(dms_RPT="financial",dms_fy2,dms_cy2) -> 2006-07 | AE118: =IF(dms_RPT="financial",dms_fy3,dms_cy3) -> 2007-08 | AF118: =IF(dms_RPT="financial",dms_fy4,dms_cy4) -> 2008-09 | AG118: =IF(dms_RPT="financial",dms_fy5,dms_cy5) -> 2009-10 | AH118: =IF(dms_RPT="financial",dms_fy6,dms_cy6) -> 2010-11 | AI118: =IF(dms_RPT="financial",dms_fy7,dms_cy7) -> 2011-12 | AJ118: =IF(dms_RPT="financial",dms_fy8,dms_cy8) -> 2012-13 | AK118: =IF(dms_RPT="financial",dms_fy9,dms_cy9) -> 2013-14 | AL118: =IF(dms_RPT="financial",dms_fy10,dms_cy10) -> 2014-15 | AM118: =IF(dms_RPT="financial",dms_fy11,dms_cy11) -> 2015-16 | AN118: =IF(dms_RPT="financial",dms_fy12,dms_cy12) -> 2016-17
B119: ESTIMATED SERVICE LIFE OF NEW ASSETS
A120: DRAB1401 | B120: Overhead network assets less than 33kV (wires and poles) | C120: 49.79272503 | D120: 49.79272503 | E120: 49.79272503 | F120: 49.79272503 | G120: 49.79272503 | H120: 49.79272503 | I120: 49.79272503 | J120: 49.79272503 | K120: 49.79272503 | L120: 49.79272503 | M120: 49.79272503 | N120: 49.79272503 | P120: 49.79272503 | Q120: 49.79272503 | R120: 49.79272503 | S120: 49.79272503 | T120: 49.79272503 | U120: 49.79272503 | V120: 49.79272503 | W120: 49.79272503 | X120: 49.79272503 | Y120: 49.79272503 | Z120: 49.79272503 | AA120: 49.79272503 | AC120: 0 | AD120: 0 | AE120: 0 | AF120: 0 | AG120: 0 | AH120: 0 | AI120: 0 | AJ120: 0 | AK120: 0 | AL120: 0 | AM120: 0 | AN120: 0
A121: DRAB1402 | B121: Underground network assets less than 33kV (cables) | C121: 52.3002848 | D121: 52.3002848 | E121: 52.3002848 | F121: 52.3002848 | G121: 52.3002848 | H121: 52.3002848 | I121: 52.3002848 | J121: 52.3002848 | K121: 52.3002848 | L121: 52.3002848 | M121: 52.3002848 | N121: 52.3002848 | P121: 52.3002848 | Q121: 52.3002848 | R121: 52.3002848 | S121: 52.3002848 | T121: 52.3002848 | U121: 52.3002848 | V121: 52.3002848 | W121: 52.3002848 | X121: 52.3002848 | Y121: 52.3002848 | Z121: 52.3002848 | AA121: 52.3002848 | AC121: 0 | AD121: 0 | AE121: 0 | AF121: 0 | AG121: 0 | AH121: 0 | AI121: 0 | AJ121: 0 | AK121: 0 | AL121: 0 | AM121: 0 | AN121: 0
A122: DRAB1403 | B122: Distribution substations including transformers | C122: 44.5553219 | D122: 44.5553219 | E122: 44.5553219 | F122: 44.5553219 | G122: 44.5553219 | H122: 44.5553219 | I122: 44.5553219 | J122: 44.5553219 | K122: 44.5553219 | L122: 44.5553219 | M122: 44.5553219 | N122: 44.5553219 | P122: 44.5553219 | Q122: 44.5553219 | R122: 44.5553219 | S122: 44.5553219 | T122: 44.5553219 | U122: 44.5553219 | V122: 44.5553219 | W122: 44.5553219 | X122: 44.5553219 | Y122: 44.5553219 | Z122: 44.5553219 | AA122: 44.5553219 | AC122: 0 | AD122: 0 | AE122: 0 | AF122: 0 | AG122: 0 | AH122: 0 | AI122: 0 | AJ122: 0 | AK122: 0 | AL122: 0 | AM122: 0 | AN122: 0
A123: DRAB1404 | B123: Overhead network assets 33kV and above (wires and towers / poles etc) | C123: 54.34392417 | D123: 54.34392417 | E123: 54.34392417 | F123: 54.34392417 | G123: 54.34392417 | H123: 54.34392417 | I123: 54.34392417 | J123: 54.34392417 | K123: 54.34392417 | L123: 54.34392417 | M123: 54.34392417 | N123: 54.34392417 | P123: 54.34392417 | Q123: 54.34392417 | R123: 54.34392417 | S123: 54.34392417 | T123: 54.34392417 | U123: 54.34392417 | V123: 54.34392417 | W123: 54.34392417 | X123: 54.34392417 | Y123: 54.34392417 | Z123: 54.34392417 | AA123: 54.34392417 | AC123: 0 | AD123: 0 | AE123: 0 | AF123: 0 | AG123: 0 | AH123: 0 | AI123: 0 | AJ123: 0 | AK123: 0 | AL123: 0 | AM123: 0 | AN123: 0
A124: DRAB1405 | B124: Underground network assets 33kV and above(cables, ducts etc) | C124: 49.61372593 | D124: 49.61372593 | E124: 49.61372593 | F124: 49.61372593 | G124: 49.61372593 | H124: 49.61372593 | I124: 49.61372593 | J124: 49.61372593 | K124: 49.61372593 | L124: 49.61372593 | M124: 49.61372593 | N124: 49.61372593 | P124: 49.61372593 | Q124: 49.61372593 | R124: 49.61372593 | S124: 49.61372593 | T124: 49.61372593 | U124: 49.61372593 | V124: 49.61372593 | W124: 49.61372593 | X124: 49.61372593 | Y124: 49.61372593 | Z124: 49.61372593 | AA124: 49.61372593 | AC124: 0 | AD124: 0 | AE124: 0 | AF124: 0 | AG124: 0 | AH124: 0 | AI124: 0 | AJ124: 0 | AK124: 0 | AL124: 0 | AM124: 0 | AN124: 0
A125: DRAB1406 | B125: Zone substations and transformers | C125: 45.61906132 | D125: 45.61906132 | E125: 45.61906132 | F125: 45.61906132 | G125: 45.61906132 | H125: 45.61906132 | I125: 45.61906132 | J125: 45.61906132 | K125: 45.61906132 | L125: 45.61906132 | M125: 45.61906132 | N125: 45.61906132 | P125: 45.61906132 | Q125: 45.61906132 | R125: 45.61906132 | S125: 45.61906132 | T125: 45.61906132 | U125: 45.61906132 | V125: 45.61906132 | W125: 45.61906132 | X125: 45.61906132 | Y125: 45.61906132 | Z125: 45.61906132 | AA125: 45.61906132 | AC125: 0 | AD125: 0 | AE125: 0 | AF125: 0 | AG125: 0 | AH125: 0 | AI125: 0 | AJ125: 0 | AK125: 0 | AL125: 0 | AM125: 0 | AN125: 0
A126: DRAB1407 | B126: Meters | C126: 16 | D126: 16 | E126: 16 | F126: 16 | G126: 16 | H126: 16 | I126: 16 | J126: 16 | K126: 16 | L126: 16 | M126: 16 | N126: 16 | P126: 16 | Q126: 16 | R126: 16 | S126: 16 | T126: 16 | U126: 16 | V126: 16 | W126: 16 | X126: 16 | Y126: 16 | Z126: 16 | AA126: 16 | AC126: 16 | AD126: 16 | AE126: 16 | AF126: 16 | AG126: 16 | AH126: 16 | AI126: 16 | AJ126: 16 | AK126: 16 | AL126: 16 | AM126: 16 | AN126: 16
A127: DRAB1408 | B127: “Other” assets with long lives | C127: 29.02380843 | D127: 29.02380843 | E127: 29.02380843 | F127: 29.02380843 | G127: 29.02380843 | H127: 29.02380843 | I127: 29.02380843 | J127: 29.02380843 | K127: 29.02380843 | L127: 29.02380843 | M127: 29.02380843 | N127: 29.02380843 | P127: 29.02380843 | Q127: 29.02380843 | R127: 29.02380843 | S127: 29.02380843 | T127: 29.02380843 | U127: 29.02380843 | V127: 29.02380843 | W127: 29.02380843 | X127: 29.02380843 | Y127: 29.02380843 | Z127: 29.02380843 | AA127: 29.02380843 | AC127: 29.02380843 | AD127: 29.02380843 | AE127: 29.02380843 | AF127: 29.02380843 | AG127: 29.02380843 | AH127: 29.02380843 | AI127: 29.02380843 | AJ127: 29.02380843 | AK127: 29.02380843 | AL127: 29.02380843 | AM127: 29.02380843 | AN127: 29.02380843
A128: DRAB1409 | B128: “Other” assets with short lives | C128: 6.930016135 | D128: 6.930016135 | E128: 6.930016135 | F128: 6.930016135 | G128: 6.930016135 | H128: 6.930016135 | I128: 6.930016135 | J128: 6.930016135 | K128: 6.930016135 | L128: 6.930016135 | M128: 6.930016135 | N128: 6.930016135 | P128: 6.930016135 | Q128: 6.930016135 | R128: 6.930016135 | S128: 6.930016135 | T128: 6.930016135 | U128: 6.930016135 | V128: 6.930016135 | W128: 6.930016135 | X128: 6.930016135 | Y128: 6.930016135 | Z128: 6.930016135 | AA128: 6.930016135 | AC128: 6.930016135 | AD128: 6.930016135 | AE128: 6.930016135 | AF128: 6.930016135 | AG128: 6.930016135 | AH128: 6.930016135 | AI128: 6.930016135 | AJ128: 6.930016135 | AK128: 6.930016135 | AL128: 6.930016135 | AM128: 6.930016135 | AN128: 6.930016135
B130: ESTIMATED RESIDUAL SERVICE LIFE
A131: DRAB1501 | B131: Overhead network assets less than 33kV (wires and poles) | C131: 27.75811828 | D131: 28.19055879 | E131: 28.55898048 | F131: 28.62777657 | G131: 27.73121792 | H131: 27.74190512 | I131: 27.99599002 | J131: 29.4970682 | K131: 34.88578105 | L131: 24.25650342 | M131: 24.25268212 | N131: 24.32153922 | P131: 27.75811828 | Q131: 28.19055879 | R131: 28.55898048 | S131: 28.62777657 | T131: 27.73121792 | U131: 27.74190512 | V131: 27.99599002 | W131: 29.4970682 | X131: 34.88578105 | Y131: 24.25650342 | Z131: 24.25268212 | AA131: 24.32153922
A132: DRAB1502 | B132: Underground network assets less than 33kV (cables) | C132: 27.75811427 | D132: 28.19055495 | E132: 28.5589768 | F132: 28.62777305 | G132: 27.73121464 | H132: 27.74190195 | I132: 27.99598696 | J132: 29.49706525 | K132: 34.88578114 | L132: 24.25648179 | M132: 24.25263982 | N132: 24.32147832 | P132: 27.75811427 | Q132: 28.19055495 | R132: 28.5589768 | S132: 28.62777305 | T132: 27.73121464 | U132: 27.74190195 | V132: 27.99598696 | W132: 29.49706525 | X132: 34.88578114 | Y132: 24.25648179 | Z132: 24.25263982 | AA132: 24.32147832
A133: DRAB1503 | B133: Distribution substations including transformers | C133: 12.80795529 | D133: 12.0368212 | E133: 44.5553219 | F133: 44.5553219 | G133: 28.14135544 | H133: 28.11255734 | I133: 26.17294251 | J133: 25.49376438 | K133: 25.00050435 | L133: 25.32724978 | M133: 26.71441492 | N133: 27.62599637 | P133: 12.80795529 | Q133: 12.0368212 | R133: 44.5553219 | S133: 44.5553219 | T133: 28.14135544 | U133: 28.11255734 | V133: 26.17294251 | W133: 25.49376438 | X133: 25.00050435 | Y133: 25.32724978 | Z133: 26.71441492 | AA133: 27.62599637
A134: DRAB1504 | B134: Overhead network assets 33kV and above (wires and towers / poles etc) | C134: 23.04471969 | D134: 23.17822325 | E134: 22.06930419 | F134: 21.19948001 | G134: 40.60773991 | H134: 40.18151939 | I134: 38.18589691 | J134: 39.10535236 | K134: 31.96762734 | L134: 29.44508165 | M134: 28.33977624 | N134: 28.03295598 | P134: 23.04471969 | Q134: 23.17822325 | R134: 22.06930419 | S134: 21.19948001 | T134: 40.60773991 | U134: 40.18151939 | V134: 38.18589691 | W134: 39.10535236 | X134: 31.96762734 | Y134: 29.44508165 | Z134: 28.33977624 | AA134: 28.03295598
A135: DRAB1505 | B135: Underground network assets 33kV and above (cables, ducts etc) | C135: 23.04471969 | D135: 23.17822325 | E135: 22.06930419 | F135: 21.19948001 | G135: 40.60773991 | H135: 40.18151939 | I135: 38.18589691 | J135: 39.10535236 | K135: 31.96762734 | L135: 29.44508165 | M135: 28.33977624 | N135: 28.03295598 | P135: 23.04471969 | Q135: 23.17822325 | R135: 22.06930419 | S135: 21.19948001 | T135: 40.60773991 | U135: 40.18151939 | V135: 38.18589691 | W135: 39.10535236 | X135: 31.96762734 | Y135: 29.44508165 | Z135: 28.33977624 | AA135: 28.03295598
A136: DRAB1506 | B136: Zone substations and transformers | C136: 22.31404606 | D136: 22.06207763 | E136: 21.17424394 | F136: 27.94882011 | G136: 13.91471055 | H136: 16.01732068 | I136: 16.99767956 | J136: 36.22238217 | K136: 14.37450388 | L136: 11.52967348 | M136: 11.23742726 | N136: 13.56155807 | P136: 22.31404606 | Q136: 22.06207763 | R136: 21.17424394 | S136: 27.94882011 | T136: 13.91471055 | U136: 16.01732068 | V136: 16.99767956 | W136: 36.22238217 | X136: 14.37450388 | Y136: 11.52967348 | Z136: 11.23742726 | AA136: 13.56155807
A137: DRAB1507 | B137: Meters | AC137: 16 | AD137: 16 | AE137: 16 | AF137: 16 | AG137: 16 | AH137: 16 | AI137: 16 | AJ137: 16 | AK137: 7.5863088 | AL137: 6.821890701 | AM137: 7.700499579 | AN137: 8.278485638
A138: DRAB1508 | B138: “Other” assets with long lives | C138: 6.34228226 | D138: 5.153797419 | E138: 0.9258957042 | F138: 17.29046286 | K138: 10.27205769 | L138: 6.330590982 | M138: 5.634663002 | N138: 9.800283269 | P138: 6.34228226 | Q138: 5.153797419 | R138: 0.9258957042 | S138: 17.29046286 | X138: 10.27205769 | Y138: 6.330590982 | Z138: 5.634663002 | AA138: 9.800283269 | AC138: 29.02380843 | AD138: 29.02380843 | AE138: 29.02380843 | AF138: 29.02380843 | AG138: 29.02380843 | AH138: 29.02380843 | AI138: 29.02380843 | AJ138: 29.02380843 | AK138: 7.5863088 | AL138: 6.821890701 | AM138: 7.700499579 | AN138: 8.278485638
A139: DRAB1509 | B139: “Other” assets with short lives | C139: 0.4867245258 | D139: 0.8672754492 | E139: 0.8631540959 | F139: 0.1430261876 | G139: 0.01455820851 | H139: 0.1633419367 | I139: 4.25780967 | J139: 6.930016135 | K139: 6.930016135 | L139: 5.282926828 | M139: 3.173026633 | N139: 2.066967476 | P139: 0.4867245258 | Q139: 0.8672754492 | R139: 0.8631540959 | S139: 0.1430261876 | T139: 0.01455820851 | U139: 0.1633419367 | V139: 4.25780967 | W139: 6.930016135 | X139: 6.930016135 | Y139: 5.282926828 | Z139: 3.173026633 | AA139: 2.066967476

Sheet 3.4 Operational data
B1: REGULATORY REPORTING STATEMENT
B2: =INDEX(dms_TradingNameFull_List,MATCH(dms_TradingName,dms_TradingName_List)) -> Power and Water Corporation
B3: ECONOMIC BENCHMARKING - HISTORICAL
B4: 3.4 OPERATIONAL DATA
B6: There are THREE tables on this worksheet. Each table has been grouped for ease of navigation. See the Instructions sheet on how to group or ungroup tables.
B8: 3.4.1 - ENERGY DELIVERY
D9: Standard control services
D10: VOLUMES (0's) (GWh)
C11: Units | D11: =IF(dms_RPT="financial",dms_fy1,dms_cy1) -> 2005-06 | E11: =IF(dms_RPT="financial",dms_fy2,dms_cy2) -> 2006-07 | F11: =IF(dms_RPT="financial",dms_fy3,dms_cy3) -> 2007-08 | G11: =IF(dms_RPT="financial",dms_fy4,dms_cy4) -> 2008-09 | H11: =IF(dms_RPT="financial",dms_fy5,dms_cy5) -> 2009-10 | I11: =IF(dms_RPT="financial",dms_fy6,dms_cy6) -> 2010-11 | J11: =IF(dms_RPT="financial",dms_fy7,dms_cy7) -> 2011-12 | K11: =IF(dms_RPT="financial",dms_fy8,dms_cy8) -> 2012-13 | L11: =IF(dms_RPT="financial",dms_fy9,dms_cy9) -> 2013-14 | M11: =IF(dms_RPT="financial",dms_fy10,dms_cy10) -> 2014-15 | N11: =IF(dms_RPT="financial",dms_fy11,dms_cy11) -> 2015-16 | O11: =IF(dms_RPT="financial",dms_fy12,dms_cy12) -> 2016-17
A12: DOPED01 | B12: Total energy delivered | C12: GWh | D12: 1431.83256 | E12: 1475.974944 | F12: 1544.836951 | G12: 1576.210579 | H12: 1639.530499 | I12: 1642.565315 | J12: 1639.681417 | K12: 1671.308003 | L12: 1718.611883 | M12: 1750.981749 | N12: 1812.178202 | O12: 1779.50141
B14: 3.4.1.1 - Energy grouping - delivery by chargeable quantity
A15: DOPED0201 | B15: Energy Delivery where time of use is not a determinant | C15: GWh | D15: 939.7868667 | E15: 951.5878445 | F15: 1009.869454 | G15: 1058.57225 | H15: 1087.895509 | I15: 1047.612512 | J15: 1054.765895 | K15: 1093.721858 | L15: 1090.176862 | M15: 1107.685944 | N15: 1148.194031 | O15: 1113.167302
A16: DOPED0202 | B16: Energy Delivery at On-peak times | C16: GWh | D16: 287.1481885 | E16: 301.3827099 | F16: 279.1664819 | G16: 262.2119861 | H16: 316.7624927 | I16: 337.651161 | J16: 335.0018906 | K16: 332.4318529 | L16: 359.4315481 | M16: 367.7131834 | N16: 376.9719296 | O16: 374.9038597
A17: DOPED0203 | B17: Energy Delivery at Shoulder times | C17: GWh | D17: 0 | E17: 0 | F17: 0 | G17: 0 | H17: 0 | I17: 0 | J17: 0 | K17: 0 | L17: 0 | M17: 0 | N17: 0 | O17: 0
A18: DOPED0204 | B18: Energy Delivery at Off-peak times | C18: GWh | D18: 204.6779267 | E18: 222.7848115 | F18: 255.5640848 | G18: 255.1175725 | H18: 234.4352417 | I18: 256.7600152 | J18: 249.2989706 | K18: 244.5396303 | L18: 268.388811 | M18: 274.9583243 | N18: 285.8309252 | O18: 290.2489321
A19: DOPED0205 | B19: Controlled load energy deliveries | C19: GWh | D19: 0 | E19: 0 | F19: 0 | G19: 0 | H19: 0 | I19: 0 | J19: 0 | K19: 0 | L19: 0 | M19: 0 | N19: 0 | O19: 0
A20: DOPED0206 | B20: Energy Delivery to unmetered supplies | C20: GWh | D20: 0.21957816 | E20: 0.21957816 | F20: 0.236929968 | G20: 0.308770728 | H20: 0.4372554 | I20: 0.541627296 | J20: 0.614661168 | K20: 0.614661168 | L20: 0.614661168 | M20: 0.624297168 | N20: 1.181315784 | O20: 1.181315784
B22: 3.4.1.2 - Energy - received from major generators and other DNSPs by time of receipt
A23: DOPED0301 | B23: Energy into DNSP network at On-peak times | C23: GWh | D23: 0 | E23: 0 | F23: 0 | G23: 0 | H23: 0 | I23: 0 | J23: 0 | K23: 0 | L23: 0 | M23: 0 | N23: 0 | O23: 0
A24: DOPED0302 | B24: Energy into DNSP network at Shoulder times | C24: GWh | D24: 0 | E24: 0 | F24: 0 | G24: 0 | H24: 0 | I24: 0 | J24: 0 | K24: 0 | L24: 0 | M24: 0 | N24: 0 | O24: 0
A25: DOPED0303 | B25: Energy into DNSP network at Off-peak times | C25: GWh | D25: 0 | E25: 0 | F25: 0 | G25: 0 | H25: 0 | I25: 0 | J25: 0 | K25: 0 | L25: 0 | M25: 0 | N25: 0 | O25: 0
A26: DOPED0304 | B26: Energy received from major generator and other DNSPs not included in the above categories | C26: GWh | D26: 1547.274 | E26: 1619.012439 | F26: 1658.583693 | G26: 1713.112 | H26: 1765.346162 | I26: 1738.137151 | J26: 1760.816 | K26: 1816.787402 | L26: 1777.188 | M26: 1788.797 | N26: 1904.711 | O26: 1832.58312
B28: 3.4.1.3 - Energy - received into DNSP system from embedded generation by time of receipt
A29: DOPED0401 | B29: Energy into DNSP network at On-peak times from non-residential embedded generation | C29: GWh | D29: 0 | E29: 0 | F29: 0 | G29: 0 | H29: 0 | I29: 0 | J29: 0 | K29: 0 | L29: 0 | M29: 0 | N29: 0 | O29: 0
A30: DOPED0402 | B30: Energy into DNSP network at Shoulder times from non-residential embedded generation | C30: GWh | D30: 0 | E30: 0 | F30: 0 | G30: 0 | H30: 0 | I30: 0 | J30: 0 | K30: 0 | L30: 0 | M30: 0 | N30: 0 | O30: 0
A31: DOPED0403 | B31: Energy into DNSP network at Off-peak times from non-residential embedded generation | C31: GWh | D31: 0 | E31: 0 | F31: 0 | G31: 0 | H31: 0 | I31: 0 | J31: 0 | K31: 0 | L31: 0 | M31: 0 | N31: 0 | O31: 0
A32: DOPED0404 | B32: Energy received from embedded generation not included in above categories from non-residential embedded generation | C32: GWh | D32: 8.54 | E32: 8.54 | F32: 8.54 | G32: 8.575948 | H32: 8.649931 | I32: 8.903291 | J32: 8.991012 | K32: 9.32570453 | L32: 9.567126 | M32: 9.860135 | N32: 9.829265 | O32: 10.226913
A33: DOPED0405 | B33: Energy into DNSP network at On-peak times from residential embedded generation | C33: GWh | D33: 0 | E33: 0 | F33: 0 | G33: 0 | H33: 0 | I33: 0 | J33: 0 | K33: 0 | L33: 0 | M33: 0 | N33: 0 | O33: 0
A34: DOPED0406 | B34: Energy into DNSP network at Shoulder times from residential embedded generation | C34: GWh | D34: 0 | E34: 0 | F34: 0 | G34: 0 | H34: 0 | I34: 0 | J34: 0 | K34: 0 | L34: 0 | M34: 0 | N34: 0 | O34: 0
A35: DOPED0407 | B35: Energy into DNSP network at Off-peak times from residential embedded generation | C35: GWh | D35: 0 | E35: 0 | F35: 0 | G35: 0 | H35: 0 | I35: 0 | J35: 0 | K35: 0 | L35: 0 | M35: 0 | N35: 0 | O35: 0
A36: DOPED0408 | B36: Energy received from embedded generation not included in above categories from residential embedded generation | C36: GWh | D36: 0 | E36: 0 | F36: 0 | G36: 0.06128905 | H36: 0.54807341 | I36: 1.68307832 | J36: 2.82099069 | K36: 4.19396581 | L36: 7.72523312 | M36: 13.10531275 | N36: 15.858245 | O36: 20.205339
B38: 3.4.1.4 - Energy grouping - customer type or class
A39: DOPED0501 | B39: Residential customers energy deliveries | C39: GWh | D39: 512.6474397 | E39: 511.477849 | F39: 552.1687604 | G39: 578.6854396 | H39: 601.6636313 | I39: 577.3182697 | J39: 579.0381265 | K39: 600.4775866 | L39: 603.9689145 | M39: 624.8905668 | N39: 652.216439 | O39: 661.513669
A40: DOPED0502 | B40: Non residential customers not on demand tariffs energy deliveries | C40: GWh | D40: 427.139427 | E40: 440.1099955 | F40: 457.7006938 | G40: 479.88681 | H40: 486.2318774 | I40: 470.294242 | J40: 475.727768 | K40: 493.2442719 | L40: 486.2079478 | M40: 482.7953776 | N40: 495.9775924 | O40: 451.653633
A41: DOPED0503 | B41: Non-residential low voltage demand tariff customers energy deliveries | C41: GWh | D41: 291.3499799 | E41: 275.8816812 | F41: 266.3771641 | G41: 270.4715282 | H41: 283.028567 | I41: 282.2072283 | J41: 284.6907119 | K41: 277.2944908 | L41: 290.5533151 | M41: 297.6323763 | N41: 300.8103865 | O41: 304.7868981
A42: DOPED0504 | B42: Non-residential high voltage demand tariff customers energy deliveries | C42: GWh | D42: 200.4761378 | E42: 248.2858431 | F42: 268.3534031 | G42: 246.8580318 | H42: 268.1691696 | I42: 312.2039516 | J42: 299.6011504 | K42: 299.6769955 | L42: 337.2670437 | M42: 345.0391323 | N42: 361.9924699 | O42: 360.3658943
A43: DOPED0505 | B43: Other Customer Class Energy Deliveries | C43: GWh | D43: 0.21957816 | E43: 0.21957816 | F43: 0.236929968 | G43: 0.308770728 | H43: 0.4372554 | I43: 0.541627296 | J43: 0.614661168 | K43: 0.614661168 | L43: 0.614661168 | M43: 0.624297168 | N43: 1.181315784 | O43: 1.181315784
B46: 3.4.2 - CUSTOMER NUMBERS
D47: Standard control services
D48: VOLUMES (0's)
D49: =IF(dms_RPT="financial",dms_fy1,dms_cy1) -> 2005-06 | E49: =IF(dms_RPT="financial",dms_fy2,dms_cy2) -> 2006-07 | F49: =IF(dms_RPT="financial",dms_fy3,dms_cy3) -> 2007-08 | G49: =IF(dms_RPT="financial",dms_fy4,dms_cy4) -> 2008-09 | H49: =IF(dms_RPT="financial",dms_fy5,dms_cy5) -> 2009-10 | I49: =IF(dms_RPT="financial",dms_fy6,dms_cy6) -> 2010-11 | J49: =IF(dms_RPT="financial",dms_fy7,dms_cy7) -> 2011-12 | K49: =IF(dms_RPT="financial",dms_fy8,dms_cy8) -> 2012-13 | L49: =IF(dms_RPT="financial",dms_fy9,dms_cy9) -> 2013-14 | M49: =IF(dms_RPT="financial",dms_fy10,dms_cy10) -> 2014-15 | N49: =IF(dms_RPT="financial",dms_fy11,dms_cy11) -> 2015-16 | O49: =IF(dms_RPT="financial",dms_fy12,dms_cy12) -> 2016-17
B50: 3.4.2.1 - Distribution customer numbers by customer type or class
A51: DOPCN0101 | B51: Residential customer numbers | D51: 56891 | E51: 57248 | F51: 57904 | G51: 60498 | H51: 61942 | I51: 62931 | J51: 63865 | K51: 65061 | L51: 66909 | M51: 69029 | N51: 71101 | O51: 73150
A52: DOPCN0102 | B52: Non residential customers not on demand tariff customer numbers | D52: 9987 | E52: 10381 | F52: 10830 | G52: 11293 | H52: 12143 | I52: 12531 | J52: 12869 | K52: 13267 | L52: 13745 | M52: 13277 | N52: 12657 | O52: 12103
A53: DOPCN0103 | B53: Low voltage demand tariff customer numbers | D53: 178 | E53: 153 | F53: 150 | G53: 147 | H53: 161 | I53: 165 | J53: 170 | K53: 171 | L53: 189 | M53: 207 | N53: 215 | O53: 229
A54: DOPCN0104 | B54: High voltage demand tariff customer numbers | D54: 22 | E54: 26 | F54: 25 | G54: 27 | H54: 29 | I54: 28 | J54: 29 | K54: 28 | L54: 33 | M54: 34 | N54: 34 | O54: 34
A55: DOPCN0105 | B55: Unmetered Customer Numbers | D55: 31 | E55: 31 | F55: 34 | G55: 46 | H55: 65 | I55: 82 | J55: 95 | K55: 95 | L55: 95 | M55: 99 | N55: 194 | O55: 194
A56: DOPCN0106 | B56: Other Customer Numbers | D56: 0 | E56: 0 | F56: 0 | G56: 0 | H56: 0 | I56: 0 | J56: 0 | K56: 0 | L56: 0 | M56: 0 | N56: 0 | O56: 0
A57: DOPCN01 | B57: Total customer numbers | D57: =SUM(D51:D56) -> 67109 | E57: 67839 | F57: 68943 | G57: 72011 | H57: 74340 | I57: 75737 | J57: 77028 | K57: 78622 | L57: 80971 | M57: 82646 | N57: 84201 | O57: 85710
B59: 3.4.2.2 - Distribution customer numbers by location on the network
A60: DOPCN0201 | B60: Customers on CBD network | D60: 2868.705571 | E60: 2899.91085 | F60: 2947.103491 | G60: 3078.251157 | H60: 3177.808821 | I60: 3237.526321 | J60: 3292.712643 | K60: 3360.851293 | L60: 3461.263896 | M60: 3532.86505 | N60: 3599.336569 | O60: 3663.841728
A61: DOPCN0202 | B61: Customers on Urban network | D61: 28710.36823 | E61: 29022.67461 | F61: 29494.98453 | G61: 30807.52696 | H61: 31803.91265 | I61: 32401.57294 | J61: 32953.88464 | K61: 33635.82487 | L61: 34640.7669 | M61: 35357.36031 | N61: 36022.61567 | O61: 36668.19146
A62: DOPCN0203 | B62: Customers on Short rural network | D62: 34748.38829 | E62: 35126.3752 | F62: 35698.01568 | G62: 37286.59628 | H62: 38492.52985 | I62: 39215.88288 | J62: 39884.35014 | K62: 40709.70785 | L62: 41925.99724 | M62: 42793.29597 | N62: 43598.45986 | O62: 44379.8054
A63: DOPCN0204 | B63: Customers on Long rural network | D63: 781.5379051 | E63: 790.0393381 | F63: 802.8962999 | G63: 838.6256103 | H63: 865.7486755 | I63: 882.0178563 | J63: 897.0525824 | K63: 915.6159855 | L63: 942.9719667 | M63: 962.4786795 | N63: 980.5878965 | O63: 998.1614067
A64: DOPCN02 | B64: Total customer numbers | D64: =SUM(D60:D63) -> 67109 | E64: 67839 | F64: 68943 | G64: 72011 | H64: 74340 | I64: 75737 | J64: 77028 | K64: 78622 | L64: 80971 | M64: 82646 | N64: 84201 | O64: 85710
B68: 3.4.3 - SYSTEM DEMAND
D69: Standard control services
D70: VOLUMES (0's)
C71: Units | D71: =IF(dms_RPT="financial",dms_fy1,dms_cy1) -> 2005-06 | E71: =IF(dms_RPT="financial",dms_fy2,dms_cy2) -> 2006-07 | F71: =IF(dms_RPT="financial",dms_fy3,dms_cy3) -> 2007-08 | G71: =IF(dms_RPT="financial",dms_fy4,dms_cy4) -> 2008-09 | H71: =IF(dms_RPT="financial",dms_fy5,dms_cy5) -> 2009-10 | I71: =IF(dms_RPT="financial",dms_fy6,dms_cy6) -> 2010-11 | J71: =IF(dms_RPT="financial",dms_fy7,dms_cy7) -> 2011-12 | K71: =IF(dms_RPT="financial",dms_fy8,dms_cy8) -> 2012-13 | L71: =IF(dms_RPT="financial",dms_fy9,dms_cy9) -> 2013-14 | M71: =IF(dms_RPT="financial",dms_fy10,dms_cy10) -> 2014-15 | N71: =IF(dms_RPT="financial",dms_fy11,dms_cy11) -> 2015-16 | O71: =IF(dms_RPT="financial",dms_fy12,dms_cy12) -> 2016-17
B72: 3.4.3.1 - Annual system maximum demand characteristics at the zone substation level – MW measure
A73: DOPSD0101 | B73: Non-coincident Summated Raw System Annual Maximum Demand | C73: MW | D73: 313 | E73: 328 | F73: 336 | G73: 353 | H73: 355 | I73: 373 | J73: 355 | K73: 376 | L73: 361 | M73: 371 | N73: 388 | O73: 413.4393
A74: DOPSD0102 | B74: Non–coincident Summated Weather Adjusted System Annual Maximum Demand 10% POE | C74: MW | D74: 342.225 | E74: 376.35 | F74: 367.575 | G74: 379.275 | H74: 394.875 | I74: 405.6 | J74: 384.15 | K74: 402 | L74: 403 | M74: 411 | N74: 426 | O74: 412.4408
A75: DOPSD0103 | B75: Non–coincident Summated Weather Adjusted System Annual Maximum Demand 50% POE | C75: MW | D75: 333.45 | E75: 367.575 | F75: 359.775 | G75: 370.5 | H75: 385.125 | I75: 396.825 | J75: 375.375 | K75: 391 | L75: 393 | M75: 401 | N75: 416 | O75: 390.684
A76: DOPSD0104 | B76: Coincident Raw System Annual Maximum Demand | C76: MW | D76: 272 | E76: 274 | F76: 275 | G76: 299 | H76: 307 | I76: 332 | J76: 297 | K76: 326 | L76: 308 | M76: 331 | N76: 328 | O76: 325.464
A77: DOPSD0105 | B77: Coincident Weather Adjusted System Annual Maximum Demand 10% POE | C77: MW | D77: 302.25 | E77: 315.9 | F77: 317.85 | G77: 320.775 | H77: 345.15 | I77: 354.9 | J77: 323.7 | K77: 357 | L77: 345 | M77: 357 | N77: 359 | O77: 344.1899
A78: DOPSD0106 | B78: Coincident Weather Adjusted System Annual Maximum Demand 50% POE | C78: MW | D78: 294.45 | E78: 308.1 | F78: 311.025 | G78: 312 | H78: 336.375 | I78: 346.125 | J78: 315.9 | K78: 347 | L78: 336 | M78: 347 | N78: 349 | O78: 326.3097
B80: 3.4.3.2 - Annual system maximum demand characteristics at the generation connection point – MW measure
A81: DOPSD0107 | B81: Non-coincident Summated Raw System Annual Maximum Demand | C81: MW | D81: 315.93 | E81: 320.9 | F81: 325.3 | G81: 396.8 | H81: 396.6 | I81: 385.1 | J81: 431.4 | K81: 401.8 | L81: 450.9 | M81: 348.89 | N81: 501.5 | O81: 499.42
A82: DOPSD0108 | B82: Non–coincident Summated Weather Adjusted System Annual Maximum Demand 10% POE | C82: MW | D82: 352.8978989 | E82: 364.1 | F82: 371.2 | G82: 443.9 | H82: 445.3 | I82: 440.4 | J82: 485.5 | K82: 461.5 | L82: 526 | M82: 371.152528 | N82: 558.7 | O82: 499.42
A83: DOPSD0109 | B83: Non–coincident Summated Weather Adjusted System Annual Maximum Demand 50% POE | C83: MW | D83: 344.1716632 | E83: 355.2 | F83: 362.2 | G83: 433 | H83: 434 | I83: 429.7 | J83: 473.6 | K83: 450 | L83: 513.2 | M83: 361.017424 | N83: 544.6 | O83: 499.42
A84: DOPSD0110 | B84: Coincident Raw System Annual Maximum Demand | C84: MW | D84: 309.01 | E84: 299 | F84: 290.8 | G84: 331.6 | H84: 315.5 | I84: 335.8 | J84: 343.2 | K84: 331.8 | L84: 335.8 | M84: 343.74 | N84: 344.3 | O84: 338.89
A85: DOPSD0111 | B85: Coincident Weather Adjusted System Annual Maximum Demand 10% POE | C85: MW | D85: 337.6572796 | E85: 327 | F85: 333.1 | G85: 365.9 | H85: 354.2 | I85: 357 | J85: 379.7 | K85: 362.9 | L85: 383.6 | M85: 365.73936 | N85: 376 | O85: 363.0734
A86: DOPSD0112 | B86: Coincident Weather Adjusted System Annual Maximum Demand 50% POE | C86: MW | D86: 328.87609 | E86: 318.7 | F86: 324.8 | G86: 356.8 | H86: 345 | I86: 347.7 | J86: 370.3 | K86: 353.4 | L86: 374.5 | M86: 356.939616 | N86: 366.1 | O86: 351.2511
B88: 3.4.3.3 - Annual system maximum demand characteristics at the zone substation level – MVA measure
A89: DOPSD0201 | B89: Non–coincident Summated Raw System Annual Maximum Demand | C89: MVA | D89: 320.569957 | E89: 336.0684 | F89: 344.774116 | G89: 361.9736 | H89: 364.21166 | I89: 382.6331 | J89: 363.6178 | K89: 385.6801 | L89: 374.9805 | M89: 383.0275 | N89: 399.6508 | O89: 425.5736
A90: DOPSD0202 | B90: Non–coincident Summated Weather Adjusted System Annual Maximum Demand 10% POE | C90: MVA | D90: 350.6558189 | E90: 385.8028 | F90: 377.44591 | G90: 389.4949 | H90: 404.85614 | I90: 416.4762374 | J90: 394.4874 | K90: 411.6924 | L90: 417.9609 | M90: 424.2596 | N90: 440.2469 | O90: 423.316
A91: DOPSD0203 | B91: Non–coincident Summated Weather Adjusted System Annual Maximum Demand 50% POE | C91: MVA | D91: 341.9935732 | E91: 376.6168 | F91: 368.558292 | G91: 379.5009 | H91: 394.72413 | I91: 406.6676 | J91: 385.1826 | K91: 401.0461 | L91: 407.765 | M91: 413.7338 | N91: 429.0609 | O91: 400.99
A92: DOPSD0204 | B92: Coincident Raw System Annual Maximum Demand | C92: MVA | D92: 279.4460521 | E92: 280.7598 | F92: 282.174964 | G92: 306.5203456 | H92: 315.22098 | I92: 340.0593115 | J92: 305.19479 | K92: 334.12927 | L92: 319.74121 | M92: 341.77417 | N92: 337.69163 | O92: 331.3294
A93: DOPSD0205 | B93: Coincident Weather Adjusted System Annual Maximum Demand 10% POE | C93: MVA | D93: 310.1078992 | E93: 323.9373 | F93: 326.489684 | G93: 328.9442332 | H93: 353.91985 | I93: 364.0722733 | J93: 331.99942 | K93: 365.60291 | L93: 357.87185 | M93: 367.72708 | N93: 369.7245 | O93: 353.0272
A94: DOPSD0206 | B94: Coincident Weather Adjusted System Annual Maximum Demand 50% POE | C94: MVA | D94: 302.1668703 | E94: 315.9954 | F94: 318.88887 | G94: 319.9853425 | H94: 344.64023 | I94: 354.9392782 | J94: 323.56103 | K94: 356.18717 | L94: 349.08141 | M94: 357.85276 | N94: 360.13911 | O94: 334.6967
B96: 3.4.3.4 - Annual system maximum demand characteristics at the generation connection point – MVA measure
A97: DOPSD0207 | B97: Non–coincident Summated Raw System Annual Maximum Demand | C97: MVA | D97: 355.5109005 | E97: 360.0784 | F97: 345.0825 | G97: 425.4162 | H97: 420.0931 | I97: 410.6521 | J97: 455.0492 | K97: 421.1032 | L97: 462.7644 | M97: 363.4270833 | N97: 514.027 | O97: 515.1172
A98: DOPSD0208 | B98: Non–coincident Summated Weather Adjusted System Annual Maximum Demand 10% POE | C98: MVA | D98: 397.110277 | E98: 408.5553 | F98: 393.7047 | G98: 476.0082 | H98: 471.6015 | I98: 469.606 | J98: 512.1201 | K98: 483.7255 | L98: 539.9204 | M98: 387.1356113 | N98: 572.6374 | O98: 515.1172
A99: DOPSD0209 | B99: Non–coincident Summated Weather Adjusted System Annual Maximum Demand 50% POE | C99: MVA | D99: 387.2907856 | E99: 398.552 | F99: 384.2313 | G99: 464.2897 | H99: 459.6965 | I99: 458.2354 | J99: 499.5669 | K99: 471.5827 | L99: 526.7916 | M99: 376.5573654 | N99: 558.1988 | O99: 515.1172
A100: DOPSD0210 | B100: Coincident Raw System Annual Maximum Demand | C100: MVA | D100: 341.6397456 | E100: 331.4892541 | F100: 310.1836878 | G100: 357.6411051 | H100: 348.2153409 | I100: 363.5535631 | J100: 353.474296 | K100: 349.5433709 | L100: 343.8634087 | M100: 358.0625 | N100: 349.7368641 | O100: 349.5416
A101: DOPSD0211 | B101: Coincident Weather Adjusted System Annual Maximum Demand 10% POE | C101: MVA | D101: 373.3120194 | E101: 362.5739785 | F101: 355.3213134 | G101: 394.5797779 | H101: 390.9930297 | I101: 386.5566419 | J101: 390.9695763 | K101: 382.2489964 | L101: 392.8813361 | M101: 380.9785 | N101: 381.9976368 | O101: 374.4851
A102: DOPSD0212 | B102: Coincident Weather Adjusted System Annual Maximum Demand 50% POE | C102: MVA | D102: 363.6035848 | E102: 353.3378536 | F102: 346.4594797 | G102: 384.8098807 | H102: 380.7850482 | I102: 376.4065052 | J102: 381.3538648 | K102: 372.2718626 | L102: 383.5727878 | M102: 371.8121 | N102: 371.9018734 | O102: 362.2912
B104: 3.4.3.5 - Power factor conversion between MVA and MW
A105: DOPSD0301 | B105: Average overall network power factor conversion between MVA and MW | C105: Factor | D105: 0.9628177421 | E105: 0.9628177421 | F105: 0.9628177421 | G105: 0.9605806992 | H105: 0.9640703585 | I105: 0.971938015 | J105: 0.975867593 | K105: 0.9801986268 | L105: 0.9842315802 | M105: 0.9863562213 | N105: 0.9890549442 | O105: 0.969527
A106: DOPSD0302 | B106: Average power factor conversion for low voltage distribution lines | C106: Factor | D106: 0 | E106: 0 | F106: 0 | G106: 0 | H106: 0 | I106: 0 | J106: 0 | K106: 0 | L106: 0 | M106: 0 | N106: 0 | O106: 0
A107: DOPSD0303 | B107: Average power factor conversion for 3.3 kV lines | C107: Factor | D107: 0 | E107: 0 | F107: 0 | G107: 0 | H107: 0 | I107: 0 | J107: 0 | K107: 0 | L107: 0 | M107: 0 | N107: 0 | O107: 0
A108: DOPSD0304 | B108: Average power factor conversion for 6.6 kV lines | C108: Factor | D108: 0 | E108: 0 | F108: 0 | G108: 0 | H108: 0 | I108: 0 | J108: 0 | K108: 0 | L108: 0 | M108: 0 | N108: 0 | O108: 0
A109: DOPSD0305 | B109: Average power factor conversion for 7.6 kV lines | C109: Factor | D109: 0 | E109: 0 | F109: 0 | G109: 0 | H109: 0 | I109: 0 | J109: 0 | K109: 0 | L109: 0 | M109: 0 | N109: 0 | O109: 0
A110: DOPSD0306 | B110: Average power factor conversion for 11 kV lines | C110: Factor | D110: 0.951346192 | E110: 0.951346192 | F110: 0.951346192 | G110: 0.951346 | H110: 0.951346 | I110: 0.955809 | J110: 0.960271 | K110: 0.964734 | L110: 0.969196 | M110: 0.973659 | N110: 0.978121 | O110: 0.982584
A111: DOPSD0307 | B111: Average power factor conversion for SWER lines | C111: Factor | D111: 0 | E111: 0 | F111: 0 | G111: 0 | H111: 0 | I111: 0 | J111: 0 | K111: 0 | L111: 0 | M111: 0 | N111: 0 | O111: 0
A112: DOPSD0308 | B112: Average power factor conversion for 22 kV lines | C112: Factor | D112: 0.946017128 | E112: 0.946017128 | F112: 0.946017128 | G112: 0.946017 | H112: 0.946017 | I112: 0.95048 | J112: 0.954942 | K112: 0.959405 | L112: 0.963867 | M112: 0.96833 | N112: 0.972792 | O112: 0.977255
A113: DOPSD0309 | B113: Average power factor conversion for 33 kV lines | C113: Factor | D113: 0 | E113: 0 | F113: 0 | G113: 0 | H113: 0 | I113: 0 | J113: 0 | K113: 0 | L113: 0 | M113: 0 | N113: 0 | O113: 0
A114: DOPSD0310 | B114: Average power factor conversion for 44 kV lines | C114: Factor | D114: 0 | E114: 0 | F114: 0 | G114: 0 | H114: 0 | I114: 0 | J114: 0 | K114: 0 | L114: 0 | M114: 0 | N114: 0 | O114: 0
A115: DOPSD0311 | B115: Average power factor conversion for 66 kV lines | C115: Factor | D115: 0.975 | E115: 0.975 | F115: 0.975 | G115: 0.975 | H115: 0.975 | I115: 0.975 | J115: 0.975 | K115: 0.975 | L115: 0.963 | M115: 0.969 | N115: 0.969 | O115: 0.964
A116: DOPSD0312 | B116: Average power factor conversion for 110 kV lines | C116: Factor | D116: 0 | E116: 0 | F116: 0 | G116: 0 | H116: 0 | I116: 0 | J116: 0 | K116: 0 | L116: 0 | M116: 0 | N116: 0 | O116: 0
A117: DOPSD0313 | B117: Average power factor conversion for 132 kV lines | C117: Factor | D117: 0.908 | E117: 0.908 | F117: 0.908 | G117: 0.908 | H117: 0.908 | I117: 0.908 | J117: 0.908 | K117: 0.908 | L117: 0.919 | M117: 0.917 | N117: 0.93 | O117: 0.913
A118: DOPSD0314 | B118: Average power factor conversion for 220 kV lines | C118: Factor | D118: 0 | E118: 0 | F118: 0 | G118: 0 | H118: 0 | I118: 0 | J118: 0 | K118: 0 | L118: 0 | M118: 0 | N118: 0 | O118: 0
B120: 3.4.3.6 - Demand supplied (for customers charged on this basis) – MW measure
A121: DOPSD0401 | B121: Summated Chargeable Contracted Maximum Demand | C121: MW | D121: 0 | E121: 0 | F121: 0 | G121: 0 | H121: 0 | I121: 0 | J121: 0 | K121: 0 | L121: 0 | M121: 0 | N121: 0 | O121: 0
A122: DOPSD0402 | B122: Summated Chargeable Measured Maximum Demand | C122: MW | D122: 0 | E122: 0 | F122: 0 | G122: 0 | H122: 0 | I122: 0 | J122: 0 | K122: 0 | L122: 0 | M122: 0 | N122: 0 | O122: 0
B124: 3.4.3.7 - Demand supplied (for customers charged on this basis) – MVA measure
A125: DOPSD0403 | B125: Summated Chargeable Contracted Maximum Demand | C125: MVA | D125: 0 | E125: 0 | F125: 0 | G125: 0 | H125: 0 | I125: 0 | J125: 0 | K125: 0 | L125: 0 | M125: 0 | N125: 0 | O125: 0
A126: DOPSD0404 | B126: Summated Chargeable Measured Maximum Demand | C126: MVA | D126: 2360.034211 | E126: 2537.52738 | F126: 2556.4846 | G126: 2521.66793 | H126: 2657.5368 | I126: 2793.15715 | J126: 2721.47892 | K126: 2754.45217 | L126: 2904.44793 | M126: 2964.3094 | N126: 3027.6953 | O126: 3074.17872

Sheet 3.5 Physical assets
B1: REGULATORY REPORTING STATEMENT
B2: =INDEX(dms_TradingNameFull_List,MATCH(dms_TradingName,dms_TradingName_List)) -> Power and Water Corporation
B3: ECONOMIC BENCHMARKING - HISTORICAL
B4: 3.5 PHYSICAL ASSETS
B6: There are THREE tables on this worksheet. Each table has been grouped (and sub-grouped) for ease of navigation. See the Instructions sheet on how to group or ungroup tables.
B8: 3.5.1 - NETWORK CAPACITIES
D9: VOLUMES (0's)
D10: =IF(dms_RPT="financial",dms_fy1,dms_cy1) -> 2005-06 | E10: =IF(dms_RPT="financial",dms_fy2,dms_cy2) -> 2006-07 | F10: =IF(dms_RPT="financial",dms_fy3,dms_cy3) -> 2007-08 | G10: =IF(dms_RPT="financial",dms_fy4,dms_cy4) -> 2008-09 | H10: =IF(dms_RPT="financial",dms_fy5,dms_cy5) -> 2009-10 | I10: =IF(dms_RPT="financial",dms_fy6,dms_cy6) -> 2010-11 | J10: =IF(dms_RPT="financial",dms_fy7,dms_cy7) -> 2011-12 | K10: =IF(dms_RPT="financial",dms_fy8,dms_cy8) -> 2012-13 | L10: =IF(dms_RPT="financial",dms_fy9,dms_cy9) -> 2013-14 | M10: =IF(dms_RPT="financial",dms_fy10,dms_cy10) -> 2014-15 | N10: =IF(dms_RPT="financial",dms_fy11,dms_cy11) -> 2015-16 | O10: =IF(dms_RPT="financial",dms_fy12,dms_cy12) -> 2016-17
B11: Circuit length
B12: 3.5.1.1 - Overhead network length of circuit at each voltage
A13: DPA0101 | B13: Overhead low voltage distribution | C13: km | D13: 1054.182426 | E13: 1082.657393 | F13: 1103.209849 | G13: 1109.637393 | H13: 1121.34423 | I13: 1136.408356 | J13: 1144.057532 | K13: 1151.837408 | L13: 1162.046381 | M13: 1169.929808 | N13: 1173.720074 | O13: 1176.694926
A14: DPA0102 | B14: Overhead 2.2 kV | C14: km | D14: 0 | E14: 0 | F14: 0 | G14: 0 | H14: 0 | I14: 0 | J14: 0 | K14: 0 | L14: 0 | M14: 0 | N14: 0 | O14: 0
A15: DPA0103 | B15: Overhead 6.6kv | C15: km | D15: 0 | E15: 0 | F15: 0 | G15: 0 | H15: 0 | I15: 0 | J15: 0 | K15: 0 | L15: 0 | M15: 0 | N15: 0 | O15: 0
A16: DPA0104 | B16: Overhead 7.6 kV | C16: km | D16: 0 | E16: 0 | F16: 0 | G16: 0 | H16: 0 | I16: 0 | J16: 0 | K16: 0 | L16: 0 | M16: 0 | N16: 0 | O16: 0
A17: DPA0105 | B17: Overhead 11 kV | C17: km | D17: 322.4451218 | E17: 324.3531319 | F17: 325.9936379 | G17: 327.1299773 | H17: 333.7814505 | I17: 342.7635627 | J17: 344.0384727 | K17: 347.7146014 | L17: 349.9562162 | M17: 351.4423535 | N17: 366.6750503 | O17: 369.1467596
A18: DPA0106 | B18: Overhead SWER | C18: km | D18: 8.2815686 | E18: 8.580229117 | F18: 8.580229117 | G18: 8.580229117 | H18: 8.580229117 | I18: 8.580229117 | J18: 8.580229117 | K18: 8.580229117 | L18: 8.580229117 | M18: 8.580229117 | N18: 8.580229117 | O18: 8.580229117
A19: DPA0107 | B19: Overhead 22 kV | C19: km | D19: 2615.179032 | E19: 2726.323369 | F19: 2841.593803 | G19: 2884.498348 | H19: 2905.276811 | I19: 2919.967199 | J19: 2927.370454 | K19: 2940.749284 | L19: 2953.411632 | M19: 3071.56871 | N19: 3081.283278 | O19: 3113.504693
A20: DPA0108 | B20: Overhead 33 kV | C20: km | D20: 0 | E20: 0 | F20: 0 | G20: 0 | H20: 0 | I20: 0 | J20: 0 | K20: 0 | L20: 0 | M20: 0 | N20: 0 | O20: 0
A21: DPA0109 | B21: Overhead 44 kV | C21: km | D21: 0 | E21: 0 | F21: 0 | G21: 0 | H21: 0 | I21: 0 | J21: 0 | K21: 0 | L21: 0 | M21: 0 | N21: 0 | O21: 0
A22: DPA0110 | B22: Overhead 66 kV | C22: km | D22: 314.4667814 | E22: 314.4667814 | F22: 321.0131862 | G22: 321.0131862 | H22: 321.0131862 | I22: 360.4361033 | J22: 376.8680515 | K22: 376.8680515 | L22: 377.6878596 | M22: 377.6878596 | N22: 384.1283134 | O22: 384.9263428
A23: DPA0111 | B23: Overhead 110kV | C23: km | D23: 0 | E23: 0 | F23: 0 | G23: 0 | H23: 0 | I23: 0 | J23: 0 | K23: 0 | L23: 0 | M23: 0 | N23: 0 | O23: 0
A24: DPA0112 | B24: Overhead 132 kV | C24: km | D24: 348.0496903 | E24: 348.0496903 | F24: 352.1998169 | G24: 352.1998169 | H24: 352.1998169 | I24: 352.1998169 | J24: 352.1998169 | K24: 352.1998169 | L24: 352.1998169 | M24: 352.2091869 | N24: 352.2091869 | O24: 352.2091869
A25: DPA0113 | B25: Overhead 220kV | C25: km | D25: 0 | E25: 0 | F25: 0 | G25: 0 | H25: 0 | I25: 0 | J25: 0 | K25: 0 | L25: 0 | M25: 0 | N25: 0 | O25: 0
A26: DPA0114 | B26: Other | C26: km | D26: 0 | E26: 0 | F26: 0 | G26: 0 | H26: 0 | I26: 0 | J26: 0 | K26: 0 | L26: 0 | M26: 0 | N26: 0 | O26: 0
A27: DPA01 | B27: Total overhead circuit km | C27: km | D27: =SUM(D13:D26) -> 4662.604621 | E27: =SUM(E13:E26) -> 4804.430594 | F27: 4952.590521 | G27: 5003.058951 | H27: 5042.195724 | I27: 5120.355268 | J27: 5153.114557 | K27: 5177.949391 | L27: 5203.882135 | M27: 5331.418148 | N27: 5366.596132 | O27: 5405.062138
B28: 3.5.1.2 - Underground network circuit length at each voltage
A29: DPA0201 | B29: Underground low voltage distribution | C29: km | D29: 495.6927572 | E29: 520.9391 | F29: 534.2762998 | G29: 541.1012798 | H29: 591.3097526 | I29: 612.4717236 | J29: 616.5730529 | K29: 635.4237511 | L29: 652.3807967 | M29: 680.659863 | N29: 703.7769306 | O29: 715.7646268
A30: DPA0202 | B30: Underground 5 kV | C30: km | D30: 0 | E30: 0 | F30: 0 | G30: 0 | H30: 0 | I30: 0 | J30: 0 | K30: 0 | L30: 0 | M30: 0 | N30: 0 | O30: 0
A31: DPA0203 | B31: Underground 6.6 Kv | C31: km | D31: 0 | E31: 0 | F31: 0 | G31: 0 | H31: 0 | I31: 0 | J31: 0 | K31: 0 | L31: 0 | M31: 0 | N31: 0 | O31: 0
A32: DPA0204 | B32: Underground 7.6 kV | C32: km | D32: 0 | E32: 0 | F32: 0 | G32: 0 | H32: 0 | I32: 0 | J32: 0 | K32: 0 | L32: 0 | M32: 0 | N32: 0 | O32: 0
A33: DPA0205 | B33: Underground 11 kV | C33: km | D33: 444.3560169 | E33: 457.1031404 | F33: 472.9048215 | G33: 491.5503748 | H33: 523.3196132 | I33: 558.5550215 | J33: 578.1841673 | K33: 597.6433096 | L33: 614.2252939 | M33: 634.9028059 | N33: 667.9062717 | O33: 678.0947393
A34: DPA0206 | B34: Underground SWER | C34: km | D34: 81.58080994 | E34: 82.54269994 | F34: 82.54269994 | G34: 82.54269994 | H34: 82.54269994 | I34: 82.54269994 | J34: 83.65749994 | K34: 83.72139994 | L34: 83.72139994 | M34: 83.72139994 | N34: 83.72139994 | O34: 83.72139994
A35: DPA0207 | B35: Underground 22 kV | C35: km | D35: 43.13208574 | E35: 44.05395574 | F35: 47.11862574 | G35: 47.61910574 | H35: 48.58078678 | I35: 49.81796695 | J35: 53.01058951 | K35: 68.47431476 | L35: 69.44515504 | M35: 73.25931751 | N35: 80.7083698 | O35: 89.94448847
A36: DPA0208 | B36: Underground 33 kV | C36: km | D36: 0 | E36: 0 | F36: 0 | G36: 0 | H36: 0 | I36: 0 | J36: 0 | K36: 0 | L36: 0 | M36: 0 | N36: 0 | O36: 0
A37: DPA0209 | B37: Underground 66 kV | C37: km | D37: 19.46825 | E37: 19.46825 | F37: 20.39034 | G37: 20.39034 | H37: 20.39034 | I37: 36.22999 | J37: 37.28174 | K37: 37.98966 | L37: 40.096 | M37: 41.08371469 | N37: 42.11711469 | O37: 42.21197469
A38: DPA0210 | B38: Underground 110 kV | C38: km | D38: 0 | E38: 0 | F38: 0 | G38: 0 | H38: 0 | I38: 0 | J38: 0 | K38: 0 | L38: 0 | M38: 0 | N38: 0 | O38: 0
A39: DPA0211 | B39: Underground 132 kV | C39: km | D39: 0 | E39: 0 | F39: 0 | G39: 0 | H39: 0 | I39: 0 | J39: 0 | K39: 0 | L39: 0 | M39: 0 | N39: 0 | O39: 0
A40: DPA0212 | B40: Other | C40: km | D40: 0 | E40: 0 | F40: 0 | G40: 0 | H40: 0 | I40: 0 | J40: 0 | K40: 0 | L40: 0 | M40: 0 | N40: 0 | O40: 0
A41: DPA02 | B41: Total underground circuit km | C41: km | D41: =SUM(D29:D40) -> 1084.22992 | E41: =SUM(E29:E40) -> 1124.107146 | F41: 1157.232787 | G41: 1183.2038 | H41: 1266.143192 | I41: 1339.617402 | J41: 1368.70705 | K41: 1423.252435 | L41: 1459.868646 | M41: 1513.627101 | N41: 1578.230087 | O41: 1609.737229
B43: Circuit Capacity MVA
B44: 3.5.1.3 - Estimated overhead network weighted average MVA capacity by voltage class
A45: DPA0301 | B45: Overhead low voltage distribution | C45: MVA | D45: 0.1633208005 | E45: 0.1629653775 | F45: 0.1625161136 | G45: 0.1623533599 | H45: 0.1624495218 | I45: 0.1624989105 | J45: 0.1625140385 | K45: 0.1628415737 | L45: 0.1630236994 | M45: 0.1630663969 | N45: 0.1631049397 | O45: 0.1630822116
A46: DPA0302 | B46: Overhead 6.6 kV | C46: MVA | D46: 0 | E46: 0 | F46: 0 | G46: 0 | H46: 0 | I46: 0 | J46: 0 | K46: 0 | L46: 0 | M46: 0 | N46: 0 | O46: 0
A47: DPA0303 | B47: Overhead 7.6 kV | C47: MVA | D47: 0 | E47: 0 | F47: 0 | G47: 0 | H47: 0 | I47: 0 | J47: 0 | K47: 0 | L47: 0 | M47: 0 | N47: 0 | O47: 0
A48: DPA0304 | B48: Overhead 11 kV | C48: MVA | D48: 6.262307989 | E48: 6.24990231 | F48: 6.24832048 | G48: 6.247134626 | H48: 6.237064089 | I48: 6.21030138 | J48: 6.211192155 | K48: 6.225525734 | L48: 6.235097951 | M48: 6.233411594 | N48: 6.328721869 | O48: 6.320102429
A49: DPA0305 | B49: Overhead SWER | C49: MVA | D49: 1.672 | E49: 1.672 | F49: 1.672 | G49: 1.672 | H49: 1.672 | I49: 1.672 | J49: 1.672 | K49: 1.672 | L49: 1.672 | M49: 1.672 | N49: 1.672 | O49: 1.672
A50: DPA0306 | B50: Overhead 22 kV | C50: MVA | D50: 8.744664675 | E50: 8.800799547 | F50: 8.850542602 | G50: 8.857624779 | H50: 8.851308935 | I50: 8.849815997 | J50: 8.848007422 | K50: 8.858876632 | L50: 8.857160141 | M50: 8.964364708 | N50: 8.976167468 | O50: 9.055898377
A51: DPA0307 | B51: Overhead 33 kV | C51: MVA | D51: 0 | E51: 0 | F51: 0 | G51: 0 | H51: 0 | I51: 0 | J51: 0 | K51: 0 | L51: 0 | M51: 0 | N51: 0 | O51: 0
A52: DPA0308 | B52: Overhead 44 kV | C52: MVA | D52: 0 | E52: 0 | F52: 0 | G52: 0 | H52: 0 | I52: 0 | J52: 0 | K52: 0 | L52: 0 | M52: 0 | N52: 0 | O52: 0
A53: DPA0309 | B53: Overhead 66 kV | C53: MVA | D53: 35.73995257 | E53: 35.73995257 | F53: 36.1490531 | G53: 36.1490531 | H53: 36.1490531 | I53: 39.21174616 | J53: 40.28238572 | K53: 40.28238572 | L53: 40.3344424 | M53: 40.3344424 | N53: 40.73563639 | O53: 40.78383202
A54: DPA0310 | B54: Overhead 110 kV | C54: MVA | D54: 0 | E54: 0 | F54: 0 | G54: 0 | H54: 0 | I54: 0 | J54: 0 | K54: 0 | L54: 0 | M54: 0 | N54: 0 | O54: 0
A55: DPA0311 | B55: Overhead 132 kV | C55: MVA | D55: 112.5468489 | E55: 112.5468489 | F55: 112.2359064 | G55: 112.2359064 | H55: 112.2359064 | I55: 112.2359064 | J55: 112.2359064 | K55: 112.2359064 | L55: 112.2359064 | M55: 112.2363363 | N55: 112.2363363 | O55: 112.2363363
A56: DPA0312 | B56: Overhead 220 kV | C56: MVA | D56: 0 | E56: 0 | F56: 0 | G56: 0 | H56: 0 | I56: 0 | J56: 0 | K56: 0 | L56: 0 | M56: 0 | N56: 0 | O56: 0
A57: DPA0313 | B57: Other | C57: MVA | D57: 0 | E57: 0 | F57: 0 | G57: 0 | H57: 0 | I57: 0 | J57: 0 | K57: 0 | L57: 0 | M57: 0 | N57: 0 | O57: 0
B58: 3.5.1.4 - Estimated underground network weighted average MVA capacity by voltage class
A59: DPA0401 | B59: Underground low voltage distribution | C59: MVA | D59: 0.2061529124 | E59: 0.2077495835 | F59: 0.2083477853 | G59: 0.2087293409 | H59: 0.2114004692 | I59: 0.2124455485 | J59: 0.2125809582 | K59: 0.2125626002 | L59: 0.2125978795 | M59: 0.2135541686 | N59: 0.2143065554 | O59: 0.2146618868
A60: DPA0402 | B60: Underground 5 kV | C60: MVA | D60: 0 | E60: 0 | F60: 0 | G60: 0 | H60: 0 | I60: 0 | J60: 0 | K60: 0 | L60: 0 | M60: 0 | N60: 0 | O60: 0
A61: DPA0403 | B61: Underground 6.6 kV | C61: MVA | D61: 0 | E61: 0 | F61: 0 | G61: 0 | H61: 0 | I61: 0 | J61: 0 | K61: 0 | L61: 0 | M61: 0 | N61: 0 | O61: 0
A62: DPA0404 | B62: Underground 7.6 kV | C62: MVA | D62: 0 | E62: 0 | F62: 0 | G62: 0 | H62: 0 | I62: 0 | J62: 0 | K62: 0 | L62: 0 | M62: 0 | N62: 0 | O62: 0
A63: DPA0405 | B63: Underground 11 kV | C63: MVA | D63: 5.891237592 | E63: 5.899936094 | F63: 5.934935296 | G63: 5.992188609 | H63: 6.026066621 | I63: 6.120210073 | J63: 6.160598137 | K63: 6.184284283 | L63: 6.210486368 | M63: 6.237470928 | N63: 6.312398661 | O63: 6.323867399
A64: DPA0406 | B64: Underground SWER | C64: MVA | D64: 0.9091302659 | E64: 0.9066847674 | F64: 0.9066847674 | G64: 0.9066847674 | H64: 0.9066847674 | I64: 0.9066847674 | J64: 0.9229234596 | K64: 0.9229191021 | L64: 0.9229191021 | M64: 0.9229191021 | N64: 0.9229191021 | O64: 0.9229191021
A65: DPA0407 | B65: Underground 12.7 kV | C65: MVA | D65: 0 | E65: 0 | F65: 0 | G65: 0 | H65: 0 | I65: 0 | J65: 0 | K65: 0 | L65: 0 | M65: 0 | N65: 0 | O65: 0
A66: DPA0408 | B66: Underground 22 kV | C66: MVA | D66: 9.426623302 | E66: 9.474251326 | F66: 10.1911326 | G66: 10.14178555 | H66: 10.14470727 | I66: 10.26295803 | J66: 10.43588711 | K66: 12.44242454 | L66: 12.38649412 | M66: 12.43425772 | N66: 12.97468306 | O66: 13.37848526
A67: DPA0409 | B67: Underground 33 kV | C67: MVA | D67: 0 | E67: 0 | F67: 0 | G67: 0 | H67: 0 | I67: 0 | J67: 0 | K67: 0 | L67: 0 | M67: 0 | N67: 0 | O67: 0
A68: DPA0410 | B68: Underground 66 kV | C68: MVA | D68: 25.43156721 | E68: 25.43156721 | F68: 27.73754554 | G68: 27.73754554 | H68: 27.73754554 | I68: 54.22288918 | J68: 54.689419 | K68: 55.50160772 | L68: 58.24560473 | M68: 59.02819835 | N68: 59.91981915 | O68: 59.94831958
A69: DPA0411 | B69: Underground 110 kV | C69: MVA | D69: 0 | E69: 0 | F69: 0 | G69: 0 | H69: 0 | I69: 0 | J69: 0 | K69: 0 | L69: 0 | M69: 0 | N69: 0 | O69: 0
A70: DPA0412 | B70: Underground 132 kV | C70: MVA | D70: 0 | E70: 0 | F70: 0 | G70: 0 | H70: 0 | I70: 0 | J70: 0 | K70: 0 | L70: 0 | M70: 0 | N70: 0 | O70: 0
A71: DPA0413 | B71: Other | C71: MVA | D71: 0 | E71: 0 | F71: 0 | G71: 0 | H71: 0 | I71: 0 | J71: 0 | K71: 0 | L71: 0 | M71: 0 | N71: 0 | O71: 0
B75: 3.5.2 - TRANSFORMER CAPACITIES
D76: VOLUMES (0's)
D77: =IF(dms_RPT="financial",dms_fy1,dms_cy1) -> 2005-06 | E77: =IF(dms_RPT="financial",dms_fy2,dms_cy2) -> 2006-07 | F77: =IF(dms_RPT="financial",dms_fy3,dms_cy3) -> 2007-08 | G77: =IF(dms_RPT="financial",dms_fy4,dms_cy4) -> 2008-09 | H77: =IF(dms_RPT="financial",dms_fy5,dms_cy5) -> 2009-10 | I77: =IF(dms_RPT="financial",dms_fy6,dms_cy6) -> 2010-11 | J77: =IF(dms_RPT="financial",dms_fy7,dms_cy7) -> 2011-12 | K77: =IF(dms_RPT="financial",dms_fy8,dms_cy8) -> 2012-13 | L77: =IF(dms_RPT="financial",dms_fy9,dms_cy9) -> 2013-14 | M77: =IF(dms_RPT="financial",dms_fy10,dms_cy10) -> 2014-15 | N77: =IF(dms_RPT="financial",dms_fy11,dms_cy11) -> 2015-16 | O77: =IF(dms_RPT="financial",dms_fy12,dms_cy12) -> 2016-17
B78: Distribution transformer total installed capacity
A79: DPA0501 | B79: Distribution transformer capacity owned by utility | C79: MVA | D79: 996.4144578 | E79: 1017.593416 | F79: 1046.785375 | G79: 1076.325333 | H79: 1115.977291 | I79: 1153.97625 | J79: 1183.160208 | K79: 1374.347166 | L79: 1349.282125 | M79: 1338.172083 | N79: 1367.343042 | O79: 1370.886
A80: DPA0502 | B80: Distribution transformer capacity owned by High Voltage Customers | C80: MVA | D80: 92.9072037 | E80: 99.74091241 | F80: 107.2517506 | G80: 107.5639583 | H80: 107.5639583 | I80: 107.5639583 | J80: 111.7990091 | K80: 119.7593508 | L80: 126.5334428 | M80: 126.5334428 | N80: 130.6813871 | O80: 130.6813871
A81: DPA0503 | B81: Cold spare capacity included in DPA0501 | C81: MVA | D81: 0 | E81: 0 | F81: 0 | G81: 0 | H81: 0 | I81: 0 | J81: 0 | K81: 155.697 | L81: 119.764 | M81: 86.368 | N81: 97.121 | O81: 92.859
B82: Zone substation transformer capacity
A83: DPA0601 | B83: Total installed capacity for first step transformation where there are two steps to reach distribution voltage | C83: MVA | D83: 35 | E83: 35 | F83: 35 | G83: 35 | H83: 35 | I83: 30 | J83: 120 | K83: 120 | L83: 120 | M83: 120 | N83: 120 | O83: 120
A84: DPA0602 | B84: Total installed capacity for second step transformation where there are two steps to reach distribution voltage | C84: MVA | D84: 70 | E84: 70 | F84: 70 | G84: 85 | H84: 85 | I84: 85 | J84: 77 | K84: 77 | L84: 77 | M84: 77 | N84: 77 | O84: 77
A85: DPA0603 | B85: Total zone substation transformer capacity where there is only a single step transformation to reach distribution voltage | C85: MVA | D85: 1077 | E85: 1077 | F85: 1077 | G85: 1077 | H85: 1077 | I85: 1153 | J85: 1247 | K85: 1307 | L85: 1341 | M85: 1367 | N85: 1485 | O85: 1440
A86: DPA0604 | B86: Total zone substation transformer capacity | C86: MVA | D86: 1181.5 | E86: 1181.5 | F86: 1181.5 | G86: 1196.5 | H86: 1196.5 | I86: 1291.5 | J86: 1467.8 | K86: 1515.8 | L86: 1689.3 | M86: 1715.8 | N86: 1826.8 | O86: 1796.8
A87: DPA0605 | B87: Cold spare capacity of zone substation transformers included in DPA0604 | C87: MVA | D87: 0 | E87: 0 | F87: 0 | G87: 0 | H87: 0 | I87: 24 | J87: 24 | K87: 12 | L87: 151.5 | M87: 152.5 | N87: 145 | O87: 160
B88: Distribution - other transformer capacity
B89: Distribution other - transformer capacity owned by utility | C89: MVA
B93: 3.5.3 - PUBLIC LIGHTING
D94: VOLUMES (0's)
D95: =IF(dms_RPT="financial",dms_fy1,dms_cy1) -> 2005-06 | E95: =IF(dms_RPT="financial",dms_fy2,dms_cy2) -> 2006-07 | F95: =IF(dms_RPT="financial",dms_fy3,dms_cy3) -> 2007-08 | G95: =IF(dms_RPT="financial",dms_fy4,dms_cy4) -> 2008-09 | H95: =IF(dms_RPT="financial",dms_fy5,dms_cy5) -> 2009-10 | I95: =IF(dms_RPT="financial",dms_fy6,dms_cy6) -> 2010-11 | J95: =IF(dms_RPT="financial",dms_fy7,dms_cy7) -> 2011-12 | K95: =IF(dms_RPT="financial",dms_fy8,dms_cy8) -> 2012-13 | L95: =IF(dms_RPT="financial",dms_fy9,dms_cy9) -> 2013-14 | M95: =IF(dms_RPT="financial",dms_fy10,dms_cy10) -> 2014-15 | N95: =IF(dms_RPT="financial",dms_fy11,dms_cy11) -> 2015-16 | O95: =IF(dms_RPT="financial",dms_fy12,dms_cy12) -> 2016-17
A96: DPA0701 | B96: Public lighting luminaires | C96: Number
A97: DPA0702 | B97: Public lighting poles | C97: Number
A98: DPA0703 | B98: Public lighting columns | C98: Number

Sheet 3.6 Quality of service
B1: REGULATORY REPORTING STATEMENT
B2: =INDEX(dms_TradingNameFull_List,MATCH(dms_TradingName,dms_TradingName_List)) -> Power and Water Corporation
B3: ECONOMIC BENCHMARKING - HISTORICAL
B4: 3.6 QUALITY OF SERVICE DATA
B6: There are THREE tables on this worksheet. Each table has been grouped (and sub-grouped) for ease of navigation. See the Instructions sheet on how to group or ungroup tables.
B8: 3.6.1 - RELIABILITY
D9: (0's)
C10: Units | D10: =IF(dms_RPT="financial",dms_fy1,dms_cy1) -> 2005-06 | E10: =IF(dms_RPT="financial",dms_fy2,dms_cy2) -> 2006-07 | F10: =IF(dms_RPT="financial",dms_fy3,dms_cy3) -> 2007-08 | G10: =IF(dms_RPT="financial",dms_fy4,dms_cy4) -> 2008-09 | H10: =IF(dms_RPT="financial",dms_fy5,dms_cy5) -> 2009-10 | I10: =IF(dms_RPT="financial",dms_fy6,dms_cy6) -> 2010-11 | J10: =IF(dms_RPT="financial",dms_fy7,dms_cy7) -> 2011-12 | K10: =IF(dms_RPT="financial",dms_fy8,dms_cy8) -> 2012-13 | L10: =IF(dms_RPT="financial",dms_fy9,dms_cy9) -> 2013-14 | M10: =IF(dms_RPT="financial",dms_fy10,dms_cy10) -> 2014-15 | N10: =IF(dms_RPT="financial",dms_fy11,dms_cy11) -> 2015-16 | O10: =IF(dms_RPT="financial",dms_fy12,dms_cy12) -> 2016-17
B11: INCLUSIVE OF MEDs
A12: DQS0101 | B12: Whole of network unplanned SAIDI | C12: minutes/customer | D12: 263.1010705 | E12: 261.0631001 | F12: 607.0909899 | G12: 438.3143664 | H12: 439.16329 | I12: 609.7637692 | J12: 298.5575909 | K12: 303.7483396 | L12: 607.1814311 | M12: 244.0748317 | N12: 228.157277 | O12: 244.3363964
A13: DQS0102 | B13: Whole of network unplanned SAIDI excluding excluded outages | C13: minutes/customer | D13: 215.5135177 | E13: 211.3390986 | F13: 532.5941512 | G13: 372.0719946 | H13: 355.1373144 | I13: 512.4173566 | J13: 242.9100536 | K13: 214.1012817 | L13: 423.1647284 | M13: 178.0241264 | N13: 175.2116356 | O13: 202.6372325
A14: DQS0103 | B14: Whole of network unplanned SAIFI | C14: interruptions/customer | D14: 6.188415429 | E14: 6.746826187 | F14: 6.816650763 | G14: 7.844528583 | H14: 6.072097842 | I14: 7.227726789 | J14: 4.946608902 | K14: 5.230096223 | L14: 5.997158899 | M14: 3.746451592 | N14: 3.878953944 | O14: 4.223095952
A15: DQS0104 | B15: Whole of network unplanned SAIFI excluding excluded outages | C15: interruptions/customer | D15: 3.613046999 | E15: 3.333162555 | F15: 3.089721215 | G15: 3.897493688 | H15: 3.214838845 | I15: 4.057097814 | J15: 3.455779126 | K15: 3.455926083 | L15: 2.551220506 | M15: 1.852418108 | N15: 2.625700232 | O15: 2.895624709
B16: EXCLUSIVE OF MEDs
A17: DQS0105 | B17: Whole of network unplanned SAIDI | C17: minutes/customer | D17: 263.1010705 | E17: 261.0631001 | F17: 301.1639525 | G17: 305.5466018 | H17: 258.3072781 | I17: 397.9364561 | J17: 298.5575909 | K17: 303.7483396 | L17: 154.764008 | M17: 244.0748317 | N17: 228.157277 | O17: 221.0869796
A18: DQS0106 | B18: Whole of network unplanned SAIDI excluding excluded outages | C18: minutes/customer | D18: 215.5135177 | E18: 211.3390986 | F18: 226.6671139 | G18: 239.3043439 | H18: 174.2813025 | I18: 304.6476966 | J18: 242.9100536 | K18: 214.1012817 | L18: 114.4758245 | M18: 178.0241264 | N18: 175.2116356 | O18: 179.3878158
A19: DQS0107 | B19: Whole of network unplanned SAIFI | C19: interruptions/customer | D19: 6.188415429 | E19: 6.746826187 | F19: 6.502431527 | G19: 7.629854612 | H19: 5.419381318 | I19: 6.786688347 | J19: 4.946608902 | K19: 5.230096223 | L19: 4.179420218 | M19: 3.746451592 | N19: 3.878953944 | O19: 4.073439596
A20: DQS0108 | B20: Whole of network unplanned SAIFI excluding excluded outages | C20: interruptions/customer | D20: 3.613046999 | E20: 3.333162555 | F20: 2.775501979 | G20: 3.682848189 | H20: 2.56212232 | I20: 3.645393295 | J20: 3.455779126 | K20: 3.455926083 | L20: 1.739721461 | M20: 1.852418108 | N20: 2.625700232 | O20: 2.745968353
B23: 3.6.2 - ENERGY NOT SUPPLIED
D24: (0's)
C25: Unit | D25: =IF(dms_RPT="financial",dms_fy1,dms_cy1) -> 2005-06 | E25: =IF(dms_RPT="financial",dms_fy2,dms_cy2) -> 2006-07 | F25: =IF(dms_RPT="financial",dms_fy3,dms_cy3) -> 2007-08 | G25: =IF(dms_RPT="financial",dms_fy4,dms_cy4) -> 2008-09 | H25: =IF(dms_RPT="financial",dms_fy5,dms_cy5) -> 2009-10 | I25: =IF(dms_RPT="financial",dms_fy6,dms_cy6) -> 2010-11 | J25: =IF(dms_RPT="financial",dms_fy7,dms_cy7) -> 2011-12 | K25: =IF(dms_RPT="financial",dms_fy8,dms_cy8) -> 2012-13 | L25: =IF(dms_RPT="financial",dms_fy9,dms_cy9) -> 2013-14 | M25: =IF(dms_RPT="financial",dms_fy10,dms_cy10) -> 2014-15 | N25: =IF(dms_RPT="financial",dms_fy11,dms_cy11) -> 2015-16 | O25: =IF(dms_RPT="financial",dms_fy12,dms_cy12) -> 2016-17
A26: DQS0201 | B26: Energy Not Supplied (planned) | C26: GWh | D26: 0.1482892664 | E26: 0.1282476501 | F26: 0.1229951806 | G26: 0.1712060273 | H26: 0.1375885869 | I26: 0.1951311013 | J26: 0.2365657254 | K26: 0.1701459126 | L26: 0.1318388455 | M26: 0.2465058978 | N26: 0.2949559163 | O26: 0.1867225737
A27: DQS0202 | B27: Energy Not Supplied (unplanned) | C27: GWh | D27: 0.740997146 | E27: 0.7588247448 | F27: 0.7808433664 | G27: 0.883078152 | H27: 0.6341772268 | I27: 1.058834251 | J27: 0.9378569603 | K27: 0.8079263422 | L27: 0.4495634625 | M27: 0.637278466 | N27: 0.6113101592 | O27: 0.6356492363
A28: DQS02 | B28: Total | D28: =SUM(D26:D27) -> 0.8892864123 | E28: =SUM(E26:E27) -> 0.8870723949 | F28: 0.903838547 | G28: 1.054284179 | H28: 0.7717658137 | I28: 1.253965353 | J28: 1.174422686 | K28: 0.9780722548 | L28: 0.5814023081 | M28: 0.8837843638 | N28: 0.9062660755 | O28: 0.82237181
B30: 3.6.3 - SYSTEM LOSSES
D31: (0's)
C32: Unit | D32: =IF(dms_RPT="financial",dms_fy1,dms_cy1) -> 2005-06 | E32: =IF(dms_RPT="financial",dms_fy2,dms_cy2) -> 2006-07 | F32: =IF(dms_RPT="financial",dms_fy3,dms_cy3) -> 2007-08 | G32: =IF(dms_RPT="financial",dms_fy4,dms_cy4) -> 2008-09 | H32: =IF(dms_RPT="financial",dms_fy5,dms_cy5) -> 2009-10 | I32: =IF(dms_RPT="financial",dms_fy6,dms_cy6) -> 2010-11 | J32: =IF(dms_RPT="financial",dms_fy7,dms_cy7) -> 2011-12 | K32: =IF(dms_RPT="financial",dms_fy8,dms_cy8) -> 2012-13 | L32: =IF(dms_RPT="financial",dms_fy9,dms_cy9) -> 2013-14 | M32: =IF(dms_RPT="financial",dms_fy10,dms_cy10) -> 2014-15 | N32: =IF(dms_RPT="financial",dms_fy11,dms_cy11) -> 2015-16 | O32: =IF(dms_RPT="financial",dms_fy12,dms_cy12) -> 2016-17
A33: DQS03 | B33: System losses | C33: % | D33: 0.07968911447 | E33: 0.09313217258 | F33: 0.07335193114 | G33: 0.08452953253 | H33: 0.07608357705 | I33: 0.06070611143 | J33: 0.0749997098 | K33: 0.08687016069 | L33: 0.04227880021 | M33: 0.03354782994 | N33: 0.06124140034 | O33: 0.04482730721
B35: 3.6.4 - CAPACITY UTILISATION
D36: (0's)
C37: Unit | D37: =IF(dms_RPT="financial",dms_fy1,dms_cy1) -> 2005-06 | E37: =IF(dms_RPT="financial",dms_fy2,dms_cy2) -> 2006-07 | F37: =IF(dms_RPT="financial",dms_fy3,dms_cy3) -> 2007-08 | G37: =IF(dms_RPT="financial",dms_fy4,dms_cy4) -> 2008-09 | H37: =IF(dms_RPT="financial",dms_fy5,dms_cy5) -> 2009-10 | I37: =IF(dms_RPT="financial",dms_fy6,dms_cy6) -> 2010-11 | J37: =IF(dms_RPT="financial",dms_fy7,dms_cy7) -> 2011-12 | K37: =IF(dms_RPT="financial",dms_fy8,dms_cy8) -> 2012-13 | L37: =IF(dms_RPT="financial",dms_fy9,dms_cy9) -> 2013-14 | M37: =IF(dms_RPT="financial",dms_fy10,dms_cy10) -> 2014-15 | N37: =IF(dms_RPT="financial",dms_fy11,dms_cy11) -> 2015-16 | O37: =IF(dms_RPT="financial",dms_fy12,dms_cy12) -> 2016-17
A38: DQS04 | B38: Overall utilisation | C38: % | D38: 0.4549754881 | E38: 0.4849918294 | F38: 0.4889190796 | G38: 0.4929243441 | H38: 0.5192103252 | I38: 0.4780215827 | J38: 0.4728501792 | K38: 0.4660950752 | L38: 0.4509364973 | M38: 0.4417027464 | N38: 0.4398011084 | O38: 0.425134109

Sheet 3.7 Operating environment
B1: REGULATORY REPORTING STATEMENT
B2: =INDEX(dms_TradingNameFull_List,MATCH(dms_TradingName,dms_TradingName_List)) -> Power and Water Corporation
B3: ECONOMIC BENCHMARKING - HISTORICAL
B4: 3.7 OPERATING ENVIRONMENT FACTORS
B6: There are THREE tables on this worksheet. Each table has been grouped (and sub-grouped) for ease of navigation. See the Instructions sheet on how to group or ungroup tables.
B8: 3.7.1 - DENSITY FACTORS
D9: (0's)
C10: Units | D10: =IF(dms_RPT="financial",dms_fy1,dms_cy1) -> 2005-06 | E10: =IF(dms_RPT="financial",dms_fy2,dms_cy2) -> 2006-07 | F10: =IF(dms_RPT="financial",dms_fy3,dms_cy3) -> 2007-08 | G10: =IF(dms_RPT="financial",dms_fy4,dms_cy4) -> 2008-09 | H10: =IF(dms_RPT="financial",dms_fy5,dms_cy5) -> 2009-10 | I10: =IF(dms_RPT="financial",dms_fy6,dms_cy6) -> 2010-11 | J10: =IF(dms_RPT="financial",dms_fy7,dms_cy7) -> 2011-12 | K10: =IF(dms_RPT="financial",dms_fy8,dms_cy8) -> 2012-13 | L10: =IF(dms_RPT="financial",dms_fy9,dms_cy9) -> 2013-14 | M10: =IF(dms_RPT="financial",dms_fy10,dms_cy10) -> 2014-15 | N10: =IF(dms_RPT="financial",dms_fy11,dms_cy11) -> 2015-16 | O10: =IF(dms_RPT="financial",dms_fy12,dms_cy12) -> 2016-17
A11: DOEF0101 | B11: Customer density | C11: Customer / km
A12: DOEF0102 | B12: Energy density | C12: MWh/customer
A13: DOEF0103 | B13: Demand density | C13: kVA / customer
B15: 3.7.2 - TERRAIN FACTORS
D16: (0's)
C17: Units | D17: =IF(dms_RPT="financial",dms_fy1,dms_cy1) -> 2005-06 | E17: =IF(dms_RPT="financial",dms_fy2,dms_cy2) -> 2006-07 | F17: =IF(dms_RPT="financial",dms_fy3,dms_cy3) -> 2007-08 | G17: =IF(dms_RPT="financial",dms_fy4,dms_cy4) -> 2008-09 | H17: =IF(dms_RPT="financial",dms_fy5,dms_cy5) -> 2009-10 | I17: =IF(dms_RPT="financial",dms_fy6,dms_cy6) -> 2010-11 | J17: =IF(dms_RPT="financial",dms_fy7,dms_cy7) -> 2011-12 | K17: =IF(dms_RPT="financial",dms_fy8,dms_cy8) -> 2012-13 | L17: =IF(dms_RPT="financial",dms_fy9,dms_cy9) -> 2013-14 | M17: =IF(dms_RPT="financial",dms_fy10,dms_cy10) -> 2014-15 | N17: =IF(dms_RPT="financial",dms_fy11,dms_cy11) -> 2015-16 | O17: =IF(dms_RPT="financial",dms_fy12,dms_cy12) -> 2016-17
A18: DOEF0201 | B18: Rural proportion | C18: %
A19: DOEF0202 | B19: Urban and CBD vegetation maintenance spans | C19: Number of spans
A20: DOEF0203 | B20: Rural vegetation maintenance spans | C20: Number of spans
A21: DOEF0204 | B21: Total vegetation maintenance spans | C21: Number of spans
A22: DOEF0205 | B22: Total number of spans | C22: Number of spans
A23: DOEF0206 | B23: Average urban and CBD vegetation maintenance span cycle | C23: Years
A24: DOEF0207 | B24: Average rural vegetation maintenance span cycle | C24: Years
A25: DOEF0208 | B25: Average number of trees per urban and CBD vegetation maintenance span | C25: Trees
A26: DOEF0209 | B26: Average number of trees per rural vegetation maintenance span | C26: Trees
A27: DOEF0210 | B27: Average number of defects per urban and CBD vegetation maintenance span | C27: Defects
A28: DOEF0211 | B28: Average number of defects per rural vegetation maintenance span | C28: Defects
A29: DOEF0212 | B29: Tropical proportion | C29: Spans
A30: DOEF0213 | B30: Standard vehicle access | C30: km | D30: 2471.687936 | E30: 2569.221828 | F30: 2655.967647 | G30: 2745.087113 | H30: 2781.954886 | I30: 2805.72824 | J30: 2830.125105 | K30: 2840.566029 | L30: 2855.729236 | M30: 2870.703967 | N30: 2940.158083 | O30: 2957.272844
A31: DOEF0214 | B31: Bushfire risk | C31: Spans
B33: 3.7.3 - SERVICE AREA FACTORS
D34: (0's)
C35: Units | D35: =IF(dms_RPT="financial",dms_fy1,dms_cy1) -> 2005-06 | E35: =IF(dms_RPT="financial",dms_fy2,dms_cy2) -> 2006-07 | F35: =IF(dms_RPT="financial",dms_fy3,dms_cy3) -> 2007-08 | G35: =IF(dms_RPT="financial",dms_fy4,dms_cy4) -> 2008-09 | H35: =IF(dms_RPT="financial",dms_fy5,dms_cy5) -> 2009-10 | I35: =IF(dms_RPT="financial",dms_fy6,dms_cy6) -> 2010-11 | J35: =IF(dms_RPT="financial",dms_fy7,dms_cy7) -> 2011-12 | K35: =IF(dms_RPT="financial",dms_fy8,dms_cy8) -> 2012-13 | L35: =IF(dms_RPT="financial",dms_fy9,dms_cy9) -> 2013-14 | M35: =IF(dms_RPT="financial",dms_fy10,dms_cy10) -> 2014-15 | N35: =IF(dms_RPT="financial",dms_fy11,dms_cy11) -> 2015-16 | O35: =IF(dms_RPT="financial",dms_fy12,dms_cy12) -> 2016-17
A36: DOEF0301 | B36: Route Line length | C36: km | D36: 3827.601839 | E36: 3978.64069 | F36: 4112.973367 | G36: 4250.981822 | H36: 4308.074448 | I36: 4344.889344 | J36: 4382.669794 | K36: 4398.838381 | L36: 4422.319792 | M36: 4445.509333 | N36: 4553.064457 | O36: 4579.568

Sheet NSP Amendments
B1: =CONCATENATE(dms_TradingName," data amendments") -> Power and Water data amendments
B2: Amended Table | C2: Comments
B3: 3.1.1 - REVENUE GROUPING BY CHARGEABLE QUANTITY | C3: Corrected a misallocation of 2011-12 SCS revenues between DREV0102, DREV0103, DREV0105. The following adjustments were made to the 2011-12 revenues in RIN 3.1.1: DREV0102 Adjustment + $13,804,530 DREV0103 Adjustment - $ 8,714,715 DREV0105 Adjustment - $ 5,089,816
B4: 3.1.1 - REVENUE GROUPING BY CHARGEABLE QUANTITY | C4: Added ACS revenue for 2005-06 to 2007-08 to be consistent with other years & moved metering revenue from SCS to ACS in 2005-06 to 2013-14 to match 2014-15 to 2016-17
B5: 3.1.2 - REVENUE GROUPING BY CUSTOMER TYPE OR CLASS | C5: Added ACS revenue for 2005-06 to 2007-08 to be consistent with other years & moved metering revenue from SCS to ACS in 2005-06 to 2013-14 to match 2014-15 to 2016-17
B6: 3.2.1 - OPEX CATEGORIES | C6: Opex for 2005-06 has been remapped to better reflect the categories. The ACS opex was also corrected as not all ACS opex was reported in the initial RIN template.
B7: 3.3.1 - REGULATORY ASSET BASE VALUES 3.3.2 - ASSET VALUE ROLL FORWARD 3.3.3 - TOTAL DISAGGREGATED RAB ASSET VALUES | C7: Updated some of the 'Network Services' RAB values
B8: 3.6.4 - CAPACITY UTILISATION | C8: Entire table updated
